Department Family,Entity,Date,Expense Type,Expense Area,Supplier,Transaction Number,Amount,Description
Department for Education,DEPARTMENT FOR EDUCATION,03/09/2019,Other costs,SOCIAL CARE MOBILITY AND DISADVANTAGE,OFFICE OF THE CHILDRENS COMMISSIONER,30000615,369300.00,Current grants paid to organisations including arms length bodies and educational establishments
Department for Education,DEPARTMENT FOR EDUCATION,02/09/2019,Grants expenditure,CHILDRENS SOCIAL CARE,FAMILY RIGHTS GROUP LTD,1041092776,59886.00,Grants to educational establishments or not for profit organisations including other businesses
Department for Education,DEPARTMENT FOR EDUCATION,10/09/2019,Other Goods & Services,CHILDRENS SOCIAL CARE,MUTUAL VENTURES LTD,1041093710,38073.38,"Fees / expenses of professionals such as auditors, accountants, lawyers, etc. engaged to provide advice or opinion on how to affect something"
Department for Education,DEPARTMENT FOR EDUCATION,10/09/2019,Other Goods & Services,CHILDRENS SOCIAL CARE,MUTUAL VENTURES LTD,1041093710,7614.68,"Fees / expenses of professionals such as auditors, accountants, lawyers, etc. engaged to provide advice or opinion on how to affect something"
Department for Education,DEPARTMENT FOR EDUCATION,13/09/2019,Other Goods & Services,CHILDRENS SOCIAL CARE,UNIVERSITY OF BEDFORDSHIRE,1041094167,28599.67,Research and Development
Department for Education,DEPARTMENT FOR EDUCATION,16/09/2019,Other Goods & Services,CHILDRENS SOCIAL CARE,NESTA,1041094187,101557.04,"Fees / expenses of professionals such as auditors, accountants, lawyers, etc. engaged to provide advice or opinion on how to affect something"
Department for Education,DEPARTMENT FOR EDUCATION,16/09/2019,Other Goods & Services,CHILDRENS SOCIAL CARE,NESTA,1041094187,20311.41,"Fees / expenses of professionals such as auditors, accountants, lawyers, etc. engaged to provide advice or opinion on how to affect something"
Department for Education,DEPARTMENT FOR EDUCATION,16/09/2019,Other Goods & Services,CHILDRENS SOCIAL CARE,OPCIT RESEARCH KM RESEARCH,1041094202,56281.25,Research and Development
Department for Education,DEPARTMENT FOR EDUCATION,16/09/2019,Grants expenditure,CHILDRENS SOCIAL CARE,PAUSE CREATING SPACE FOR CHANGE,1041094236,112055.48,Grants to educational establishments or not for profit organisations including other businesses
Department for Education,DEPARTMENT FOR EDUCATION,16/09/2019,Grants expenditure,CHILDRENS SOCIAL CARE,RESOLUTIONS CONSULTANCY PTY LTD,1041094255,8769.70,Grants to educational establishments or not for profit organisations including other businesses
Department for Education,DEPARTMENT FOR EDUCATION,16/09/2019,Grants expenditure,CHILDRENS SOCIAL CARE,RESOLUTIONS CONSULTANCY PTY LTD,1041094255,43848.51,Grants to educational establishments or not for profit organisations including other businesses
Department for Education,DEPARTMENT FOR EDUCATION,19/09/2019,Grants expenditure,CHILDRENS SOCIAL CARE,LONDON BOROUGH OF EALING COUNCIL,1041094567,99313.00,Grants to local authorities / other establishments within aggregate external funding or aggregate exchequer grant
Department for Education,DEPARTMENT FOR EDUCATION,19/09/2019,Grants expenditure,CHILDRENS SOCIAL CARE,HAMPSHIRE COUNTY COUNCIL,1041094575,361019.00,Grants to local authorities / other establishments within aggregate external funding or aggregate exchequer grant
Department for Education,DEPARTMENT FOR EDUCATION,19/09/2019,Grants expenditure,CHILDRENS SOCIAL CARE,LEEDS CITY COUNCIL,1041094585,342990.00,Grants to local authorities / other establishments within aggregate external funding or aggregate exchequer grant
Department for Education,DEPARTMENT FOR EDUCATION,19/09/2019,Grants expenditure,CHILDRENS SOCIAL CARE,LINCOLNSHIRE COUNTY COUNCIL,1041094595,346049.00,Grants to local authorities / other establishments within aggregate external funding or aggregate exchequer grant
Department for Education,DEPARTMENT FOR EDUCATION,19/09/2019,Grants expenditure,CHILDRENS SOCIAL CARE,LONDON BOROUGH OF CAMDEN,1041094596,96596.00,Grants to local authorities / other establishments within aggregate external funding or aggregate exchequer grant
Department for Education,DEPARTMENT FOR EDUCATION,19/09/2019,Grants expenditure,CHILDRENS SOCIAL CARE,CITY OF WESTMINSTER,1041094598,73011.00,Grants to local authorities / other establishments within aggregate external funding or aggregate exchequer grant
Department for Education,DEPARTMENT FOR EDUCATION,19/09/2019,Grants expenditure,CHILDRENS SOCIAL CARE,THE ROYAL BOROUGH OF KENSINGTON & CHELSEA COUNCIL,1041094605,73011.00,Grants to local authorities / other establishments within aggregate external funding or aggregate exchequer grant
Department for Education,DEPARTMENT FOR EDUCATION,19/09/2019,Grants expenditure,CHILDRENS SOCIAL CARE,NORTH TYNESIDE,1041094607,137313.00,Grants to local authorities / other establishments within aggregate external funding or aggregate exchequer grant
Department for Education,DEPARTMENT FOR EDUCATION,19/09/2019,Grants expenditure,CHILDRENS SOCIAL CARE,LONDON BOROUGH OF HAMMERSMITH & FULHAM COUNCIL,1041094608,73011.00,Grants to local authorities / other establishments within aggregate external funding or aggregate exchequer grant
Department for Education,DEPARTMENT FOR EDUCATION,19/09/2019,Grants expenditure,CHILDRENS SOCIAL CARE,STOCKPORT MBC,1041094609,267793.00,Grants to local authorities / other establishments within aggregate external funding or aggregate exchequer grant
Department for Education,DEPARTMENT FOR EDUCATION,19/09/2019,Grants expenditure,CHILDRENS SOCIAL CARE,SOUTH TYNESIDE,1041094616,150313.00,Grants to local authorities / other establishments within aggregate external funding or aggregate exchequer grant
Department for Education,DEPARTMENT FOR EDUCATION,19/09/2019,Grants expenditure,CHILDRENS SOCIAL CARE,LONDON BOROUGH OF RICHMOND UPON THAMES,1041094617,144391.00,Grants to local authorities / other establishments within aggregate external funding or aggregate exchequer grant
Department for Education,DEPARTMENT FOR EDUCATION,19/09/2019,Grants expenditure,CHILDRENS SOCIAL CARE,LONDON BOROUGH OF HACKNEY,1041094672,52478.00,Grants to local authorities / other establishments within aggregate external funding or aggregate exchequer grant
Department for Education,DEPARTMENT FOR EDUCATION,24/09/2019,Grants expenditure,CHILDRENS SOCIAL CARE,PAUSE CREATING SPACE FOR CHANGE,1041094930,98650.53,Grants to educational establishments or not for profit organisations including other businesses
Department for Education,DEPARTMENT FOR EDUCATION,24/09/2019,Grants expenditure,CHILDRENS SOCIAL CARE,DAYBREAK FAMILY GROUP CONFERENCES,1041094939,28637.00,Grants to educational establishments or not for profit organisations including other businesses
Department for Education,DEPARTMENT FOR EDUCATION,24/09/2019,Grants expenditure,CHILDRENS SOCIAL CARE,FAMILY RIGHTS GROUP LTD,1041094970,58772.00,Grants to educational establishments or not for profit organisations including other businesses
Department for Education,DEPARTMENT FOR EDUCATION,26/09/2019,Other Goods & Services,CHILDRENS SOCIAL CARE,NESTA,1041095187,118295.46,"Fees / expenses of professionals such as auditors, accountants, lawyers, etc. engaged to provide advice or opinion on how to affect something"
Department for Education,DEPARTMENT FOR EDUCATION,26/09/2019,Other Goods & Services,CHILDRENS SOCIAL CARE,NESTA,1041095187,24321.89,"Fees / expenses of professionals such as auditors, accountants, lawyers, etc. engaged to provide advice or opinion on how to affect something"
Department for Education,DEPARTMENT FOR EDUCATION,30/09/2019,Other Goods & Services,CHILDRENS SOCIAL CARE,UNIVERSITY OF OXFORD,1041095526,25088.00,Research and Development
Department for Education,DEPARTMENT FOR EDUCATION,30/09/2019,Other Goods & Services,CHILDRENS SOCIAL CARE,UNIVERSITY OF OXFORD,1041095526,25359.00,Research and Development
Department for Education,DEPARTMENT FOR EDUCATION,02/09/2019,Grants expenditure,CHILDRENS SOCIAL CARE,SLOUGH CHILDRENS SERVICES TRUST LTD,1041092842,176273.92,Grants to educational establishments or not for profit organisations including other businesses
Department for Education,DEPARTMENT FOR EDUCATION,16/09/2019,Grants expenditure,CHILDRENS SOCIAL CARE,TORBAY COUNCIL,1041094243,91108.21,Grants to local authorities / other establishments within aggregate external funding or aggregate exchequer grant
Department for Education,DEPARTMENT FOR EDUCATION,18/09/2019,Other Goods & Services,CHILDRENS SOCIAL CARE,MUTUAL VENTURES LTD,1041094508,30744.91,"Fees / expenses of professionals such as auditors, accountants, lawyers, etc. engaged to provide advice or opinion on how to affect something"
Department for Education,DEPARTMENT FOR EDUCATION,18/09/2019,Other Goods & Services,CHILDRENS SOCIAL CARE,MUTUAL VENTURES LTD,1041094508,6148.99,"Fees / expenses of professionals such as auditors, accountants, lawyers, etc. engaged to provide advice or opinion on how to affect something"
Department for Education,DEPARTMENT FOR EDUCATION,18/09/2019,Grants expenditure,CHILDRENS SOCIAL CARE,DONCASTER CHILDRENS SERVICES TRUST,1041094510,121491.00,Grants to educational establishments or not for profit organisations including other businesses
Department for Education,DEPARTMENT FOR EDUCATION,19/09/2019,Grants expenditure,CHILDRENS SOCIAL CARE,LONDON BOROUGH OF EALING COUNCIL,1041094567,147875.00,Grants to local authorities / other establishments within aggregate external funding or aggregate exchequer grant
Department for Education,DEPARTMENT FOR EDUCATION,19/09/2019,Grants expenditure,CHILDRENS SOCIAL CARE,ESSEX COUNTY COUNCIL,1041094573,308320.00,Grants to local authorities / other establishments within aggregate external funding or aggregate exchequer grant
Department for Education,DEPARTMENT FOR EDUCATION,19/09/2019,Grants expenditure,CHILDRENS SOCIAL CARE,HAMPSHIRE COUNTY COUNCIL,1041094575,100000.00,Grants to local authorities / other establishments within aggregate external funding or aggregate exchequer grant
Department for Education,DEPARTMENT FOR EDUCATION,19/09/2019,Grants expenditure,CHILDRENS SOCIAL CARE,EAST RIDING OF YORKSHIRE,1041094584,35625.00,Grants to local authorities / other establishments within aggregate external funding or aggregate exchequer grant
Department for Education,DEPARTMENT FOR EDUCATION,19/09/2019,Grants expenditure,CHILDRENS SOCIAL CARE,LEEDS CITY COUNCIL,1041094585,140000.00,Grants to local authorities / other establishments within aggregate external funding or aggregate exchequer grant
Department for Education,DEPARTMENT FOR EDUCATION,19/09/2019,Grants expenditure,CHILDRENS SOCIAL CARE,LINCOLNSHIRE COUNTY COUNCIL,1041094595,41206.87,Grants to local authorities / other establishments within aggregate external funding or aggregate exchequer grant
Department for Education,DEPARTMENT FOR EDUCATION,19/09/2019,Grants expenditure,CHILDRENS SOCIAL CARE,LONDON BOROUGH OF ISLINGTON COUNCIL,1041094597,135298.00,Grants to local authorities / other establishments within aggregate external funding or aggregate exchequer grant
Department for Education,DEPARTMENT FOR EDUCATION,19/09/2019,Grants expenditure,CHILDRENS SOCIAL CARE,CITY OF WESTMINSTER,1041094598,36411.00,Grants to local authorities / other establishments within aggregate external funding or aggregate exchequer grant
Department for Education,DEPARTMENT FOR EDUCATION,19/09/2019,Grants expenditure,CHILDRENS SOCIAL CARE,THE ROYAL BOROUGH OF KENSINGTON & CHELSEA COUNCIL,1041094605,36411.00,Grants to local authorities / other establishments within aggregate external funding or aggregate exchequer grant
Department for Education,DEPARTMENT FOR EDUCATION,19/09/2019,Grants expenditure,CHILDRENS SOCIAL CARE,NORTH TYNESIDE,1041094607,124812.00,Grants to local authorities / other establishments within aggregate external funding or aggregate exchequer grant
Department for Education,DEPARTMENT FOR EDUCATION,19/09/2019,Grants expenditure,CHILDRENS SOCIAL CARE,LONDON BOROUGH OF HAMMERSMITH & FULHAM COUNCIL,1041094608,36411.00,Grants to local authorities / other establishments within aggregate external funding or aggregate exchequer grant
Department for Education,DEPARTMENT FOR EDUCATION,19/09/2019,Grants expenditure,CHILDRENS SOCIAL CARE,SOUTH TYNESIDE,1041094616,124812.00,Grants to local authorities / other establishments within aggregate external funding or aggregate exchequer grant
Department for Education,DEPARTMENT FOR EDUCATION,24/09/2019,Grants expenditure,CHILDRENS SOCIAL CARE,SANDWELL CHILDRENS TRUST,1041094976,135230.00,Grants to educational establishments or not for profit organisations including other businesses
Department for Education,DEPARTMENT FOR EDUCATION,02/09/2019,Grants expenditure,CHILDRENS SOCIAL CARE,CITY OF BRADFORD METROPOLITAN DISTRICT COUNCIL,1041092785,103034.00,Grants to local authorities / other establishments within aggregate external funding or aggregate exchequer grant
Department for Education,DEPARTMENT FOR EDUCATION,02/09/2019,Other Goods & Services,CHILDRENS SOCIAL CARE,KANTAR UK LTD,1041092795,85000.00,Research and Development
Department for Education,DEPARTMENT FOR EDUCATION,05/09/2019,Other Goods & Services,CHILDRENS SOCIAL CARE,SKILLS FOR CARE LTD,1041093347,267000.00,"Fees / expenses of professionals such as auditors, accountants, lawyers, etc. engaged to provide advice or opinion on how to affect something"
Department for Education,DEPARTMENT FOR EDUCATION,09/09/2019,Other Goods & Services,CHILDRENS SOCIAL CARE,MOTT MACDONALD LTD,1041093551,89326.00,"Fees / expenses of professionals such as auditors, accountants, lawyers, etc. engaged to provide advice or opinion on how to affect something"
Department for Education,DEPARTMENT FOR EDUCATION,09/09/2019,Other Goods & Services,CHILDRENS SOCIAL CARE,MOTT MACDONALD LTD,1041093551,168985.00,"Fees / expenses of professionals such as auditors, accountants, lawyers, etc. engaged to provide advice or opinion on how to affect something"
Department for Education,DEPARTMENT FOR EDUCATION,09/09/2019,Other Goods & Services,CHILDRENS SOCIAL CARE,MOTT MACDONALD LTD,1041093551,14148.00,"Fees / expenses of professionals such as auditors, accountants, lawyers, etc. engaged to provide advice or opinion on how to affect something"
Department for Education,DEPARTMENT FOR EDUCATION,09/09/2019,Other Goods & Services,CHILDRENS SOCIAL CARE,MOTT MACDONALD LTD,1041093551,17865.20,"Fees / expenses of professionals such as auditors, accountants, lawyers, etc. engaged to provide advice or opinion on how to affect something"
Department for Education,DEPARTMENT FOR EDUCATION,09/09/2019,Other Goods & Services,CHILDRENS SOCIAL CARE,MOTT MACDONALD LTD,1041093551,33797.00,"Fees / expenses of professionals such as auditors, accountants, lawyers, etc. engaged to provide advice or opinion on how to affect something"
Department for Education,DEPARTMENT FOR EDUCATION,09/09/2019,Other Goods & Services,CHILDRENS SOCIAL CARE,MOTT MACDONALD LTD,1041093551,2829.60,"Fees / expenses of professionals such as auditors, accountants, lawyers, etc. engaged to provide advice or opinion on how to affect something"
Department for Education,DEPARTMENT FOR EDUCATION,09/09/2019,Other Goods & Services,CHILDRENS SOCIAL CARE,MOTT MACDONALD LTD,1041093551,279180.00,"Fees / expenses of professionals such as auditors, accountants, lawyers, etc. engaged to provide advice or opinion on how to affect something"
Department for Education,DEPARTMENT FOR EDUCATION,09/09/2019,Other Goods & Services,CHILDRENS SOCIAL CARE,MOTT MACDONALD LTD,1041093551,55836.00,"Fees / expenses of professionals such as auditors, accountants, lawyers, etc. engaged to provide advice or opinion on how to affect something"
Department for Education,DEPARTMENT FOR EDUCATION,09/09/2019,Other Goods & Services,CHILDRENS SOCIAL CARE,MOTT MACDONALD LTD,1041093551,60000.00,"Fees / expenses of professionals such as auditors, accountants, lawyers, etc. engaged to provide advice or opinion on how to affect something"
Department for Education,DEPARTMENT FOR EDUCATION,09/09/2019,Other Goods & Services,CHILDRENS SOCIAL CARE,MOTT MACDONALD LTD,1041093551,12000.00,"Fees / expenses of professionals such as auditors, accountants, lawyers, etc. engaged to provide advice or opinion on how to affect something"
Department for Education,DEPARTMENT FOR EDUCATION,09/09/2019,Grants expenditure,CHILDRENS SOCIAL CARE,PETERBOROUGH CITY COUNCIL,1041093567,61291.64,Grants to local authorities / other establishments within aggregate external funding or aggregate exchequer grant
Department for Education,DEPARTMENT FOR EDUCATION,09/09/2019,Grants expenditure,CHILDRENS SOCIAL CARE,LIVERPOOL CITY COUNCIL,1041093579,63265.71,Grants to local authorities / other establishments within aggregate external funding or aggregate exchequer grant
Department for Education,DEPARTMENT FOR EDUCATION,12/09/2019,Learning & Development,CHILDRENS SOCIAL CARE,THE FRONTLINE ORGANISATION,1041093987,600025.00,Training & Development costs
Department for Education,DEPARTMENT FOR EDUCATION,12/09/2019,Learning & Development,CHILDRENS SOCIAL CARE,ALPHA PLUS CONSULTANCY LTD,1041094002,21032.50,Training & Development costs
Department for Education,DEPARTMENT FOR EDUCATION,13/09/2019,Other Goods & Services,CHILDRENS SOCIAL CARE,MOTT MACDONALD LTD,1041094071,344008.00,"Fees / expenses of professionals such as auditors, accountants, lawyers, etc. engaged to provide advice or opinion on how to affect something"
Department for Education,DEPARTMENT FOR EDUCATION,13/09/2019,Other Goods & Services,CHILDRENS SOCIAL CARE,MOTT MACDONALD LTD,1041094071,345386.00,"Fees / expenses of professionals such as auditors, accountants, lawyers, etc. engaged to provide advice or opinion on how to affect something"
Department for Education,DEPARTMENT FOR EDUCATION,13/09/2019,Other Goods & Services,CHILDRENS SOCIAL CARE,MOTT MACDONALD LTD,1041094071,68801.60,"Fees / expenses of professionals such as auditors, accountants, lawyers, etc. engaged to provide advice or opinion on how to affect something"
Department for Education,DEPARTMENT FOR EDUCATION,13/09/2019,Other Goods & Services,CHILDRENS SOCIAL CARE,MOTT MACDONALD LTD,1041094071,69077.20,"Fees / expenses of professionals such as auditors, accountants, lawyers, etc. engaged to provide advice or opinion on how to affect something"
Department for Education,DEPARTMENT FOR EDUCATION,13/09/2019,Other Goods & Services,CHILDRENS SOCIAL CARE,THE FRONTLINE ORGANISATION,1041094144,93800.00,"Fees / expenses of professionals such as auditors, accountants, lawyers, etc. engaged to provide advice or opinion on how to affect something"
Department for Education,DEPARTMENT FOR EDUCATION,13/09/2019,Other Goods & Services,CHILDRENS SOCIAL CARE,THE FRONTLINE ORGANISATION,1041094144,12940.20,"Fees / expenses of professionals such as auditors, accountants, lawyers, etc. engaged to provide advice or opinion on how to affect something"
Department for Education,DEPARTMENT FOR EDUCATION,19/09/2019,Grants expenditure,CHILDRENS SOCIAL CARE,CITY OF WESTMINSTER,1041094598,69795.00,Grants to local authorities / other establishments within aggregate external funding or aggregate exchequer grant
Department for Education,DEPARTMENT FOR EDUCATION,19/09/2019,Grants expenditure,CHILDRENS SOCIAL CARE,THE ROYAL BOROUGH OF KENSINGTON & CHELSEA COUNCIL,1041094605,69795.00,Grants to local authorities / other establishments within aggregate external funding or aggregate exchequer grant
Department for Education,DEPARTMENT FOR EDUCATION,19/09/2019,Grants expenditure,CHILDRENS SOCIAL CARE,LONDON BOROUGH OF HAMMERSMITH & FULHAM COUNCIL,1041094608,69795.00,Grants to local authorities / other establishments within aggregate external funding or aggregate exchequer grant
Department for Education,DEPARTMENT FOR EDUCATION,30/09/2019,Other Goods & Services,CHILDRENS SOCIAL CARE,SKILLS FOR CARE LTD,1041095513,37658.00,"Fees / expenses of professionals such as auditors, accountants, lawyers, etc. engaged to provide advice or opinion on how to affect something"
Department for Education,DEPARTMENT FOR EDUCATION,30/09/2019,Other Goods & Services,CHILDRENS SOCIAL CARE,SKILLS FOR CARE LTD,1041095513,7532.00,"Fees / expenses of professionals such as auditors, accountants, lawyers, etc. engaged to provide advice or opinion on how to affect something"
Department for Education,DEPARTMENT FOR EDUCATION,02/09/2019,Other Goods & Services,Adoption and Children in Care Division,MOTT MACDONALD LTD,1041092766,110347.46,"Fees / expenses of professionals such as auditors, accountants, lawyers, etc. engaged to provide advice or opinion on how to affect something"
Department for Education,DEPARTMENT FOR EDUCATION,02/09/2019,Other Goods & Services,Adoption and Children in Care Division,MOTT MACDONALD LTD,1041092766,22069.49,"Fees / expenses of professionals such as auditors, accountants, lawyers, etc. engaged to provide advice or opinion on how to affect something"
Department for Education,DEPARTMENT FOR EDUCATION,02/09/2019,Grants expenditure,Adoption and Children in Care Division,CORAM TRADING LIMITED,1041092840,35912.50,Grants to educational establishments or not for profit organisations including other businesses
Department for Education,DEPARTMENT FOR EDUCATION,02/09/2019,Grants expenditure,Adoption and Children in Care Division,BREAK CHARITY,1041092866,65319.44,Grants to educational establishments or not for profit organisations including other businesses
Department for Education,DEPARTMENT FOR EDUCATION,03/09/2019,Grants expenditure,Adoption and Children in Care Division,STOCKPORT MBC,1041092889,79565.00,Grants to local authorities / other establishments within aggregate external funding or aggregate exchequer grant
Department for Education,DEPARTMENT FOR EDUCATION,03/09/2019,Grants expenditure,Adoption and Children in Care Division,SOLIHULL MBC,1041092906,40000.00,Grants to local authorities / other establishments within aggregate external funding or aggregate exchequer grant
Department for Education,DEPARTMENT FOR EDUCATION,03/09/2019,Grants expenditure,Adoption and Children in Care Division,WOLVERHAMPTON CITY COUNCIL,1041092907,68000.00,Grants to local authorities / other establishments within aggregate external funding or aggregate exchequer grant
Department for Education,DEPARTMENT FOR EDUCATION,03/09/2019,Grants expenditure,Adoption and Children in Care Division,EAST SUSSEX COUNTY COUNCIL,1041092918,73350.00,Grants to local authorities / other establishments within aggregate external funding or aggregate exchequer grant
Department for Education,DEPARTMENT FOR EDUCATION,03/09/2019,Grants expenditure,Adoption and Children in Care Division,LONDON BOROUGH OF BRENT,1041093164,99400.00,Grants to local authorities / other establishments within aggregate external funding or aggregate exchequer grant
Department for Education,DEPARTMENT FOR EDUCATION,03/09/2019,Grants expenditure,Adoption and Children in Care Division,LANCASHIRE COUNTY COUNCIL,1041093165,51000.00,Grants to local authorities / other establishments within aggregate external funding or aggregate exchequer grant
Department for Education,DEPARTMENT FOR EDUCATION,03/09/2019,Grants expenditure,Adoption and Children in Care Division,SOMERSET COUNTY COUNCIL,1041093185,47000.00,Grants to local authorities / other establishments within aggregate external funding or aggregate exchequer grant
Department for Education,DEPARTMENT FOR EDUCATION,03/09/2019,Grants expenditure,Adoption and Children in Care Division,SUFFOLK COUNTY COUNCIL,1041093186,95381.00,Grants to local authorities / other establishments within aggregate external funding or aggregate exchequer grant
Department for Education,DEPARTMENT FOR EDUCATION,05/09/2019,Grants expenditure,Adoption and Children in Care Division,THE SHARE FOUNDATION 3RD PARTY TRUST,1041093327,41200.00,Grants to educational establishments or not for profit organisations including other businesses
Department for Education,DEPARTMENT FOR EDUCATION,12/09/2019,Consultancy,Adoption and Children in Care Division,DELOITTE,1041094008,38200.00,"Advisory services including fees, travel and expenses"
Department for Education,DEPARTMENT FOR EDUCATION,13/09/2019,Grants expenditure,Adoption and Children in Care Division,CAMBRIDGE EDUCATION,1041094074,1460000.00,Grants to educational establishments or not for profit organisations including other businesses
Department for Education,DEPARTMENT FOR EDUCATION,13/09/2019,Other Goods & Services,Adoption and Children in Care Division,SQW LTD,1041094084,30000.00,Research and Development
Department for Education,DEPARTMENT FOR EDUCATION,13/09/2019,Consultancy,Adoption and Children in Care Division,MINISTRY FOR HOUSING COMMUNITIES & LOCAL GOVERNMENT,1041094171,29657.14,"Advisory services including fees, travel and expenses"
Department for Education,DEPARTMENT FOR EDUCATION,13/09/2019,Grants expenditure,Adoption and Children in Care Division,THE SHARE FOUNDATION 3RD PARTY TRUST,1041094179,66200.00,Grants to educational establishments or not for profit organisations including other businesses
Department for Education,DEPARTMENT FOR EDUCATION,16/09/2019,Grants expenditure,Adoption and Children in Care Division,HAMPSHIRE COUNTY COUNCIL,1041094244,62795.00,Grants to local authorities / other establishments within aggregate external funding or aggregate exchequer grant
Department for Education,DEPARTMENT FOR EDUCATION,18/09/2019,"Marketing, Media and Comms",Adoption and Children in Care Division,SPECTRA FIRST LTD,1041094454,49311.32,"Publicity, advertising, media advertising campaigns (excluding recruitment adverts)"
Department for Education,DEPARTMENT FOR EDUCATION,19/09/2019,Grants expenditure,Adoption and Children in Care Division,PETERBOROUGH CITY COUNCIL,1041094574,72800.00,Grants to local authorities / other establishments within aggregate external funding or aggregate exchequer grant
Department for Education,DEPARTMENT FOR EDUCATION,19/09/2019,Grants expenditure,Adoption and Children in Care Division,DURHAM COUNTY COUNCIL,1041094576,118300.00,Grants to local authorities / other establishments within aggregate external funding or aggregate exchequer grant
Department for Education,DEPARTMENT FOR EDUCATION,19/09/2019,Grants expenditure,Adoption and Children in Care Division,LEEDS CITY COUNCIL,1041094585,45500.00,Grants to local authorities / other establishments within aggregate external funding or aggregate exchequer grant
Department for Education,DEPARTMENT FOR EDUCATION,19/09/2019,Grants expenditure,Adoption and Children in Care Division,NOTTINGHAMSHIRE COUNTY COUNCIL,1041094586,36400.00,Grants to local authorities / other establishments within aggregate external funding or aggregate exchequer grant
Department for Education,DEPARTMENT FOR EDUCATION,19/09/2019,Grants expenditure,Adoption and Children in Care Division,NORTHUMBERLAND COUNTY COUNCIL,1041094587,68250.00,Grants to local authorities / other establishments within aggregate external funding or aggregate exchequer grant
Department for Education,DEPARTMENT FOR EDUCATION,19/09/2019,Grants expenditure,Adoption and Children in Care Division,DEVON COUNTY COUNCIL,1041094606,45500.00,Grants to local authorities / other establishments within aggregate external funding or aggregate exchequer grant
Department for Education,DEPARTMENT FOR EDUCATION,19/09/2019,Grants expenditure,Adoption and Children in Care Division,NUGENT CARE,1041094646,49328.00,Grants to educational establishments or not for profit organisations including other businesses
Department for Education,DEPARTMENT FOR EDUCATION,19/09/2019,Other Goods & Services,Adoption and Children in Care Division,CORAM,1041094660,55836.92,"Fees / expenses of professionals such as auditors, accountants, lawyers, etc. engaged to provide advice or opinion on how to affect something"
Department for Education,DEPARTMENT FOR EDUCATION,19/09/2019,Grants expenditure,Adoption and Children in Care Division,EAST SUSSEX COUNTY COUNCIL,1041094670,31850.00,Grants to local authorities / other establishments within aggregate external funding or aggregate exchequer grant
Department for Education,DEPARTMENT FOR EDUCATION,24/09/2019,Consultancy,Adoption and Children in Care Division,DELOITTE,1041094962,44159.81,"Advisory services including fees, travel and expenses"
Department for Education,DEPARTMENT FOR EDUCATION,06/09/2019,"Marketing, Media and Comms",CHILDRENS SOCIAL CARE,SCROLL PROJECTS LTD,1041093479,64680.00,"Publicity, advertising, media advertising campaigns (excluding recruitment adverts)"
Department for Education,DEPARTMENT FOR EDUCATION,06/09/2019,"Marketing, Media and Comms",CHILDRENS SOCIAL CARE,SCROLL PROJECTS LTD,1041093479,12936.00,"Publicity, advertising, media advertising campaigns (excluding recruitment adverts)"
Department for Education,DEPARTMENT FOR EDUCATION,23/09/2019,Grants expenditure,STRATEGY SOCIAL MOBILITY OPPOTUNITY AREAS,STOKE ON TRENT CITY COUNCIL,1041094816,750000.00,Grants to local authorities / other establishments within aggregate external funding or aggregate exchequer grant
Department for Education,DEPARTMENT FOR EDUCATION,23/09/2019,Grants expenditure,STRATEGY SOCIAL MOBILITY OPPOTUNITY AREAS,EAST SUSSEX COUNTY COUNCIL,1041094824,750000.00,Grants to local authorities / other establishments within aggregate external funding or aggregate exchequer grant
Department for Education,DEPARTMENT FOR EDUCATION,23/09/2019,Grants expenditure,STRATEGY SOCIAL MOBILITY OPPOTUNITY AREAS,CAMBRIDGESHIRE COUNTY COUNCIL,1041094829,750000.00,Grants to local authorities / other establishments within aggregate external funding or aggregate exchequer grant
Department for Education,DEPARTMENT FOR EDUCATION,23/09/2019,Grants expenditure,STRATEGY SOCIAL MOBILITY OPPOTUNITY AREAS,DERBY CITY COUNCIL,1041094830,750000.00,Grants to local authorities / other establishments within aggregate external funding or aggregate exchequer grant
Department for Education,DEPARTMENT FOR EDUCATION,23/09/2019,Grants expenditure,STRATEGY SOCIAL MOBILITY OPPOTUNITY AREAS,NORTH YORKSHIRE COUNTY COUNCIL,1041094861,750000.00,Grants to local authorities / other establishments within aggregate external funding or aggregate exchequer grant
Department for Education,DEPARTMENT FOR EDUCATION,23/09/2019,Grants expenditure,STRATEGY SOCIAL MOBILITY OPPOTUNITY AREAS,DONCASTER MBC,1041094862,750000.00,Grants to local authorities / other establishments within aggregate external funding or aggregate exchequer grant
Department for Education,DEPARTMENT FOR EDUCATION,23/09/2019,Grants expenditure,STRATEGY SOCIAL MOBILITY OPPOTUNITY AREAS,BLACKPOOL BOROUGH COUNCIL,1041094863,750000.00,Grants to local authorities / other establishments within aggregate external funding or aggregate exchequer grant
Department for Education,DEPARTMENT FOR EDUCATION,23/09/2019,Grants expenditure,STRATEGY SOCIAL MOBILITY OPPOTUNITY AREAS,CITY OF BRADFORD METROPOLITAN DISTRICT COUNCIL,1041094864,1000000.00,Grants to local authorities / other establishments within aggregate external funding or aggregate exchequer grant
Department for Education,DEPARTMENT FOR EDUCATION,23/09/2019,Grants expenditure,STRATEGY SOCIAL MOBILITY OPPOTUNITY AREAS,NORFOLK COUNTY COUNCIL,1041094865,750000.00,Grants to local authorities / other establishments within aggregate external funding or aggregate exchequer grant
Department for Education,DEPARTMENT FOR EDUCATION,23/09/2019,Grants expenditure,STRATEGY SOCIAL MOBILITY OPPOTUNITY AREAS,SOMERSET COUNTY COUNCIL,1041094866,750000.00,Grants to local authorities / other establishments within aggregate external funding or aggregate exchequer grant
Department for Education,DEPARTMENT FOR EDUCATION,23/09/2019,Grants expenditure,STRATEGY SOCIAL MOBILITY OPPOTUNITY AREAS,SUFFOLK COUNTY COUNCIL,1041094867,750000.00,Grants to local authorities / other establishments within aggregate external funding or aggregate exchequer grant
Department for Education,DEPARTMENT FOR EDUCATION,23/09/2019,Grants expenditure,STRATEGY SOCIAL MOBILITY OPPOTUNITY AREAS,OLDHAM MBC,1041094869,1000000.00,Grants to local authorities / other establishments within aggregate external funding or aggregate exchequer grant
Department for Education,DEPARTMENT FOR EDUCATION,19/09/2019,Grants expenditure,CHILDRENS SOCIAL CARE,FAMILY LIVES,1041094668,71716.65,Grants to educational establishments or not for profit organisations including other businesses
Department for Education,DEPARTMENT FOR EDUCATION,04/09/2019,Other Goods & Services,STRATEGY SOCIAL MOBILITY OPPOTUNITY AREAS,NATIONAL CHILDRENS BUREAU,1041093196,45833.32,"Fees / expenses of professionals such as auditors, accountants, lawyers, etc. engaged to provide advice or opinion on how to affect something"
Department for Education,DEPARTMENT FOR EDUCATION,04/09/2019,Other Goods & Services,STRATEGY SOCIAL MOBILITY OPPOTUNITY AREAS,NATIONAL CHILDRENS BUREAU,1041093196,9166.66,"Fees / expenses of professionals such as auditors, accountants, lawyers, etc. engaged to provide advice or opinion on how to affect something"
Department for Education,DEPARTMENT FOR EDUCATION,09/09/2019,Other Goods & Services,STRATEGY SOCIAL MOBILITY OPPOTUNITY AREAS,CONTACT,1041093577,117911.27,"Fees / expenses of professionals such as auditors, accountants, lawyers, etc. engaged to provide advice or opinion on how to affect something"
Department for Education,DEPARTMENT FOR EDUCATION,09/09/2019,Other Goods & Services,STRATEGY SOCIAL MOBILITY OPPOTUNITY AREAS,CONTACT,1041093577,23582.25,"Fees / expenses of professionals such as auditors, accountants, lawyers, etc. engaged to provide advice or opinion on how to affect something"
Department for Education,DEPARTMENT FOR EDUCATION,16/09/2019,Other Goods & Services,STRATEGY SOCIAL MOBILITY OPPOTUNITY AREAS,NASEN,1041094230,36737.58,"Fees / expenses of professionals such as auditors, accountants, lawyers, etc. engaged to provide advice or opinion on how to affect something"
Department for Education,DEPARTMENT FOR EDUCATION,16/09/2019,Other Goods & Services,STRATEGY SOCIAL MOBILITY OPPOTUNITY AREAS,NASEN,1041094230,52776.24,"Fees / expenses of professionals such as auditors, accountants, lawyers, etc. engaged to provide advice or opinion on how to affect something"
Department for Education,DEPARTMENT FOR EDUCATION,16/09/2019,Other Goods & Services,STRATEGY SOCIAL MOBILITY OPPOTUNITY AREAS,NASEN,1041094230,7347.52,"Fees / expenses of professionals such as auditors, accountants, lawyers, etc. engaged to provide advice or opinion on how to affect something"
Department for Education,DEPARTMENT FOR EDUCATION,16/09/2019,Other Goods & Services,STRATEGY SOCIAL MOBILITY OPPOTUNITY AREAS,NASEN,1041094230,10555.25,"Fees / expenses of professionals such as auditors, accountants, lawyers, etc. engaged to provide advice or opinion on how to affect something"
Department for Education,DEPARTMENT FOR EDUCATION,02/09/2019,Grants expenditure,STRATEGY SOCIAL MOBILITY OPPOTUNITY AREAS,THE FAMILY FUND TRUST,1041092788,2505000.00,Grants to educational establishments or not for profit organisations including other businesses
Department for Education,DEPARTMENT FOR EDUCATION,11/09/2019,Other Goods & Services,STRATEGY SOCIAL MOBILITY OPPOTUNITY AREAS,HMCTS HM COURTS & TRIBUNALS SERVICE,1041093794,102641.00,"Fees / expenses of professionals such as auditors, accountants, lawyers, etc. engaged to provide advice or opinion on how to affect something"
Department for Education,DEPARTMENT FOR EDUCATION,25/09/2019,Other Goods & Services,STRATEGY SOCIAL MOBILITY OPPOTUNITY AREAS,HMCTS HM COURTS & TRIBUNALS SERVICE,1041095054,26260.00,"Fees / expenses of professionals such as auditors, accountants, lawyers, etc. engaged to provide advice or opinion on how to affect something"
Department for Education,DEPARTMENT FOR EDUCATION,27/09/2019,Other Goods & Services,STRATEGY SOCIAL MOBILITY OPPOTUNITY AREAS,HMCTS HM COURTS & TRIBUNALS SERVICE,1041095262,92545.00,"Fees / expenses of professionals such as auditors, accountants, lawyers, etc. engaged to provide advice or opinion on how to affect something"
Department for Education,DEPARTMENT FOR EDUCATION,27/09/2019,Other Goods & Services,STRATEGY SOCIAL MOBILITY OPPOTUNITY AREAS,HMCTS HM COURTS & TRIBUNALS SERVICE,1041095262,218540.00,"Fees / expenses of professionals such as auditors, accountants, lawyers, etc. engaged to provide advice or opinion on how to affect something"
Department for Education,DEPARTMENT FOR EDUCATION,02/09/2019,Grants expenditure,STRATEGY SOCIAL MOBILITY OPPOTUNITY AREAS,FRANCIS BARBER PRU,1041092757,45034.00,Grants to educational establishments or not for profit organisations including other businesses
Department for Education,DEPARTMENT FOR EDUCATION,02/09/2019,Grants expenditure,STRATEGY SOCIAL MOBILITY OPPOTUNITY AREAS,FUTURES ADVICE SKILLS & EMPLOYMENT,1041092759,44079.47,Grants to educational establishments or not for profit organisations including other businesses
Department for Education,DEPARTMENT FOR EDUCATION,02/09/2019,Grants expenditure,STRATEGY SOCIAL MOBILITY OPPOTUNITY AREAS,PORTSMOUTH CITY COUNCIL,1041092777,43843.02,Grants to local authorities / other establishments within aggregate external funding or aggregate exchequer grant
Department for Education,DEPARTMENT FOR EDUCATION,02/09/2019,Grants expenditure,STRATEGY SOCIAL MOBILITY OPPOTUNITY AREAS,COGNUS LTD,1041092778,54482.00,Grants to educational establishments or not for profit organisations including other businesses
Department for Education,DEPARTMENT FOR EDUCATION,16/09/2019,Grants expenditure,STRATEGY SOCIAL MOBILITY OPPOTUNITY AREAS,BRADFORD ALTERNATIVE PROVISION ACADEMY CENTRAL,1041094273,60415.15,Grants to educational establishments or not for profit organisations including other businesses
Department for Education,DEPARTMENT FOR EDUCATION,13/09/2019,Other Goods & Services,ASSESSMENT AND CURRICULUM AND GENERAL QUALIFICATIONS,SHEFFIELD HALLAM UNIVERSITY,1041094075,65856.00,Research and Development
Department for Education,DEPARTMENT FOR EDUCATION,18/09/2019,Professional Services Consultancy and Contingent Labour,ASSESSMENT AND CURRICULUM AND GENERAL QUALIFICATIONS,MATHEMATICS IN EDUCATION & INDUSTRY,1041094420,496703.00,Costs related to temporary workers
Department for Education,DEPARTMENT FOR EDUCATION,27/09/2019,Professional Services Consultancy and Contingent Labour,ASSESSMENT AND CURRICULUM AND GENERAL QUALIFICATIONS,TRIBAL EDUCATION,1041095273,243282.72,Costs related to temporary workers
Department for Education,DEPARTMENT FOR EDUCATION,27/09/2019,Professional Services Consultancy and Contingent Labour,ASSESSMENT AND CURRICULUM AND GENERAL QUALIFICATIONS,TRIBAL EDUCATION,1041095273,48656.54,Costs related to temporary workers
Department for Education,DEPARTMENT FOR EDUCATION,05/09/2019,Other Goods & Services,ASSESSMENT AND CURRICULUM AND GENERAL QUALIFICATIONS,IOP INSTITUTE OF PHYSICS,1041093346,137326.00,"Fees / expenses of professionals such as auditors, accountants, lawyers, etc. engaged to provide advice or opinion on how to affect something"
Department for Education,DEPARTMENT FOR EDUCATION,25/09/2019,Learning & Development,ASSESSMENT AND CURRICULUM AND GENERAL QUALIFICATIONS,STEM LEARNING LTD,1041095055,21666.67,Training & Development costs
Department for Education,DEPARTMENT FOR EDUCATION,25/09/2019,Learning & Development,ASSESSMENT AND CURRICULUM AND GENERAL QUALIFICATIONS,STEM LEARNING LTD,1041095055,36965.13,Training & Development costs
Department for Education,DEPARTMENT FOR EDUCATION,27/09/2019,Other Goods & Services,ASSESSMENT AND CURRICULUM AND GENERAL QUALIFICATIONS,IOP INSTITUTE OF PHYSICS,1041095354,137475.00,"Fees / expenses of professionals such as auditors, accountants, lawyers, etc. engaged to provide advice or opinion on how to affect something"
Department for Education,DEPARTMENT FOR EDUCATION,27/09/2019,Learning & Development,ASSESSMENT AND CURRICULUM AND GENERAL QUALIFICATIONS,STEM LEARNING LTD,1041095423,185833.00,Training & Development costs
Department for Education,DEPARTMENT FOR EDUCATION,17/09/2019,Other Goods & Services,ASSESSMENT AND CURRICULUM AND GENERAL QUALIFICATIONS,STEM LEARNING LTD,1041094347,411042.55,"Fees / expenses of professionals such as auditors, accountants, lawyers, etc. engaged to provide advice or opinion on how to affect something"
Department for Education,DEPARTMENT FOR EDUCATION,17/09/2019,Other Goods & Services,ASSESSMENT AND CURRICULUM AND GENERAL QUALIFICATIONS,STEM LEARNING LTD,1041094347,71429.83,"Fees / expenses of professionals such as auditors, accountants, lawyers, etc. engaged to provide advice or opinion on how to affect something"
Department for Education,DEPARTMENT FOR EDUCATION,17/09/2019,Other Goods & Services,ASSESSMENT AND CURRICULUM AND GENERAL QUALIFICATIONS,STEM LEARNING LTD,1041094347,45372.92,"Fees / expenses of professionals such as auditors, accountants, lawyers, etc. engaged to provide advice or opinion on how to affect something"
Department for Education,DEPARTMENT FOR EDUCATION,09/09/2019,Grants expenditure,SEND AND DISADVANTAGE GROUP,YOUTH SPORT TRUST,1041093564,86000.00,Grants to educational establishments or not for profit organisations including other businesses
Department for Education,DEPARTMENT FOR EDUCATION,23/09/2019,Other Goods & Services,SEND AND DISADVANTAGE GROUP,FAMILY ACTION,1041094882,431825.46,"Fees / expenses of professionals such as auditors, accountants, lawyers, etc. engaged to provide advice or opinion on how to affect something"
Department for Education,DEPARTMENT FOR EDUCATION,23/09/2019,Other Goods & Services,SEND AND DISADVANTAGE GROUP,FAMILY ACTION,1041094882,976316.71,"Fees / expenses of professionals such as auditors, accountants, lawyers, etc. engaged to provide advice or opinion on how to affect something"
Department for Education,DEPARTMENT FOR EDUCATION,23/09/2019,Other Goods & Services,SEND AND DISADVANTAGE GROUP,FAMILY ACTION,1041094882,86365.09,"Fees / expenses of professionals such as auditors, accountants, lawyers, etc. engaged to provide advice or opinion on how to affect something"
Department for Education,DEPARTMENT FOR EDUCATION,23/09/2019,Other Goods & Services,SEND AND DISADVANTAGE GROUP,FAMILY ACTION,1041094882,195263.34,"Fees / expenses of professionals such as auditors, accountants, lawyers, etc. engaged to provide advice or opinion on how to affect something"
Department for Education,DEPARTMENT FOR EDUCATION,24/09/2019,Grants expenditure,SEND AND DISADVANTAGE GROUP,STREETGAMES UK LTD,1041094977,244405.00,Grants to educational establishments or not for profit organisations including other businesses
Department for Education,DEPARTMENT FOR EDUCATION,04/09/2019,Other Goods & Services,SEND AND DISADVANTAGE GROUP,FARSIGHT CONSULTING LTD,1041093255,73075.00,Research and Development
Department for Education,DEPARTMENT FOR EDUCATION,24/09/2019,Other Goods & Services,SEND AND DISADVANTAGE GROUP,FARSIGHT CONSULTING LTD,1041094895,69095.00,Research and Development
Department for Education,DEPARTMENT FOR EDUCATION,09/09/2019,Grants expenditure,EY AND SCHOOLS STRATEGY TOTAL,INSTITUTE OF WELLBEING LTD,1041093568,29999.80,Grants to educational establishments or not for profit organisations including other businesses
Department for Education,DEPARTMENT FOR EDUCATION,16/09/2019,Grants expenditure,EY AND SCHOOLS STRATEGY TOTAL,THE SCOUT ASSOCIATION,1041094250,67290.09,Grants to educational establishments or not for profit organisations including other businesses
Department for Education,DEPARTMENT FOR EDUCATION,18/09/2019,Grants expenditure,TEACHERS AND TEACHING,COLLEGE OF TEACHING LTD,1041094507,104333.33,Grants to educational establishments or not for profit organisations including other businesses
Department for Education,DEPARTMENT FOR EDUCATION,09/09/2019,Grants expenditure,ASSESSMENT AND CURRICULUM AND GENERAL QUALIFICATIONS,CHOIR SCHOOLS ASSOCIATION BURSARY TRUST LTD,1041093537,25000.00,Grants to educational establishments or not for profit organisations including other businesses
Department for Education,DEPARTMENT FOR EDUCATION,19/09/2019,Grants expenditure,ASSESSMENT AND CURRICULUM AND GENERAL QUALIFICATIONS,CHOIR SCHOOLS ASSOCIATION BURSARY TRUST LTD,1041094679,6359756.00,Grants to educational establishments or not for profit organisations including other businesses
Department for Education,DEPARTMENT FOR EDUCATION,13/09/2019,Grants expenditure,ASSESSMENT AND CURRICULUM AND GENERAL QUALIFICATIONS,DEPARTMENT FOR CULTURE MEDIA & SPORT,30000618,18960000.00,Current grant funding to other government departments for DfE's contribution to jointly funded programmes 
Department for Education,DEPARTMENT FOR EDUCATION,13/09/2019,Grants expenditure,ASSESSMENT AND CURRICULUM AND GENERAL QUALIFICATIONS,DEPARTMENT FOR CULTURE MEDIA & SPORT,30000618,6250.00,Current grant funding to other government departments for DfE's contribution to jointly funded programmes 
Department for Education,DEPARTMENT FOR EDUCATION,13/09/2019,Grants expenditure,ASSESSMENT AND CURRICULUM AND GENERAL QUALIFICATIONS,DEPARTMENT FOR CULTURE MEDIA & SPORT,30000620,104852.50,Current grant funding to other government departments for DfE's contribution to jointly funded programmes 
Department for Education,DEPARTMENT FOR EDUCATION,13/09/2019,Grants expenditure,ASSESSMENT AND CURRICULUM AND GENERAL QUALIFICATIONS,DEPARTMENT FOR CULTURE MEDIA & SPORT,30000618,132457.75,Current grant funding to other government departments for DfE's contribution to jointly funded programmes 
Department for Education,DEPARTMENT FOR EDUCATION,13/09/2019,Grants expenditure,ASSESSMENT AND CURRICULUM AND GENERAL QUALIFICATIONS,DEPARTMENT FOR CULTURE MEDIA & SPORT,30000618,31250.00,Current grant funding to other government departments for DfE's contribution to jointly funded programmes 
Department for Education,DEPARTMENT FOR EDUCATION,13/09/2019,Grants expenditure,ASSESSMENT AND CURRICULUM AND GENERAL QUALIFICATIONS,DEPARTMENT FOR CULTURE MEDIA & SPORT,30000618,536250.00,Current grant funding to other government departments for DfE's contribution to jointly funded programmes 
Department for Education,DEPARTMENT FOR EDUCATION,13/09/2019,Grants expenditure,ASSESSMENT AND CURRICULUM AND GENERAL QUALIFICATIONS,DEPARTMENT FOR CULTURE MEDIA & SPORT,30000620,118750.00,Current grant funding to other government departments for DfE's contribution to jointly funded programmes 
Department for Education,DEPARTMENT FOR EDUCATION,13/09/2019,Grants expenditure,ASSESSMENT AND CURRICULUM AND GENERAL QUALIFICATIONS,DEPARTMENT FOR CULTURE MEDIA & SPORT,30000620,8819.25,Current grant funding to other government departments for DfE's contribution to jointly funded programmes 
Department for Education,DEPARTMENT FOR EDUCATION,13/09/2019,Grants expenditure,ASSESSMENT AND CURRICULUM AND GENERAL QUALIFICATIONS,DEPARTMENT FOR CULTURE MEDIA & SPORT,30000620,195560.75,Current grant funding to other government departments for DfE's contribution to jointly funded programmes 
Department for Education,DEPARTMENT FOR EDUCATION,13/09/2019,Grants expenditure,ASSESSMENT AND CURRICULUM AND GENERAL QUALIFICATIONS,DEPARTMENT FOR CULTURE MEDIA & SPORT,30000620,240000.00,Current grant funding to other government departments for DfE's contribution to jointly funded programmes 
Department for Education,DEPARTMENT FOR EDUCATION,13/09/2019,Grants expenditure,ASSESSMENT AND CURRICULUM AND GENERAL QUALIFICATIONS,DEPARTMENT FOR CULTURE MEDIA & SPORT,30000621,10000.00,Current grant funding to other government departments for DfE's contribution to jointly funded programmes 
Department for Education,DEPARTMENT FOR EDUCATION,13/09/2019,Grants expenditure,ASSESSMENT AND CURRICULUM AND GENERAL QUALIFICATIONS,DEPARTMENT FOR CULTURE MEDIA & SPORT,30000621,26250.00,Current grant funding to other government departments for DfE's contribution to jointly funded programmes 
Department for Education,DEPARTMENT FOR EDUCATION,19/09/2019,Contractors,ASSESSMENT AND CURRICULUM AND GENERAL QUALIFICATIONS,UNIVERSITY COLLEGE LONDON,1041094533,124362.36,Funding to deliver policies (excluding consultancy) paid to third parties via a service delivery contract
Department for Education,DEPARTMENT FOR EDUCATION,23/09/2019,"Marketing, Media and Comms",TEACHERS AND TEACHING,FARSIGHT CONSULTING LTD,1041094846,31030.50,"Reprographic, photo and design goods and services (excluding photocopiers, multifunctional devices and printers)"
Department for Education,DEPARTMENT FOR EDUCATION,27/09/2019,Grants expenditure,TEACHERS AND TEACHING,EAST SUSSEX COUNTY COUNCIL,1041095264,33986.00,Grants to educational establishments or not for profit organisations including other businesses
Department for Education,DEPARTMENT FOR EDUCATION,10/09/2019,Other Goods & Services,TEACHERS AND TEACHING,CAPITA BUSINESS SERVICES LTD,1041093722,45057.83,"Fees / expenses of professionals such as auditors, accountants, lawyers, etc. engaged to provide advice or opinion on how to affect something"
Department for Education,DEPARTMENT FOR EDUCATION,10/09/2019,Other Goods & Services,TEACHERS AND TEACHING,CAPITA BUSINESS SERVICES,1041093724,38727.17,"Fees / expenses of professionals such as auditors, accountants, lawyers, etc. engaged to provide advice or opinion on how to affect something"
Department for Education,DEPARTMENT FOR EDUCATION,10/09/2019,Other Goods & Services,TEACHERS AND TEACHING,CAPITA BUSINESS SERVICES,1041093724,789301.47,"Fees / expenses of professionals such as auditors, accountants, lawyers, etc. engaged to provide advice or opinion on how to affect something"
Department for Education,DEPARTMENT FOR EDUCATION,10/09/2019,Other Goods & Services,TEACHERS AND TEACHING,CAPITA BUSINESS SERVICES,1041093724,26520.00,"Fees / expenses of professionals such as auditors, accountants, lawyers, etc. engaged to provide advice or opinion on how to affect something"
Department for Education,DEPARTMENT FOR EDUCATION,11/09/2019,Other Goods & Services,TEACHERS AND TEACHING,CAPITA BUSINESS SERVICES,1041093828,38727.17,"Fees / expenses of professionals such as auditors, accountants, lawyers, etc. engaged to provide advice or opinion on how to affect something"
Department for Education,DEPARTMENT FOR EDUCATION,12/09/2019,Other Goods & Services,TEACHERS AND TEACHING,GOVERNMENT ACTUARYS DEPARTMENT,1041094010,23061.97,"Fees / expenses of professionals such as auditors, accountants, lawyers, etc. engaged to provide advice or opinion on how to affect something"
Department for Education,DEPARTMENT FOR EDUCATION,17/09/2019,Other Goods & Services,TEACHERS AND TEACHING,CAPITA BUSINESS SERVICES,1041094351,61390.53,"Fees / expenses of professionals such as auditors, accountants, lawyers, etc. engaged to provide advice or opinion on how to affect something"
Department for Education,DEPARTMENT FOR EDUCATION,18/09/2019,Other Goods & Services,TEACHERS AND TEACHING,CAPITA BUSINESS SERVICES,1041094518,82361.89,"Fees / expenses of professionals such as auditors, accountants, lawyers, etc. engaged to provide advice or opinion on how to affect something"
Department for Education,DEPARTMENT FOR EDUCATION,27/09/2019,Other Goods & Services,TEACHERS AND TEACHING,GOVERNMENT ACTUARYS DEPARTMENT,1041095370,31240.38,"Fees / expenses of professionals such as auditors, accountants, lawyers, etc. engaged to provide advice or opinion on how to affect something"
Department for Education,DEPARTMENT FOR EDUCATION,11/09/2019,"Marketing, Media and Comms",EY AND SCHOOLS STRATEGY TOTAL,MINISTRY OF JUSTICE,1041093758,51200.00,"Reprographic, photo and design goods and services (excluding photocopiers, multifunctional devices and printers)"
Department for Education,DEPARTMENT FOR EDUCATION,09/09/2019,Grants expenditure,EY AND SCHOOLS STRATEGY TOTAL,IMPROVEMENT & DEVELOPMENT AGENCY FOR LOCAL GOVERNMENT,1041093539,88348.00,Grants to educational establishments or not for profit organisations including other businesses
Department for Education,DEPARTMENT FOR EDUCATION,25/09/2019,"Marketing, Media and Comms",EY AND SCHOOLS STRATEGY TOTAL,23RED LTD,1041095083,40121.85,"Reprographic, photo and design goods and services (excluding photocopiers, multifunctional devices and printers)"
Department for Education,DEPARTMENT FOR EDUCATION,27/09/2019,Learning & Development,EY AND SCHOOLS STRATEGY TOTAL,EDUCATION DEVELOPMENT TRUST,1041095422,65763.89,Training & Development costs
Department for Education,DEPARTMENT FOR EDUCATION,04/09/2019,IS/IT,TEACHING WORKFORCE TOTAL,FARSIGHT CONSULTING LTD,1041093255,70285.00,IS/IT Systems Operations
Department for Education,DEPARTMENT FOR EDUCATION,17/09/2019,IS/IT,TEACHING WORKFORCE TOTAL,FARSIGHT CONSULTING LTD,1041094318,33563.50,IS/IT Systems Operations
Department for Education,DEPARTMENT FOR EDUCATION,17/09/2019,Other Goods & Services,TEACHING WORKFORCE TOTAL,TELEPERFORMANCE LTD,1041094320,29195.00,"Fees / expenses of professionals such as auditors, accountants, lawyers, etc. engaged to provide advice or opinion on how to affect something"
Department for Education,DEPARTMENT FOR EDUCATION,17/09/2019,Other Goods & Services,TEACHING WORKFORCE TOTAL,TELEPERFORMANCE LTD,1041094320,60529.45,"Fees / expenses of professionals such as auditors, accountants, lawyers, etc. engaged to provide advice or opinion on how to affect something"
Department for Education,DEPARTMENT FOR EDUCATION,03/09/2019,"Marketing, Media and Comms",TEACHING WORKFORCE TOTAL,OMD GROUP TA MANNING GOTTLIEB OMD LTD,1041093065,27500.00,"Publicity, advertising, media advertising campaigns (excluding recruitment adverts)"
Department for Education,DEPARTMENT FOR EDUCATION,13/09/2019,Other Goods & Services,TEACHING WORKFORCE TOTAL,TELEPERFORMANCE LTD,1041094112,423253.23,"Fees / expenses of professionals such as auditors, accountants, lawyers, etc. engaged to provide advice or opinion on how to affect something"
Department for Education,DEPARTMENT FOR EDUCATION,18/09/2019,Other Goods & Services,TEACHING WORKFORCE TOTAL,UCAS,1041094431,47529.10,"Fees / expenses of professionals such as auditors, accountants, lawyers, etc. engaged to provide advice or opinion on how to affect something"
Department for Education,DEPARTMENT FOR EDUCATION,18/09/2019,Other Goods & Services,TEACHING WORKFORCE TOTAL,UCAS,1041094431,9505.82,"Fees / expenses of professionals such as auditors, accountants, lawyers, etc. engaged to provide advice or opinion on how to affect something"
Department for Education,DEPARTMENT FOR EDUCATION,04/09/2019,Other Goods & Services,TEACHING WORKFORCE TOTAL,DODS PARLIAMENTARY COMMUNICATIONS LTD,1041093234,159002.25,"Conferences, exhibitions and events"
Department for Education,DEPARTMENT FOR EDUCATION,04/09/2019,"Marketing, Media and Comms",TEACHING WORKFORCE TOTAL,DODS PARLIAMENTARY COMMUNICATIONS LTD,1041093234,69884.30,"Publicity, advertising, media advertising campaigns (excluding recruitment adverts)"
Department for Education,DEPARTMENT FOR EDUCATION,03/09/2019,"Marketing, Media and Comms",TEACHING WORKFORCE TOTAL,OMD GROUP TA MANNING GOTTLIEB OMD LTD,1041093065,159097.79,"Publicity, advertising, media advertising campaigns (excluding recruitment adverts)"
Department for Education,DEPARTMENT FOR EDUCATION,03/09/2019,"Marketing, Media and Comms",TEACHING WORKFORCE TOTAL,OMD GROUP TA MANNING GOTTLIEB OMD LTD,1041093065,75949.25,"Publicity, advertising, media advertising campaigns (excluding recruitment adverts)"
Department for Education,DEPARTMENT FOR EDUCATION,03/09/2019,"Marketing, Media and Comms",TEACHING WORKFORCE TOTAL,HAVAS WORLDWIDE LONDON LTD,1041093087,63822.91,"Publicity, advertising, media advertising campaigns (excluding recruitment adverts)"
Department for Education,DEPARTMENT FOR EDUCATION,23/09/2019,"Marketing, Media and Comms",TEACHING WORKFORCE TOTAL,OMD GROUP TA MANNING GOTTLIEB OMD LTD,1041094837,27984.77,"Publicity, advertising, media advertising campaigns (excluding recruitment adverts)"
Department for Education,DEPARTMENT FOR EDUCATION,23/09/2019,"Marketing, Media and Comms",TEACHING WORKFORCE TOTAL,OMD GROUP TA MANNING GOTTLIEB OMD LTD,1041094837,47602.17,"Publicity, advertising, media advertising campaigns (excluding recruitment adverts)"
Department for Education,DEPARTMENT FOR EDUCATION,23/09/2019,"Marketing, Media and Comms",TEACHING WORKFORCE TOTAL,OMD GROUP TA MANNING GOTTLIEB OMD LTD,1041094837,72477.01,"Publicity, advertising, media advertising campaigns (excluding recruitment adverts)"
Department for Education,DEPARTMENT FOR EDUCATION,27/09/2019,"Marketing, Media and Comms",TEACHING WORKFORCE TOTAL,OMD GROUP TA MANNING GOTTLIEB OMD LTD,1041095250,67299.45,"Publicity, advertising, media advertising campaigns (excluding recruitment adverts)"
Department for Education,DEPARTMENT FOR EDUCATION,27/09/2019,"Marketing, Media and Comms",TEACHING WORKFORCE TOTAL,OMD GROUP TA MANNING GOTTLIEB OMD LTD,1041095250,90440.02,"Publicity, advertising, media advertising campaigns (excluding recruitment adverts)"
Department for Education,DEPARTMENT FOR EDUCATION,27/09/2019,"Marketing, Media and Comms",TEACHING WORKFORCE TOTAL,OMD GROUP TA MANNING GOTTLIEB OMD LTD,1041095250,367905.42,"Publicity, advertising, media advertising campaigns (excluding recruitment adverts)"
Department for Education,DEPARTMENT FOR EDUCATION,27/09/2019,Other Goods & Services,TEACHING WORKFORCE TOTAL,POPULUS LTD,1041095409,23250.00,Research and Development
Department for Education,DEPARTMENT FOR EDUCATION,30/09/2019,"Marketing, Media and Comms",TEACHING WORKFORCE TOTAL,HAVAS WORLDWIDE LONDON LTD,1041095557,61486.40,"Publicity, advertising, media advertising campaigns (excluding recruitment adverts)"
Department for Education,DEPARTMENT FOR EDUCATION,05/09/2019,IS/IT,TEACHING WORKFORCE TOTAL,OLIVE JAR DIGITAL LTD,1041093413,83333.60,Partial payment for IT hardware / consumables
Department for Education,DEPARTMENT FOR EDUCATION,05/09/2019,IS/IT,TEACHING WORKFORCE TOTAL,OLIVE JAR DIGITAL LTD,1041093413,16666.72,Partial payment for IT hardware / consumables
Department for Education,DEPARTMENT FOR EDUCATION,04/09/2019,IS/IT,TEACHING WORKFORCE TOTAL,MADE TECH LTD,1041093217,23520.00,Partial payment for IT hardware / consumables
Department for Education,DEPARTMENT FOR EDUCATION,30/09/2019,"Marketing, Media and Comms",TEACHING WORKFORCE TOTAL,OMD GROUP TA MANNING GOTTLIEB OMD LTD,1041095536,41400.54,"Publicity, advertising, media advertising campaigns (excluding recruitment adverts)"
Department for Education,DEPARTMENT FOR EDUCATION,04/09/2019,IS/IT,TEACHING WORKFORCE TOTAL,MADE TECH LTD,1041093217,32532.50,Partial payment for IT hardware / consumables
Department for Education,DEPARTMENT FOR EDUCATION,04/09/2019,IS/IT,TEACHING WORKFORCE TOTAL,FARSIGHT CONSULTING LTD,1041093255,26000.00,Partial payment for IT hardware / consumables
Department for Education,DEPARTMENT FOR EDUCATION,13/09/2019,IS/IT,TEACHING WORKFORCE TOTAL,BAE SYSTEMS APPLIED INTELLIGENCE LTD,1041094093,32720.00,Partial payment for IT hardware / consumables
Department for Education,DEPARTMENT FOR EDUCATION,16/09/2019,IS/IT,TEACHING WORKFORCE TOTAL,FARSIGHT CONSULTING LTD,1041094203,23075.00,Partial payment for IT hardware / consumables
Department for Education,DEPARTMENT FOR EDUCATION,24/09/2019,IS/IT,TEACHING WORKFORCE TOTAL,ENGINE PARTNERS UK LLP TRANSFORM,1041094915,53000.00,Partial payment for IT hardware / consumables
Department for Education,DEPARTMENT FOR EDUCATION,09/09/2019,IS/IT,TEACHING WORKFORCE TOTAL,TISSKI LTD,1041093588,27090.00,IS/IT Systems Operations
Department for Education,DEPARTMENT FOR EDUCATION,25/09/2019,IS/IT,TEACHING WORKFORCE TOTAL,TISSKI LTD,1041095112,22876.00,IS/IT Systems Operations
Department for Education,DEPARTMENT FOR EDUCATION,06/09/2019,Other Goods & Services,TEACHING WORKFORCE TOTAL,PROSPERO GROUP LTD,1041093500,52415.50,"Fees / expenses of professionals such as auditors, accountants, lawyers, etc. engaged to provide advice or opinion on how to affect something"
Department for Education,DEPARTMENT FOR EDUCATION,06/09/2019,Other Goods & Services,TEACHING WORKFORCE TOTAL,PROSPERO GROUP LTD,1041093500,10483.10,"Fees / expenses of professionals such as auditors, accountants, lawyers, etc. engaged to provide advice or opinion on how to affect something"
Department for Education,DEPARTMENT FOR EDUCATION,19/09/2019,Grants expenditure,TEACHING WORKFORCE TOTAL,THE CARDINAL VAUGHAN MEMORIAL RC SCHOOL,1041094669,34680.00,Grants to educational establishments or not for profit organisations including other businesses
Department for Education,DEPARTMENT FOR EDUCATION,09/09/2019,Learning & Development,TEACHING WORKFORCE TOTAL,ARK UK PROGRAMMES,1041093571,48900.00,Training & Development costs
Department for Education,DEPARTMENT FOR EDUCATION,10/09/2019,Learning & Development,TEACHING WORKFORCE TOTAL, COGNITION EDUCATION,1041093646,51810.00,Training & Development costs
Department for Education,DEPARTMENT FOR EDUCATION,17/09/2019,Other Goods & Services,TEACHING WORKFORCE TOTAL,TELEPERFORMANCE LTD,1041094320,32169.50,"Fees / expenses of professionals such as auditors, accountants, lawyers, etc. engaged to provide advice or opinion on how to affect something"
Department for Education,DEPARTMENT FOR EDUCATION,02/09/2019,Learning & Development,TEACHING WORKFORCE TOTAL,THE BRILLIANT CLUB,1041092835,153992.64,Training & Development costs
Department for Education,DEPARTMENT FOR EDUCATION,02/09/2019,Learning & Development,TEACHING WORKFORCE TOTAL,EDUCATION DEVELOPMENT TRUST,1041092839,83881.19,Training & Development costs
Department for Education,DEPARTMENT FOR EDUCATION,30/09/2019,Grants expenditure,TEACHING WORKFORCE TOTAL,UNIVERSITY OF THE WEST OF ENGLAND,1041095512,26242.86,Grants to educational establishments or not for profit organisations including other businesses
Department for Education,DEPARTMENT FOR EDUCATION,30/09/2019,Grants expenditure,TEACHING WORKFORCE TOTAL,HIBERNIA COLLEGE UK,1041095524,333213.65,Grants to educational establishments or not for profit organisations including other businesses
Department for Education,DEPARTMENT FOR EDUCATION,30/09/2019,Grants expenditure,TEACHING WORKFORCE TOTAL,THE GORSE ACADEMIES TRUST,1041095562,50315.38,Grants to educational establishments or not for profit organisations including other businesses
Department for Education,DEPARTMENT FOR EDUCATION,30/09/2019,Grants expenditure,TEACHING WORKFORCE TOTAL,ST MARY & ST PAULS CE PRIMARY SCHOOL TS ACCOUNT,1041095583,139485.48,Grants to educational establishments or not for profit organisations including other businesses
Department for Education,DEPARTMENT FOR EDUCATION,30/09/2019,Grants expenditure,TEACHING WORKFORCE TOTAL,UNIVERSITY OF SUSSEX,1041095607,285192.59,Grants to educational establishments or not for profit organisations including other businesses
Department for Education,DEPARTMENT FOR EDUCATION,30/09/2019,Grants expenditure,TEACHING WORKFORCE TOTAL,UNIVERSITY OF SUNDERLAND,1041095620,25600.00,Grants to educational establishments or not for profit organisations including other businesses
Department for Education,DEPARTMENT FOR EDUCATION,25/09/2019,Learning & Development,TEACHING WORKFORCE TOTAL,TEACH FIRST,1041095045,2519614.27,Training & Development costs
Department for Education,DEPARTMENT FOR EDUCATION,03/09/2019,Grants expenditure,TEACHING WORKFORCE TOTAL,STAR ACADEMIES,1041092872,34290.00,Grants to educational establishments or not for profit organisations including other businesses
Department for Education,DEPARTMENT FOR EDUCATION,03/09/2019,Grants expenditure,TEACHING WORKFORCE TOTAL,NOTTINGHAMSHIRE TORCH SCITT,1041092875,71910.00,Grants to educational establishments or not for profit organisations including other businesses
Department for Education,DEPARTMENT FOR EDUCATION,03/09/2019,Grants expenditure,TEACHING WORKFORCE TOTAL,LINCOLNSHIRE TEACHING SCHOOL ALLIANCE,1041092876,50130.00,Grants to educational establishments or not for profit organisations including other businesses
Department for Education,DEPARTMENT FOR EDUCATION,03/09/2019,Grants expenditure,TEACHING WORKFORCE TOTAL,PENNINE LANCASHIRE SCITT,1041092879,33660.00,Grants to educational establishments or not for profit organisations including other businesses
Department for Education,DEPARTMENT FOR EDUCATION,03/09/2019,Grants expenditure,TEACHING WORKFORCE TOTAL,GEORGE SPENCER TRAINING SCHOOL,1041092880,38700.00,Grants to educational establishments or not for profit organisations including other businesses
Department for Education,DEPARTMENT FOR EDUCATION,03/09/2019,Grants expenditure,TEACHING WORKFORCE TOTAL,GEORGE ABBOT ACADEMY,1041092881,33390.00,Grants to educational establishments or not for profit organisations including other businesses
Department for Education,DEPARTMENT FOR EDUCATION,03/09/2019,Grants expenditure,TEACHING WORKFORCE TOTAL,SHEFFIELD HALLAM UNIVERSITY,1041092885,494520.00,Grants to educational establishments or not for profit organisations including other businesses
Department for Education,DEPARTMENT FOR EDUCATION,03/09/2019,Grants expenditure,TEACHING WORKFORCE TOTAL,PADDINGTON ACADEMY,1041092886,101970.00,Grants to educational establishments or not for profit organisations including other businesses
Department for Education,DEPARTMENT FOR EDUCATION,03/09/2019,Grants expenditure,TEACHING WORKFORCE TOTAL,THE UNIVERSITY OF MANCHESTER,1041092887,351540.00,Grants to educational establishments or not for profit organisations including other businesses
Department for Education,DEPARTMENT FOR EDUCATION,03/09/2019,Grants expenditure,TEACHING WORKFORCE TOTAL,LOUGHBOROUGH UNIVERSITY ENTERPRISE LTD,1041092888,33600.00,Grants to educational establishments or not for profit organisations including other businesses
Department for Education,DEPARTMENT FOR EDUCATION,03/09/2019,Grants expenditure,TEACHING WORKFORCE TOTAL,HUDDERSFIELD HORIZON SCITT,1041092891,28530.00,Grants to educational establishments or not for profit organisations including other businesses
Department for Education,DEPARTMENT FOR EDUCATION,03/09/2019,Grants expenditure,TEACHING WORKFORCE TOTAL,THE NATIONAL MODERN LANGUAGES SCITT,1041092892,112320.00,Grants to educational establishments or not for profit organisations including other businesses
Department for Education,DEPARTMENT FOR EDUCATION,03/09/2019,Grants expenditure,TEACHING WORKFORCE TOTAL,TEACH KENT & SUSSEX,1041092893,30150.00,Grants to educational establishments or not for profit organisations including other businesses
Department for Education,DEPARTMENT FOR EDUCATION,03/09/2019,Grants expenditure,TEACHING WORKFORCE TOTAL,MANCHESTER NEXUS SCITT,1041092894,69840.00,Grants to educational establishments or not for profit organisations including other businesses
Department for Education,DEPARTMENT FOR EDUCATION,03/09/2019,Grants expenditure,TEACHING WORKFORCE TOTAL,THE OAKS SCITT,1041092896,107550.00,Grants to educational establishments or not for profit organisations including other businesses
Department for Education,DEPARTMENT FOR EDUCATION,03/09/2019,Grants expenditure,TEACHING WORKFORCE TOTAL,ST GEORGES ACADEMY SCITT,1041092897,49410.00,Grants to educational establishments or not for profit organisations including other businesses
Department for Education,DEPARTMENT FOR EDUCATION,03/09/2019,Grants expenditure,TEACHING WORKFORCE TOTAL,CHILTERN TRAINING GROUP,1041092901,47250.00,Grants to educational establishments or not for profit organisations including other businesses
Department for Education,DEPARTMENT FOR EDUCATION,03/09/2019,Grants expenditure,TEACHING WORKFORCE TOTAL,CARMEL TEACHER TRAINING PARTNERSHIP,1041092902,63180.00,Grants to educational establishments or not for profit organisations including other businesses
Department for Education,DEPARTMENT FOR EDUCATION,03/09/2019,Grants expenditure,TEACHING WORKFORCE TOTAL,CANTERBURY CHRIST CHURCH UNIVERSITY,1041092903,303570.00,Grants to educational establishments or not for profit organisations including other businesses
Department for Education,DEPARTMENT FOR EDUCATION,03/09/2019,Grants expenditure,TEACHING WORKFORCE TOTAL,BRUNEL UNIVERSITY,1041092904,103080.00,Grants to educational establishments or not for profit organisations including other businesses
Department for Education,DEPARTMENT FOR EDUCATION,03/09/2019,Grants expenditure,TEACHING WORKFORCE TOTAL,BROMLEY SCHOOLS COLLEGIATE,1041092905,53640.00,Grants to educational establishments or not for profit organisations including other businesses
Department for Education,DEPARTMENT FOR EDUCATION,03/09/2019,Grants expenditure,TEACHING WORKFORCE TOTAL,ARK SCHOOLS,1041092914,116460.00,Grants to educational establishments or not for profit organisations including other businesses
Department for Education,DEPARTMENT FOR EDUCATION,03/09/2019,Grants expenditure,TEACHING WORKFORCE TOTAL,LEICESTERSHIRE SECONDARY SCITT,1041092916,89010.00,Grants to educational establishments or not for profit organisations including other businesses
Department for Education,DEPARTMENT FOR EDUCATION,03/09/2019,Grants expenditure,TEACHING WORKFORCE TOTAL,THE COMPTON SCHOOL,1041092917,27090.00,Grants to educational establishments or not for profit organisations including other businesses
Department for Education,DEPARTMENT FOR EDUCATION,03/09/2019,Grants expenditure,TEACHING WORKFORCE TOTAL,BOURNEMOUTH POOLE & DORSET EAST SECONDARY,1041092920,61830.00,Grants to educational establishments or not for profit organisations including other businesses
Department for Education,DEPARTMENT FOR EDUCATION,03/09/2019,Grants expenditure,TEACHING WORKFORCE TOTAL,BISHOP GROSSETESTE COLLEGE,1041092921,168480.00,Grants to educational establishments or not for profit organisations including other businesses
Department for Education,DEPARTMENT FOR EDUCATION,03/09/2019,Grants expenditure,TEACHING WORKFORCE TOTAL,BIRMINGHAM CITY UNIVERSITY,1041092922,309330.00,Grants to educational establishments or not for profit organisations including other businesses
Department for Education,DEPARTMENT FOR EDUCATION,03/09/2019,Grants expenditure,TEACHING WORKFORCE TOTAL,BATH SPA UNIVERSITY,1041092923,258570.00,Grants to educational establishments or not for profit organisations including other businesses
Department for Education,DEPARTMENT FOR EDUCATION,03/09/2019,Grants expenditure,TEACHING WORKFORCE TOTAL,ROYAL WOOTTON BASSETT ACADEMY,1041092930,31500.00,Grants to educational establishments or not for profit organisations including other businesses
Department for Education,DEPARTMENT FOR EDUCATION,03/09/2019,Grants expenditure,TEACHING WORKFORCE TOTAL,NORWICH CITY COLLEGE,1041092932,58140.00,Grants to educational establishments or not for profit organisations including other businesses
Department for Education,DEPARTMENT FOR EDUCATION,03/09/2019,Grants expenditure,TEACHING WORKFORCE TOTAL,THE CHERWELL SCHOOL TS ACCOUNT,1041092933,69030.00,Grants to educational establishments or not for profit organisations including other businesses
Department for Education,DEPARTMENT FOR EDUCATION,03/09/2019,Grants expenditure,TEACHING WORKFORCE TOTAL,FYLDE COAST TEACHING SCHOOL,1041092934,34920.00,Grants to educational establishments or not for profit organisations including other businesses
Department for Education,DEPARTMENT FOR EDUCATION,03/09/2019,Grants expenditure,TEACHING WORKFORCE TOTAL,ALBAN FEDERATION,1041092935,64710.00,Grants to educational establishments or not for profit organisations including other businesses
Department for Education,DEPARTMENT FOR EDUCATION,03/09/2019,Grants expenditure,TEACHING WORKFORCE TOTAL,LEEDS TRINITY UNIVERSITY COLLEGE,1041092936,307170.00,Grants to educational establishments or not for profit organisations including other businesses
Department for Education,DEPARTMENT FOR EDUCATION,03/09/2019,Grants expenditure,TEACHING WORKFORCE TOTAL,LEEDS CITY COUNCIL,1041092937,45990.00,Grants to educational establishments or not for profit organisations including other businesses
Department for Education,DEPARTMENT FOR EDUCATION,03/09/2019,Grants expenditure,TEACHING WORKFORCE TOTAL,GLOUCESTERSHIRE INITIAL TEACHER EDUCATION PARTNERSHIP,1041092938,112140.00,Grants to educational establishments or not for profit organisations including other businesses
Department for Education,DEPARTMENT FOR EDUCATION,03/09/2019,Grants expenditure,TEACHING WORKFORCE TOTAL,ESSEX COUNTY COUNCIL,1041092939,26460.00,Grants to educational establishments or not for profit organisations including other businesses
Department for Education,DEPARTMENT FOR EDUCATION,03/09/2019,Grants expenditure,TEACHING WORKFORCE TOTAL,PIMLICO ACADEMY,1041092947,35640.00,Grants to educational establishments or not for profit organisations including other businesses
Department for Education,DEPARTMENT FOR EDUCATION,03/09/2019,Grants expenditure,TEACHING WORKFORCE TOTAL,DURHAM SECONDARY APPLIED SCITT,1041092948,107820.00,Grants to educational establishments or not for profit organisations including other businesses
Department for Education,DEPARTMENT FOR EDUCATION,03/09/2019,Grants expenditure,TEACHING WORKFORCE TOTAL,THE ARTHUR TERRY SCHOOL SCITT,1041092950,60120.00,Grants to educational establishments or not for profit organisations including other businesses
Department for Education,DEPARTMENT FOR EDUCATION,03/09/2019,Grants expenditure,TEACHING WORKFORCE TOTAL,SUFFOLK COUNTY COUNCIL,1041092952,94320.00,Grants to educational establishments or not for profit organisations including other businesses
Department for Education,DEPARTMENT FOR EDUCATION,03/09/2019,Grants expenditure,TEACHING WORKFORCE TOTAL,STOCKTON ON TEES,1041092954,27000.00,Grants to educational establishments or not for profit organisations including other businesses
Department for Education,DEPARTMENT FOR EDUCATION,03/09/2019,Grants expenditure,TEACHING WORKFORCE TOTAL,NOTTINGHAM TRENT UNIVERSITY,1041092964,146880.00,Grants to educational establishments or not for profit organisations including other businesses
Department for Education,DEPARTMENT FOR EDUCATION,03/09/2019,Grants expenditure,TEACHING WORKFORCE TOTAL,KINGSTON UNIVERSITY,1041092968,44370.00,Grants to educational establishments or not for profit organisations including other businesses
Department for Education,DEPARTMENT FOR EDUCATION,03/09/2019,Grants expenditure,TEACHING WORKFORCE TOTAL,CHEADLE HULME HIGH SCHOOL,1041092970,49230.00,Grants to educational establishments or not for profit organisations including other businesses
Department for Education,DEPARTMENT FOR EDUCATION,03/09/2019,Grants expenditure,TEACHING WORKFORCE TOTAL,BLUECOAT ACADEMY,1041092972,52740.00,Grants to educational establishments or not for profit organisations including other businesses
Department for Education,DEPARTMENT FOR EDUCATION,03/09/2019,Grants expenditure,TEACHING WORKFORCE TOTAL,THE THETFORD ACADEMY,1041092973,36360.00,Grants to educational establishments or not for profit organisations including other businesses
Department for Education,DEPARTMENT FOR EDUCATION,03/09/2019,Grants expenditure,TEACHING WORKFORCE TOTAL,UNIVERSITY OF SHEFFIELD,1041092974,240120.00,Grants to educational establishments or not for profit organisations including other businesses
Department for Education,DEPARTMENT FOR EDUCATION,03/09/2019,Grants expenditure,TEACHING WORKFORCE TOTAL,UNIVERSITY OF SUSSEX,1041092988,523320.00,Grants to educational establishments or not for profit organisations including other businesses
Department for Education,DEPARTMENT FOR EDUCATION,03/09/2019,Grants expenditure,TEACHING WORKFORCE TOTAL,CORNWALL SCITT,1041092989,94140.00,Grants to educational establishments or not for profit organisations including other businesses
Department for Education,DEPARTMENT FOR EDUCATION,03/09/2019,Grants expenditure,TEACHING WORKFORCE TOTAL,ST MARYS UNIVERSITY COLLEGE,1041092990,258120.00,Grants to educational establishments or not for profit organisations including other businesses
Department for Education,DEPARTMENT FOR EDUCATION,03/09/2019,Grants expenditure,TEACHING WORKFORCE TOTAL,UNIVERSITY OF WARWICK,1041092991,355140.00,Grants to educational establishments or not for profit organisations including other businesses
Department for Education,DEPARTMENT FOR EDUCATION,03/09/2019,Grants expenditure,TEACHING WORKFORCE TOTAL,AMP SCITT,1041092993,59940.00,Grants to educational establishments or not for profit organisations including other businesses
Department for Education,DEPARTMENT FOR EDUCATION,03/09/2019,Grants expenditure,TEACHING WORKFORCE TOTAL,THE ROYAL LATIN SCHOOL,1041092994,54720.00,Grants to educational establishments or not for profit organisations including other businesses
Department for Education,DEPARTMENT FOR EDUCATION,03/09/2019,Grants expenditure,TEACHING WORKFORCE TOTAL,DENBIGH ALLIANCE,1041092996,36630.00,Grants to educational establishments or not for profit organisations including other businesses
Department for Education,DEPARTMENT FOR EDUCATION,03/09/2019,Grants expenditure,TEACHING WORKFORCE TOTAL,LEEDS BECKETT UNIVERSITY,1041092997,56430.00,Grants to educational establishments or not for profit organisations including other businesses
Department for Education,DEPARTMENT FOR EDUCATION,03/09/2019,Grants expenditure,TEACHING WORKFORCE TOTAL,WYCOMBE HIGH SCHOOL,1041092998,77580.00,Grants to educational establishments or not for profit organisations including other businesses
Department for Education,DEPARTMENT FOR EDUCATION,03/09/2019,Grants expenditure,TEACHING WORKFORCE TOTAL,UNIVERSITY OF HUDDERSFIELD,1041093009,170280.00,Grants to educational establishments or not for profit organisations including other businesses
Department for Education,DEPARTMENT FOR EDUCATION,03/09/2019,Grants expenditure,TEACHING WORKFORCE TOTAL,KENT & MEDWAY TRAINING,1041093011,134190.00,Grants to educational establishments or not for profit organisations including other businesses
Department for Education,DEPARTMENT FOR EDUCATION,03/09/2019,Grants expenditure,TEACHING WORKFORCE TOTAL,MID SOMERSET CONSORTIUM FOR TEACHER TRAINING,1041093012,52290.00,Grants to educational establishments or not for profit organisations including other businesses
Department for Education,DEPARTMENT FOR EDUCATION,03/09/2019,Grants expenditure,TEACHING WORKFORCE TOTAL,ST JOSEPH'S COLLEGE,1041093013,26460.00,Grants to educational establishments or not for profit organisations including other businesses
Department for Education,DEPARTMENT FOR EDUCATION,03/09/2019,Grants expenditure,TEACHING WORKFORCE TOTAL,NOTRE DAME HIGH SCHOOL,1041093014,67680.00,Grants to educational establishments or not for profit organisations including other businesses
Department for Education,DEPARTMENT FOR EDUCATION,03/09/2019,Grants expenditure,TEACHING WORKFORCE TOTAL,THORNDEN SCHOOL,1041093016,44010.00,Grants to educational establishments or not for profit organisations including other businesses
Department for Education,DEPARTMENT FOR EDUCATION,03/09/2019,Grants expenditure,TEACHING WORKFORCE TOTAL,LIVERPOOL JOHN MOORES UNIVERSITY,1041093017,480240.00,Grants to educational establishments or not for profit organisations including other businesses
Department for Education,DEPARTMENT FOR EDUCATION,03/09/2019,Grants expenditure,TEACHING WORKFORCE TOTAL,UNIVERSITY OF PLYMOUTH,1041093018,111780.00,Grants to educational establishments or not for profit organisations including other businesses
Department for Education,DEPARTMENT FOR EDUCATION,03/09/2019,Grants expenditure,TEACHING WORKFORCE TOTAL,WILDERN SCHOOL,1041093019,30240.00,Grants to educational establishments or not for profit organisations including other businesses
Department for Education,DEPARTMENT FOR EDUCATION,03/09/2019,Grants expenditure,TEACHING WORKFORCE TOTAL,HARRIS CITY ACADEMY,1041093032,142200.00,Grants to educational establishments or not for profit organisations including other businesses
Department for Education,DEPARTMENT FOR EDUCATION,03/09/2019,Grants expenditure,TEACHING WORKFORCE TOTAL,YORK ST JOHN UNIVERSITY,1041093034,74610.00,Grants to educational establishments or not for profit organisations including other businesses
Department for Education,DEPARTMENT FOR EDUCATION,03/09/2019,Grants expenditure,TEACHING WORKFORCE TOTAL,THE CAMBRIDGE PARTNERSHIP,1041093035,46800.00,Grants to educational establishments or not for profit organisations including other businesses
Department for Education,DEPARTMENT FOR EDUCATION,03/09/2019,Grants expenditure,TEACHING WORKFORCE TOTAL,STAFFORDSHIRE UNIVERSITY,1041093036,83970.00,Grants to educational establishments or not for profit organisations including other businesses
Department for Education,DEPARTMENT FOR EDUCATION,03/09/2019,Grants expenditure,TEACHING WORKFORCE TOTAL,SKIPTON GIRLS HIGH SCHOOL,1041093037,25830.00,Grants to educational establishments or not for profit organisations including other businesses
Department for Education,DEPARTMENT FOR EDUCATION,03/09/2019,Grants expenditure,TEACHING WORKFORCE TOTAL,UNIVERSITY OF EAST ANGLIA,1041093038,209700.00,Grants to educational establishments or not for profit organisations including other businesses
Department for Education,DEPARTMENT FOR EDUCATION,03/09/2019,Grants expenditure,TEACHING WORKFORCE TOTAL,UNIVERSITY OF WOLVERHAMPTON,1041093039,178110.00,Grants to educational establishments or not for profit organisations including other businesses
Department for Education,DEPARTMENT FOR EDUCATION,03/09/2019,Grants expenditure,TEACHING WORKFORCE TOTAL,UNIVERSITY OF LEICESTER,1041093041,181170.00,Grants to educational establishments or not for profit organisations including other businesses
Department for Education,DEPARTMENT FOR EDUCATION,03/09/2019,Grants expenditure,TEACHING WORKFORCE TOTAL,CFBT THE DEEPINGS SCITT,1041093050,28890.00,Grants to educational establishments or not for profit organisations including other businesses
Department for Education,DEPARTMENT FOR EDUCATION,03/09/2019,Grants expenditure,TEACHING WORKFORCE TOTAL,TEACH SOUTHEAST,1041093051,70470.00,Grants to educational establishments or not for profit organisations including other businesses
Department for Education,DEPARTMENT FOR EDUCATION,03/09/2019,Grants expenditure,TEACHING WORKFORCE TOTAL,SOUTH WEST TEACHER TRAINING,1041093053,49500.00,Grants to educational establishments or not for profit organisations including other businesses
Department for Education,DEPARTMENT FOR EDUCATION,03/09/2019,Grants expenditure,TEACHING WORKFORCE TOTAL,POOLE SECONDARY SCHOOLS,1041093055,49320.00,Grants to educational establishments or not for profit organisations including other businesses
Department for Education,DEPARTMENT FOR EDUCATION,03/09/2019,Grants expenditure,TEACHING WORKFORCE TOTAL,UNIVERSITY OF CHICHESTER,1041093056,98100.00,Grants to educational establishments or not for profit organisations including other businesses
Department for Education,DEPARTMENT FOR EDUCATION,03/09/2019,Grants expenditure,TEACHING WORKFORCE TOTAL,PILGRIM SCITT,1041093057,39240.00,Grants to educational establishments or not for profit organisations including other businesses
Department for Education,DEPARTMENT FOR EDUCATION,03/09/2019,Grants expenditure,TEACHING WORKFORCE TOTAL,TUDOR GRANGE ACADEMY SOLIHULL,1041093058,29520.00,Grants to educational establishments or not for profit organisations including other businesses
Department for Education,DEPARTMENT FOR EDUCATION,03/09/2019,Grants expenditure,TEACHING WORKFORCE TOTAL,SOUTHEND HIGH SCHOOL FOR GIRLS,1041093059,29070.00,Grants to educational establishments or not for profit organisations including other businesses
Department for Education,DEPARTMENT FOR EDUCATION,03/09/2019,Grants expenditure,TEACHING WORKFORCE TOTAL,THE KEMNAL ACADEMIES TRUST,1041093060,62370.00,Grants to educational establishments or not for profit organisations including other businesses
Department for Education,DEPARTMENT FOR EDUCATION,03/09/2019,Grants expenditure,TEACHING WORKFORCE TOTAL,MIDDLESEX UNIVERSITY,1041093061,117630.00,Grants to educational establishments or not for profit organisations including other businesses
Department for Education,DEPARTMENT FOR EDUCATION,03/09/2019,Grants expenditure,TEACHING WORKFORCE TOTAL,RIPLEY ST THOMAS CE HIGH SCHOOL,1041093062,60660.00,Grants to educational establishments or not for profit organisations including other businesses
Department for Education,DEPARTMENT FOR EDUCATION,03/09/2019,Grants expenditure,TEACHING WORKFORCE TOTAL,ALPHA TRUST,1041093066,87030.00,Grants to educational establishments or not for profit organisations including other businesses
Department for Education,DEPARTMENT FOR EDUCATION,03/09/2019,Grants expenditure,TEACHING WORKFORCE TOTAL,RED KITE TEACHER TRAINING,1041093071,125190.00,Grants to educational establishments or not for profit organisations including other businesses
Department for Education,DEPARTMENT FOR EDUCATION,03/09/2019,Grants expenditure,TEACHING WORKFORCE TOTAL,PARTNERSHIP LONDON SCITT,1041093072,44280.00,Grants to educational establishments or not for profit organisations including other businesses
Department for Education,DEPARTMENT FOR EDUCATION,03/09/2019,Grants expenditure,TEACHING WORKFORCE TOTAL,HAYBRIDGE ALLIANCE SCITT,1041093073,53640.00,Grants to educational establishments or not for profit organisations including other businesses
Department for Education,DEPARTMENT FOR EDUCATION,03/09/2019,Grants expenditure,TEACHING WORKFORCE TOTAL,UNIVERSITY OF YORK,1041093074,189810.00,Grants to educational establishments or not for profit organisations including other businesses
Department for Education,DEPARTMENT FOR EDUCATION,03/09/2019,Grants expenditure,TEACHING WORKFORCE TOTAL,UNIVERSITY OF WORCESTER,1041093075,220050.00,Grants to educational establishments or not for profit organisations including other businesses
Department for Education,DEPARTMENT FOR EDUCATION,03/09/2019,Grants expenditure,TEACHING WORKFORCE TOTAL,UNIVERSITY OF SUNDERLAND,1041093076,230850.00,Grants to educational establishments or not for profit organisations including other businesses
Department for Education,DEPARTMENT FOR EDUCATION,03/09/2019,Grants expenditure,TEACHING WORKFORCE TOTAL,NORTHAMPTON TEACHER TRAINING,1041093077,25110.00,Grants to educational establishments or not for profit organisations including other businesses
Department for Education,DEPARTMENT FOR EDUCATION,03/09/2019,Grants expenditure,TEACHING WORKFORCE TOTAL,NORTH ESSEX TEACHER TRAINING,1041093078,26010.00,Grants to educational establishments or not for profit organisations including other businesses
Department for Education,DEPARTMENT FOR EDUCATION,03/09/2019,Grants expenditure,TEACHING WORKFORCE TOTAL,UNIVERSITY OF PORTSMOUTH,1041093079,186030.00,Grants to educational establishments or not for profit organisations including other businesses
Department for Education,DEPARTMENT FOR EDUCATION,03/09/2019,Grants expenditure,TEACHING WORKFORCE TOTAL,ARTHUR MELLOWS VILLAGE COLLEGE,1041093082,48780.00,Grants to educational establishments or not for profit organisations including other businesses
Department for Education,DEPARTMENT FOR EDUCATION,03/09/2019,Grants expenditure,TEACHING WORKFORCE TOTAL,YORKSHIRE AND HUMBER TEACHER TRAINING,1041093090,44460.00,Grants to educational establishments or not for profit organisations including other businesses
Department for Education,DEPARTMENT FOR EDUCATION,03/09/2019,Grants expenditure,TEACHING WORKFORCE TOTAL,BARR BEACON SCITT,1041093091,42120.00,Grants to educational establishments or not for profit organisations including other businesses
Department for Education,DEPARTMENT FOR EDUCATION,03/09/2019,Grants expenditure,TEACHING WORKFORCE TOTAL,ASTRA SCITT,1041093092,73800.00,Grants to educational establishments or not for profit organisations including other businesses
Department for Education,DEPARTMENT FOR EDUCATION,03/09/2019,Grants expenditure,TEACHING WORKFORCE TOTAL,SACRED HEART NEWCASTLE SCITT,1041093093,53910.00,Grants to educational establishments or not for profit organisations including other businesses
Department for Education,DEPARTMENT FOR EDUCATION,03/09/2019,Grants expenditure,TEACHING WORKFORCE TOTAL,UNIVERSITY OF OXFORD,1041093095,321480.00,Grants to educational establishments or not for profit organisations including other businesses
Department for Education,DEPARTMENT FOR EDUCATION,03/09/2019,Grants expenditure,TEACHING WORKFORCE TOTAL,UNIVERSITY OF HULL,1041093097,178470.00,Grants to educational establishments or not for profit organisations including other businesses
Department for Education,DEPARTMENT FOR EDUCATION,03/09/2019,Grants expenditure,TEACHING WORKFORCE TOTAL,NORTH BEDS SCITT CONSORTIUM,1041093098,44730.00,Grants to educational establishments or not for profit organisations including other businesses
Department for Education,DEPARTMENT FOR EDUCATION,03/09/2019,Grants expenditure,TEACHING WORKFORCE TOTAL,UNIVERSITY OF HERTFORDSHIRE,1041093099,188100.00,Grants to educational establishments or not for profit organisations including other businesses
Department for Education,DEPARTMENT FOR EDUCATION,03/09/2019,Grants expenditure,TEACHING WORKFORCE TOTAL,UNIVERSITY OF BIRMINGHAM,1041093100,332730.00,Grants to educational establishments or not for profit organisations including other businesses
Department for Education,DEPARTMENT FOR EDUCATION,03/09/2019,Grants expenditure,TEACHING WORKFORCE TOTAL,UNIVERSITY OF WINCHESTER,1041093101,102330.00,Grants to educational establishments or not for profit organisations including other businesses
Department for Education,DEPARTMENT FOR EDUCATION,03/09/2019,Grants expenditure,TEACHING WORKFORCE TOTAL,COMBERTON VILLAGE COLLEGE,1041093102,107820.00,Grants to educational establishments or not for profit organisations including other businesses
Department for Education,DEPARTMENT FOR EDUCATION,03/09/2019,Grants expenditure,TEACHING WORKFORCE TOTAL,UNIVERSITY OF CAMBRIDGE,1041093103,327870.00,Grants to educational establishments or not for profit organisations including other businesses
Department for Education,DEPARTMENT FOR EDUCATION,03/09/2019,Grants expenditure,TEACHING WORKFORCE TOTAL,TARLETON ACADEMY,1041093104,40860.00,Grants to educational establishments or not for profit organisations including other businesses
Department for Education,DEPARTMENT FOR EDUCATION,03/09/2019,Grants expenditure,TEACHING WORKFORCE TOTAL,DURRINGTON MULTI ACADEMY TRUST,1041093108,28890.00,Grants to educational establishments or not for profit organisations including other businesses
Department for Education,DEPARTMENT FOR EDUCATION,03/09/2019,Grants expenditure,TEACHING WORKFORCE TOTAL,UNIVERSITY OF ROEHAMPTON,1041093112,216540.00,Grants to educational establishments or not for profit organisations including other businesses
Department for Education,DEPARTMENT FOR EDUCATION,03/09/2019,Grants expenditure,TEACHING WORKFORCE TOTAL,SHOTTON HALL SCITT,1041093115,88020.00,Grants to educational establishments or not for profit organisations including other businesses
Department for Education,DEPARTMENT FOR EDUCATION,03/09/2019,Grants expenditure,TEACHING WORKFORCE TOTAL,UNIVERSITY OF GREENWICH,1041093116,59580.00,Grants to educational establishments or not for profit organisations including other businesses
Department for Education,DEPARTMENT FOR EDUCATION,03/09/2019,Grants expenditure,TEACHING WORKFORCE TOTAL,NEWMAN COLLEGE,1041093117,166320.00,Grants to educational establishments or not for profit organisations including other businesses
Department for Education,DEPARTMENT FOR EDUCATION,03/09/2019,Grants expenditure,TEACHING WORKFORCE TOTAL,UNIVERSITY OF GLOUCESTERSHIRE,1041093118,72090.00,Grants to educational establishments or not for profit organisations including other businesses
Department for Education,DEPARTMENT FOR EDUCATION,03/09/2019,Grants expenditure,TEACHING WORKFORCE TOTAL,UNIVERSITY OF EAST LONDON,1041093119,313470.00,Grants to educational establishments or not for profit organisations including other businesses
Department for Education,DEPARTMENT FOR EDUCATION,03/09/2019,Grants expenditure,TEACHING WORKFORCE TOTAL,UNIVERSITY OF DERBY,1041093120,88200.00,Grants to educational establishments or not for profit organisations including other businesses
Department for Education,DEPARTMENT FOR EDUCATION,03/09/2019,Grants expenditure,TEACHING WORKFORCE TOTAL,UNIVERSITY OF DURHAM,1041093121,217890.00,Grants to educational establishments or not for profit organisations including other businesses
Department for Education,DEPARTMENT FOR EDUCATION,03/09/2019,Grants expenditure,TEACHING WORKFORCE TOTAL,UNIVERSITY OF CHESTER,1041093122,314010.00,Grants to educational establishments or not for profit organisations including other businesses
Department for Education,DEPARTMENT FOR EDUCATION,03/09/2019,Grants expenditure,TEACHING WORKFORCE TOTAL,UNIVERSITY OF EXETER,1041093125,354330.00,Grants to educational establishments or not for profit organisations including other businesses
Department for Education,DEPARTMENT FOR EDUCATION,03/09/2019,Grants expenditure,TEACHING WORKFORCE TOTAL,KING EDWARDS CONSORTIUM,1041093131,44370.00,Grants to educational establishments or not for profit organisations including other businesses
Department for Education,DEPARTMENT FOR EDUCATION,03/09/2019,Grants expenditure,TEACHING WORKFORCE TOTAL,BRADFORD BIRTH TO 19 SCITT,1041093133,28980.00,Grants to educational establishments or not for profit organisations including other businesses
Department for Education,DEPARTMENT FOR EDUCATION,03/09/2019,Grants expenditure,TEACHING WORKFORCE TOTAL,SUTTON SCITT,1041093134,45810.00,Grants to educational establishments or not for profit organisations including other businesses
Department for Education,DEPARTMENT FOR EDUCATION,03/09/2019,Grants expenditure,TEACHING WORKFORCE TOTAL,THE JOHN TAYLOR SCITT,1041093135,31680.00,Grants to educational establishments or not for profit organisations including other businesses
Department for Education,DEPARTMENT FOR EDUCATION,03/09/2019,Grants expenditure,TEACHING WORKFORCE TOTAL,MID ESSEX INITIAL TEACHER TRAINING,1041093136,65250.00,Grants to educational establishments or not for profit organisations including other businesses
Department for Education,DEPARTMENT FOR EDUCATION,03/09/2019,Grants expenditure,TEACHING WORKFORCE TOTAL,UNIVERSITY OF CUMBRIA,1041093137,265230.00,Grants to educational establishments or not for profit organisations including other businesses
Department for Education,DEPARTMENT FOR EDUCATION,03/09/2019,Grants expenditure,TEACHING WORKFORCE TOTAL,UNIVERSITY OF BRIGHTON,1041093138,232380.00,Grants to educational establishments or not for profit organisations including other businesses
Department for Education,DEPARTMENT FOR EDUCATION,03/09/2019,Grants expenditure,TEACHING WORKFORCE TOTAL,UNIVERSITY OF BEDFORDSHIRE,1041093139,99810.00,Grants to educational establishments or not for profit organisations including other businesses
Department for Education,DEPARTMENT FOR EDUCATION,03/09/2019,Grants expenditure,TEACHING WORKFORCE TOTAL,UNIVERSITY OF NOTTINGHAM,1041093140,286830.00,Grants to educational establishments or not for profit organisations including other businesses
Department for Education,DEPARTMENT FOR EDUCATION,03/09/2019,Grants expenditure,TEACHING WORKFORCE TOTAL,UNIVERSITY OF THE WEST OF ENGLAND,1041093142,188550.00,Grants to educational establishments or not for profit organisations including other businesses
Department for Education,DEPARTMENT FOR EDUCATION,03/09/2019,Grants expenditure,TEACHING WORKFORCE TOTAL,THE MORLEY ACADEMY,1041093143,168210.00,Grants to educational establishments or not for profit organisations including other businesses
Department for Education,DEPARTMENT FOR EDUCATION,03/09/2019,Grants expenditure,TEACHING WORKFORCE TOTAL,ASHTON ON MERSEY SCHOOL,1041093144,32670.00,Grants to educational establishments or not for profit organisations including other businesses
Department for Education,DEPARTMENT FOR EDUCATION,03/09/2019,Grants expenditure,TEACHING WORKFORCE TOTAL,UNIVERSITY OF SOUTHAMPTON,1041093145,210330.00,Grants to educational establishments or not for profit organisations including other businesses
Department for Education,DEPARTMENT FOR EDUCATION,03/09/2019,Grants expenditure,TEACHING WORKFORCE TOTAL,EDGE HILL UNIVERSITY,1041093146,469426.67,Grants to educational establishments or not for profit organisations including other businesses
Department for Education,DEPARTMENT FOR EDUCATION,03/09/2019,Grants expenditure,TEACHING WORKFORCE TOTAL,CHESHIRE EAST SCITT,1041093155,29700.00,Grants to educational establishments or not for profit organisations including other businesses
Department for Education,DEPARTMENT FOR EDUCATION,03/09/2019,Grants expenditure,TEACHING WORKFORCE TOTAL,LANDAU FORTE COLLEGE DERBY SCITT,1041093156,28260.00,Grants to educational establishments or not for profit organisations including other businesses
Department for Education,DEPARTMENT FOR EDUCATION,03/09/2019,Grants expenditure,TEACHING WORKFORCE TOTAL,HIBERNIA COLLEGE UK,1041093157,172620.00,Grants to educational establishments or not for profit organisations including other businesses
Department for Education,DEPARTMENT FOR EDUCATION,03/09/2019,Grants expenditure,TEACHING WORKFORCE TOTAL,UCL INSTITUTE OF EDUCATION,1041093158,815850.00,Grants to educational establishments or not for profit organisations including other businesses
Department for Education,DEPARTMENT FOR EDUCATION,03/09/2019,Grants expenditure,TEACHING WORKFORCE TOTAL,THE UNIVERSITY OF READING,1041093159,306810.00,Grants to educational establishments or not for profit organisations including other businesses
Department for Education,DEPARTMENT FOR EDUCATION,03/09/2019,Grants expenditure,TEACHING WORKFORCE TOTAL,THE KIRKLEES PARTNERSHIP,1041093160,38700.00,Grants to educational establishments or not for profit organisations including other businesses
Department for Education,DEPARTMENT FOR EDUCATION,03/09/2019,Grants expenditure,TEACHING WORKFORCE TOTAL,THE COLLEGE OF ST MARK & ST JOHN,1041093161,85140.00,Grants to educational establishments or not for profit organisations including other businesses
Department for Education,DEPARTMENT FOR EDUCATION,03/09/2019,Grants expenditure,TEACHING WORKFORCE TOTAL,MANCHESTER METROPOLITAN UNIVERSITY,1041093162,758400.00,Grants to educational establishments or not for profit organisations including other businesses
Department for Education,DEPARTMENT FOR EDUCATION,03/09/2019,Grants expenditure,TEACHING WORKFORCE TOTAL,BILLERICAY EDUCATIONAL CONSORTIUM,1041093171,71550.00,Grants to educational establishments or not for profit organisations including other businesses
Department for Education,DEPARTMENT FOR EDUCATION,03/09/2019,Grants expenditure,TEACHING WORKFORCE TOTAL,YORKSHIRE WOLDS TEACHER TRAINING,1041093172,50040.00,Grants to educational establishments or not for profit organisations including other businesses
Department for Education,DEPARTMENT FOR EDUCATION,03/09/2019,Grants expenditure,TEACHING WORKFORCE TOTAL,SUTTON PARK SCITT,1041093174,32220.00,Grants to educational establishments or not for profit organisations including other businesses
Department for Education,DEPARTMENT FOR EDUCATION,03/09/2019,Grants expenditure,TEACHING WORKFORCE TOTAL,HULL SCITT,1041093175,30600.00,Grants to educational establishments or not for profit organisations including other businesses
Department for Education,DEPARTMENT FOR EDUCATION,03/09/2019,Grants expenditure,TEACHING WORKFORCE TOTAL,EAST MIDLANDS TEACHER TRAINING PARTNERSHIP,1041093176,28890.00,Grants to educational establishments or not for profit organisations including other businesses
Department for Education,DEPARTMENT FOR EDUCATION,03/09/2019,Grants expenditure,TEACHING WORKFORCE TOTAL,TRAIN TO TEACH AT SURREY & HANTS,1041093177,60030.00,Grants to educational establishments or not for profit organisations including other businesses
Department for Education,DEPARTMENT FOR EDUCATION,03/09/2019,Grants expenditure,TEACHING WORKFORCE TOTAL,PIONEERS PARTNERSHIP SCITT,1041093178,28170.00,Grants to educational establishments or not for profit organisations including other businesses
Department for Education,DEPARTMENT FOR EDUCATION,03/09/2019,Grants expenditure,TEACHING WORKFORCE TOTAL,LIVERPOOL HOPE UNIVERSITY,1041093179,321210.00,Grants to educational establishments or not for profit organisations including other businesses
Department for Education,DEPARTMENT FOR EDUCATION,03/09/2019,Grants expenditure,TEACHING WORKFORCE TOTAL,KINGS COLLEGE GUILDFORD,1041093180,306360.00,Grants to educational establishments or not for profit organisations including other businesses
Department for Education,DEPARTMENT FOR EDUCATION,03/09/2019,Grants expenditure,TEACHING WORKFORCE TOTAL,THE HAVERING TEACHER TRAINING PARTNERSHIP,1041093181,53820.00,Grants to educational establishments or not for profit organisations including other businesses
Department for Education,DEPARTMENT FOR EDUCATION,03/09/2019,Grants expenditure,TEACHING WORKFORCE TOTAL,GRAND UNION TRAINING PARTNERSHIP,1041093182,63180.00,Grants to educational establishments or not for profit organisations including other businesses
Department for Education,DEPARTMENT FOR EDUCATION,03/09/2019,Grants expenditure,TEACHING WORKFORCE TOTAL,GOLDSMITH COLLEGE,1041093183,174870.00,Grants to educational establishments or not for profit organisations including other businesses
Department for Education,DEPARTMENT FOR EDUCATION,03/09/2019,Grants expenditure,TEACHING WORKFORCE TOTAL,UNIVERSITY OF BRISTOL,1041093184,298620.00,Grants to educational establishments or not for profit organisations including other businesses
Department for Education,DEPARTMENT FOR EDUCATION,03/09/2019,Grants expenditure,TEACHING WORKFORCE TOTAL,LONDON METROPOLITAN UNIVERSITY,1041093187,120870.00,Grants to educational establishments or not for profit organisations including other businesses
Department for Education,DEPARTMENT FOR EDUCATION,03/09/2019,Grants expenditure,TEACHING WORKFORCE TOTAL,UNIVERSITY OF NEWCASTLE UPON TYNE,1041093188,214830.00,Grants to educational establishments or not for profit organisations including other businesses
Department for Education,DEPARTMENT FOR EDUCATION,04/09/2019,Grants expenditure,TEACHING WORKFORCE TOTAL,ROYAL GEOGRAPHICAL SOCIETY,1041093198,29529.00,Grants to educational establishments or not for profit organisations including other businesses
Department for Education,DEPARTMENT FOR EDUCATION,02/09/2019,Other Goods & Services,SYSTEM CAPACITY LEADERSHIP AND GOVERNANCE TOTAL,TRIBAL EDUCATION,1041092855,73221.16,"Fees / expenses of professionals such as auditors, accountants, lawyers, etc. engaged to provide advice or opinion on how to affect something"
Department for Education,DEPARTMENT FOR EDUCATION,02/09/2019,Other Goods & Services,SYSTEM CAPACITY LEADERSHIP AND GOVERNANCE TOTAL,TRIBAL EDUCATION,1041092855,14644.23,"Fees / expenses of professionals such as auditors, accountants, lawyers, etc. engaged to provide advice or opinion on how to affect something"
Department for Education,DEPARTMENT FOR EDUCATION,20/09/2019,Learning & Development,SEND AND DISADVANTAGE GROUP,THE ANNA FREUD CENTRE,1041094783,308617.60,Training & Development costs
Department for Education,DEPARTMENT FOR EDUCATION,09/09/2019,Grants expenditure,ASSESSMENT AND CURRICULUM AND GENERAL QUALIFICATIONS,PIMLICO PRIMARY SCHOOL,1041093540,38485.65,Grants to educational establishments or not for profit organisations including other businesses
Department for Education,DEPARTMENT FOR EDUCATION,10/09/2019,Other Goods & Services,TEACHING WORKFORCE TOTAL,UNIVERSITY OF YORK,1041093720,164156.00,"Fees / expenses of professionals such as auditors, accountants, lawyers, etc. engaged to provide advice or opinion on how to affect something"
Department for Education,DEPARTMENT FOR EDUCATION,10/09/2019,Other Goods & Services,TEACHING WORKFORCE TOTAL,UNIVERSITY OF YORK,1041093721,39607.00,"Fees / expenses of professionals such as auditors, accountants, lawyers, etc. engaged to provide advice or opinion on how to affect something"
Department for Education,DEPARTMENT FOR EDUCATION,25/09/2019,Other Goods & Services,TEACHING WORKFORCE TOTAL,CARDIFF UNIVERSITY,1041095066,19827.40,Research and Development
Department for Education,DEPARTMENT FOR EDUCATION,25/09/2019,Other Goods & Services,TEACHING WORKFORCE TOTAL,CARDIFF UNIVERSITY,1041095066,99137.00,Research and Development
Department for Education,DEPARTMENT FOR EDUCATION,16/09/2019,Learning & Development,SCHOOL QUALITY AND SAFEGUARDING TOTAL,NATIONAL GOVERNORS ASSOCIATION,1041094241,34300.00,Training & Development costs
Department for Education,DEPARTMENT FOR EDUCATION,24/09/2019,Contractors,SCHOOL QUALITY AND SAFEGUARDING TOTAL,EDUCATION & EMPLOYERS TASKFORCE,1041094929,65971.67,Funding to deliver policies (excluding consultancy) paid to third parties via a service delivery contract
Department for Education,DEPARTMENT FOR EDUCATION,24/09/2019,Contractors,SCHOOL QUALITY AND SAFEGUARDING TOTAL,EDUCATION & EMPLOYERS TASKFORCE,1041094929,13194.33,Funding to deliver policies (excluding consultancy) paid to third parties via a service delivery contract
Department for Education,DEPARTMENT FOR EDUCATION,11/09/2019,Grants expenditure,SCHOOL QUALITY AND SAFEGUARDING TOTAL,WEST SUSSEX COUNTY COUNCIL,1041093795,34750.00,Grants to local authorities / other establishments within aggregate external funding or aggregate exchequer grant
Department for Education,DEPARTMENT FOR EDUCATION,11/09/2019,Grants expenditure,SCHOOL QUALITY AND SAFEGUARDING TOTAL,EAST SUSSEX COUNTY COUNCIL,1041093829,55442.00,Grants to local authorities / other establishments within aggregate external funding or aggregate exchequer grant
Department for Education,DEPARTMENT FOR EDUCATION,11/09/2019,Grants expenditure,SCHOOL QUALITY AND SAFEGUARDING TOTAL,LEICESTERSHIRE COUNTY COUNCIL,1041093831,41717.00,Grants to local authorities / other establishments within aggregate external funding or aggregate exchequer grant
Department for Education,DEPARTMENT FOR EDUCATION,11/09/2019,Grants expenditure,SCHOOL QUALITY AND SAFEGUARDING TOTAL,KENT COUNTY COUNCIL,1041093841,135675.00,Grants to local authorities / other establishments within aggregate external funding or aggregate exchequer grant
Department for Education,DEPARTMENT FOR EDUCATION,11/09/2019,Grants expenditure,SCHOOL QUALITY AND SAFEGUARDING TOTAL,WORCESTERSHIRE COUNTY COUNCIL,1041093842,30650.00,Grants to local authorities / other establishments within aggregate external funding or aggregate exchequer grant
Department for Education,DEPARTMENT FOR EDUCATION,11/09/2019,Grants expenditure,SCHOOL QUALITY AND SAFEGUARDING TOTAL,HAMPSHIRE COUNTY COUNCIL,1041093848,43267.00,Grants to local authorities / other establishments within aggregate external funding or aggregate exchequer grant
Department for Education,DEPARTMENT FOR EDUCATION,11/09/2019,Grants expenditure,SCHOOL QUALITY AND SAFEGUARDING TOTAL,ESSEX COUNTY COUNCIL,1041093854,64742.00,Grants to local authorities / other establishments within aggregate external funding or aggregate exchequer grant
Department for Education,DEPARTMENT FOR EDUCATION,11/09/2019,Grants expenditure,SCHOOL QUALITY AND SAFEGUARDING TOTAL,DURHAM COUNTY COUNCIL,1041093859,96058.00,Grants to local authorities / other establishments within aggregate external funding or aggregate exchequer grant
Department for Education,DEPARTMENT FOR EDUCATION,11/09/2019,Grants expenditure,SCHOOL QUALITY AND SAFEGUARDING TOTAL,DORSET COUNTY COUNCIL,1041093860,52567.00,Grants to local authorities / other establishments within aggregate external funding or aggregate exchequer grant
Department for Education,DEPARTMENT FOR EDUCATION,11/09/2019,Grants expenditure,SCHOOL QUALITY AND SAFEGUARDING TOTAL,CAMBRIDGESHIRE COUNTY COUNCIL,1041093867,43717.00,Grants to local authorities / other establishments within aggregate external funding or aggregate exchequer grant
Department for Education,DEPARTMENT FOR EDUCATION,11/09/2019,Grants expenditure,SCHOOL QUALITY AND SAFEGUARDING TOTAL,NORTH YORKSHIRE COUNTY COUNCIL,1041093873,36408.00,Grants to local authorities / other establishments within aggregate external funding or aggregate exchequer grant
Department for Education,DEPARTMENT FOR EDUCATION,11/09/2019,Grants expenditure,SCHOOL QUALITY AND SAFEGUARDING TOTAL,CORNWALL COUNCIL,1041093879,53675.00,Grants to local authorities / other establishments within aggregate external funding or aggregate exchequer grant
Department for Education,DEPARTMENT FOR EDUCATION,11/09/2019,Grants expenditure,SCHOOL QUALITY AND SAFEGUARDING TOTAL,CUMBRIA COUNTY COUNCIL,1041093880,26450.00,Grants to local authorities / other establishments within aggregate external funding or aggregate exchequer grant
Department for Education,DEPARTMENT FOR EDUCATION,11/09/2019,Grants expenditure,SCHOOL QUALITY AND SAFEGUARDING TOTAL,NORFOLK COUNTY COUNCIL,1041093881,72042.00,Grants to local authorities / other establishments within aggregate external funding or aggregate exchequer grant
Department for Education,DEPARTMENT FOR EDUCATION,11/09/2019,Grants expenditure,SCHOOL QUALITY AND SAFEGUARDING TOTAL,LANCASHIRE COUNTY COUNCIL,1041093888,75692.00,Grants to local authorities / other establishments within aggregate external funding or aggregate exchequer grant
Department for Education,DEPARTMENT FOR EDUCATION,11/09/2019,Grants expenditure,SCHOOL QUALITY AND SAFEGUARDING TOTAL,OXFORDSHIRE COUNTY COUNCIL,1041093896,28442.00,Grants to local authorities / other establishments within aggregate external funding or aggregate exchequer grant
Department for Education,DEPARTMENT FOR EDUCATION,11/09/2019,Grants expenditure,SCHOOL QUALITY AND SAFEGUARDING TOTAL,SOMERSET COUNTY COUNCIL,1041093897,50908.00,Grants to local authorities / other establishments within aggregate external funding or aggregate exchequer grant
Department for Education,DEPARTMENT FOR EDUCATION,11/09/2019,Grants expenditure,SCHOOL QUALITY AND SAFEGUARDING TOTAL,SUFFOLK COUNTY COUNCIL,1041093898,49467.00,Grants to local authorities / other establishments within aggregate external funding or aggregate exchequer grant
Department for Education,DEPARTMENT FOR EDUCATION,11/09/2019,Grants expenditure,SCHOOL QUALITY AND SAFEGUARDING TOTAL,DEVON COUNTY COUNCIL,1041093903,42608.00,Grants to local authorities / other establishments within aggregate external funding or aggregate exchequer grant
Department for Education,DEPARTMENT FOR EDUCATION,11/09/2019,Grants expenditure,SCHOOL QUALITY AND SAFEGUARDING TOTAL,WILTSHIRE COUNCIL,1041093917,28658.00,Grants to local authorities / other establishments within aggregate external funding or aggregate exchequer grant
Department for Education,DEPARTMENT FOR EDUCATION,11/09/2019,Grants expenditure,SCHOOL QUALITY AND SAFEGUARDING TOTAL,DERBYSHIRE COUNTY COUNCIL,1041093921,76133.00,Grants to local authorities / other establishments within aggregate external funding or aggregate exchequer grant
Department for Education,DEPARTMENT FOR EDUCATION,11/09/2019,Grants expenditure,SCHOOL QUALITY AND SAFEGUARDING TOTAL,STAFFORDSHIRE COUNCIL,1041093935,28217.00,Grants to local authorities / other establishments within aggregate external funding or aggregate exchequer grant
Department for Education,DEPARTMENT FOR EDUCATION,11/09/2019,Grants expenditure,SCHOOL QUALITY AND SAFEGUARDING TOTAL,NOTTINGHAMSHIRE COUNTY COUNCIL,1041093941,44483.00,Grants to local authorities / other establishments within aggregate external funding or aggregate exchequer grant
Department for Education,DEPARTMENT FOR EDUCATION,11/09/2019,Grants expenditure,SCHOOL QUALITY AND SAFEGUARDING TOTAL,GLOUCESTERSHIRE COUNTY COUNCIL,1041093945,41942.00,Grants to local authorities / other establishments within aggregate external funding or aggregate exchequer grant
Department for Education,DEPARTMENT FOR EDUCATION,11/09/2019,Grants expenditure,SCHOOL QUALITY AND SAFEGUARDING TOTAL,LINCOLNSHIRE COUNTY COUNCIL,1041093948,63192.00,Grants to local authorities / other establishments within aggregate external funding or aggregate exchequer grant
Department for Education,DEPARTMENT FOR EDUCATION,11/09/2019,Grants expenditure,SCHOOL QUALITY AND SAFEGUARDING TOTAL,NORTHAMPTONSHIRE COUNTY COUNCIL,1041093965,28992.00,Grants to local authorities / other establishments within aggregate external funding or aggregate exchequer grant
Department for Education,DEPARTMENT FOR EDUCATION,11/09/2019,Professional Services Consultancy and Contingent Labour,FUNDING AND ANALYSIS TOTAL,HM TREASURY,1041093906,28094.72,Costs related to temporary workers
Department for Education,DEPARTMENT FOR EDUCATION,17/09/2019,Grants expenditure,ACADEMIES DELIVERY DIRECTORATE,OUTWOOD GRANGE ACADEMIES TRUST,1041094361,157000.00,Grants to educational establishments or not for profit organisations including other businesses
Department for Education,DEPARTMENT FOR EDUCATION,17/09/2019,Grants expenditure,ACADEMIES DELIVERY DIRECTORATE,SOUTH SUFFOLK LEARNING TRUST,1041094372,25000.00,Grants to educational establishments or not for profit organisations including other businesses
Department for Education,DEPARTMENT FOR EDUCATION,23/09/2019,Grants expenditure,ACADEMIES DELIVERY DIRECTORATE,FRANK FIELD EDUCATION TRUST,1041094788,75000.00,Grants to educational establishments or not for profit organisations including other businesses
Department for Education,DEPARTMENT FOR EDUCATION,27/09/2019,Grants expenditure,ACADEMIES DELIVERY DIRECTORATE,REACH SOUTH ACADEMY TRUST,1041095272,80000.00,Grants to educational establishments or not for profit organisations including other businesses
Department for Education,DEPARTMENT FOR EDUCATION,27/09/2019,Grants expenditure,ACADEMIES DELIVERY DIRECTORATE,LIGHTHOUSE SCHOOLS PARTNERSHIP,1041095411,40000.00,Capital grants paid to a private sector organisation
Department for Education,DEPARTMENT FOR EDUCATION,20/09/2019,Consultancy,ACADEMIES DELIVERY DIRECTORATE,GOVERNMENT LEGAL DEPARTMENT,1041094781,6461.81,"Advisory services including fees, travel and expenses"
Department for Education,DEPARTMENT FOR EDUCATION,20/09/2019,Consultancy,ACADEMIES DELIVERY DIRECTORATE,GOVERNMENT LEGAL DEPARTMENT,1041094781,32309.05,"Advisory services including fees, travel and expenses"
Department for Education,DEPARTMENT FOR EDUCATION,03/09/2019,Grants expenditure,FREE SCHOOL DIRECTORATE,NEW SCHOOLS NETWORK,1041092949,115579.96,Grants to educational establishments or not for profit organisations including other businesses
Department for Education,DEPARTMENT FOR EDUCATION,03/09/2019,Grants expenditure,FREE SCHOOL DIRECTORATE,NEW SCHOOLS NETWORK,1041092949,114531.48,Grants to educational establishments or not for profit organisations including other businesses
Department for Education,DEPARTMENT FOR EDUCATION,06/09/2019,Grants expenditure,FREE SCHOOL DIRECTORATE,WILMINGTON GRAMMAR SCHOOL FOR GIRLS,1041093462,50000.00,Grants to educational establishments or not for profit organisations including other businesses
Department for Education,DEPARTMENT FOR EDUCATION,26/09/2019,Grants expenditure,FREE SCHOOL DIRECTORATE,CAMBRIDGESHIRE EDUCATIONAL TRUST,1041095169,30000.00,Grants to educational establishments or not for profit organisations including other businesses
Department for Education,DEPARTMENT FOR EDUCATION,26/09/2019,Grants expenditure,FREE SCHOOL DIRECTORATE,AURORA ACADEMIES TRUST,1041095180,25000.00,Grants to educational establishments or not for profit organisations including other businesses
Department for Education,DEPARTMENT FOR EDUCATION,26/09/2019,Grants expenditure,FREE SCHOOL DIRECTORATE,HARRIS FEDERATION,1041095191,50000.00,Grants to educational establishments or not for profit organisations including other businesses
Department for Education,DEPARTMENT FOR EDUCATION,26/09/2019,Grants expenditure,FREE SCHOOL DIRECTORATE,GROVE PARK ACADEMIES,1041095193,95000.00,Grants to educational establishments or not for profit organisations including other businesses
Department for Education,DEPARTMENT FOR EDUCATION,26/09/2019,Grants expenditure,FREE SCHOOL DIRECTORATE,CATCH22 MULTI ACADEMIES TRUST LTD,1041095202,30000.00,Grants to educational establishments or not for profit organisations including other businesses
Department for Education,DEPARTMENT FOR EDUCATION,26/09/2019,Grants expenditure,FREE SCHOOL DIRECTORATE,WAVE MULTI ACADEMY TRUST,1041095216,50373.31,Grants to educational establishments or not for profit organisations including other businesses
Department for Education,DEPARTMENT FOR EDUCATION,26/09/2019,Grants expenditure,FREE SCHOOL DIRECTORATE,ORCHARD HILL COLLEGE,1041095224,47500.00,Grants to educational establishments or not for profit organisations including other businesses
Department for Education,DEPARTMENT FOR EDUCATION,26/09/2019,Grants expenditure,FREE SCHOOL DIRECTORATE,THE CASTLE SCHOOL,1041095226,40000.00,Grants to educational establishments or not for profit organisations including other businesses
Department for Education,DEPARTMENT FOR EDUCATION,26/09/2019,Grants expenditure,FREE SCHOOL DIRECTORATE,CAMBRIDGE MERIDIAN ACADEMIES TRUST,1041095227,50000.00,Grants to educational establishments or not for profit organisations including other businesses
Department for Education,DEPARTMENT FOR EDUCATION,26/09/2019,Grants expenditure,FREE SCHOOL DIRECTORATE,PROSPER LEARNING TRUST,1041095230,35000.00,Grants to educational establishments or not for profit organisations including other businesses
Department for Education,DEPARTMENT FOR EDUCATION,26/09/2019,Grants expenditure,FREE SCHOOL DIRECTORATE,OUTWOOD GRANGE ACADEMIES TRUST,1041095240,30000.00,Grants to educational establishments or not for profit organisations including other businesses
Department for Education,DEPARTMENT FOR EDUCATION,03/09/2019,Grants expenditure,ACADEMIES AND REGIONAL DELIVERY TOTAL,THE SIGMA TRUST,1041093028,73173.00,Grants to educational establishments or not for profit organisations including other businesses
Department for Education,DEPARTMENT FOR EDUCATION,09/09/2019,Grants expenditure,ACADEMIES AND REGIONAL DELIVERY TOTAL,LONDON ACADEMY,1041093576,268000.00,Grants to educational establishments or not for profit organisations including other businesses
Department for Education,DEPARTMENT FOR EDUCATION,09/09/2019,Grants expenditure,ACADEMIES AND REGIONAL DELIVERY TOTAL,WORCESTERSHIRE COUNTY COUNCIL COUNTY FUND,1041093637,32380.00,Grants to educational establishments or not for profit organisations including other businesses
Department for Education,DEPARTMENT FOR EDUCATION,18/09/2019,Grants expenditure,ACADEMIES AND REGIONAL DELIVERY TOTAL,WESTCOUNTRY SCHOOLS TRUST,1041094435,157323.00,Grants to educational establishments or not for profit organisations including other businesses
Department for Education,DEPARTMENT FOR EDUCATION,18/09/2019,Grants expenditure,ACADEMIES AND REGIONAL DELIVERY TOTAL,CROMWELL JUNIOR & INFANT SCHOOL,1041094499,73000.00,Grants to educational establishments or not for profit organisations including other businesses
Department for Education,DEPARTMENT FOR EDUCATION,24/09/2019,Grants expenditure,ACADEMIES AND REGIONAL DELIVERY TOTAL,COMMUNITY SCHOOLS TRUST,1041094937,75000.00,Grants to educational establishments or not for profit organisations including other businesses
Department for Education,DEPARTMENT FOR EDUCATION,24/09/2019,Grants expenditure,ACADEMIES AND REGIONAL DELIVERY TOTAL,MEANWOOD C OF E PRIMARY SCHOOL,1041094960,57000.00,Grants to educational establishments or not for profit organisations including other businesses
Department for Education,DEPARTMENT FOR EDUCATION,17/09/2019,Grants expenditure,ACADEMIES AND REGIONAL DELIVERY TOTAL,AN DARAS MULTI ACADEMY TRUST,1041094346,25000.00,Grants to educational establishments or not for profit organisations including other businesses
Department for Education,DEPARTMENT FOR EDUCATION,05/09/2019,Grants expenditure,ACADEMIES AND REGIONAL DELIVERY TOTAL,TED WRAGG MULTI ACADEMY TRUST,1041093423,55000.00,Grants to educational establishments or not for profit organisations including other businesses
Department for Education,DEPARTMENT FOR EDUCATION,09/09/2019,Grants expenditure,ACADEMIES AND REGIONAL DELIVERY TOTAL,LIGHTHOUSE SCHOOLS PARTNERSHIP,1041093633,40000.00,Grants to educational establishments or not for profit organisations including other businesses
Department for Education,DEPARTMENT FOR EDUCATION,27/09/2019,Grants expenditure,ACADEMIES AND REGIONAL DELIVERY TOTAL,CORNWALL EDUCATION LEARNING TRUST,1041095420,35000.00,Grants to educational establishments or not for profit organisations including other businesses
Department for Education,DEPARTMENT FOR EDUCATION,09/09/2019,Grants expenditure,ACADEMIES AND REGIONAL DELIVERY TOTAL,THE LEARNING COMMUNITY TRUST,1041093624,25000.00,Grants to educational establishments or not for profit organisations including other businesses
Department for Education,DEPARTMENT FOR EDUCATION,17/09/2019,Grants expenditure,ACADEMIES AND REGIONAL DELIVERY TOTAL,JOHN PAUL II MULTIACADEMY,1041094386,25000.00,Grants to educational establishments or not for profit organisations including other businesses
Department for Education,DEPARTMENT FOR EDUCATION,23/09/2019,Grants expenditure,ACADEMIES AND REGIONAL DELIVERY TOTAL,WATERTON ACADEMY TRUST,1041094799,25000.00,Grants to educational establishments or not for profit organisations including other businesses
Department for Education,DEPARTMENT FOR EDUCATION,17/09/2019,Grants expenditure,ACADEMIES AND REGIONAL DELIVERY TOTAL,BRADGATE EDUCATION PARTNERSHIP,1041094389,90000.00,Grants to educational establishments or not for profit organisations including other businesses
Department for Education,DEPARTMENT FOR EDUCATION,27/09/2019,Grants expenditure,ACADEMIES AND REGIONAL DELIVERY TOTAL,COMMUNITY INCLUSIVE TRUST,1041095275,70000.00,Grants to educational establishments or not for profit organisations including other businesses
Department for Education,DEPARTMENT FOR EDUCATION,09/09/2019,Grants expenditure,ACADEMIES AND REGIONAL DELIVERY TOTAL,ROMERO CATHOLIC ACADEMY TRUST,1041093555,25000.00,Grants to educational establishments or not for profit organisations including other businesses
Department for Education,DEPARTMENT FOR EDUCATION,09/09/2019,Grants expenditure,ACADEMIES AND REGIONAL DELIVERY TOTAL,ROMERO CATHOLIC ACADEMY TRUST,1041093555,25000.00,Grants to educational establishments or not for profit organisations including other businesses
Department for Education,DEPARTMENT FOR EDUCATION,09/09/2019,Grants expenditure,ACADEMIES AND REGIONAL DELIVERY TOTAL,ROMERO CATHOLIC ACADEMY TRUST,1041093555,25000.00,Grants to educational establishments or not for profit organisations including other businesses
Department for Education,DEPARTMENT FOR EDUCATION,09/09/2019,Grants expenditure,ACADEMIES AND REGIONAL DELIVERY TOTAL,SOUTH PENNINE ACADEMIES,1041093595,25000.00,Grants to educational establishments or not for profit organisations including other businesses
Department for Education,DEPARTMENT FOR EDUCATION,05/09/2019,Grants expenditure,ACADEMIES AND REGIONAL DELIVERY TOTAL,PRINCE HENRYS GRAMMAR SCHOOL,1041093434,70000.00,Grants to educational establishments or not for profit organisations including other businesses
Department for Education,DEPARTMENT FOR EDUCATION,09/09/2019,Grants expenditure,ACADEMIES AND REGIONAL DELIVERY TOTAL,LEARNING ACCORD MULTI ACADEMY TRUST,1041093601,70000.00,Grants to educational establishments or not for profit organisations including other businesses
Department for Education,DEPARTMENT FOR EDUCATION,13/09/2019,Grants expenditure,ACADEMIES AND REGIONAL DELIVERY TOTAL,ROMERO CATHOLIC ACADEMY TRUST,1041094164,70000.00,Grants to educational establishments or not for profit organisations including other businesses
Department for Education,DEPARTMENT FOR EDUCATION,13/09/2019,Grants expenditure,ACADEMIES AND REGIONAL DELIVERY TOTAL,ROMERO CATHOLIC ACADEMY TRUST,1041094164,70000.00,Grants to educational establishments or not for profit organisations including other businesses
Department for Education,DEPARTMENT FOR EDUCATION,17/09/2019,Grants expenditure,ACADEMIES AND REGIONAL DELIVERY TOTAL,OWLCOTES MULTI ACADEMY TRUST,1041094393,70000.00,Grants to educational establishments or not for profit organisations including other businesses
Department for Education,DEPARTMENT FOR EDUCATION,27/09/2019,Grants expenditure,ACADEMIES AND REGIONAL DELIVERY TOTAL,INSPIRE PARTNERSHIP MULTI ACADEMY TRUST,1041095419,70000.00,Grants to educational establishments or not for profit organisations including other businesses
Department for Education,DEPARTMENT FOR EDUCATION,17/09/2019,Grants expenditure,ACADEMIES AND REGIONAL DELIVERY TOTAL,DOGSTHORPE INFANT SCHOOL,1041094369,25000.00,Grants to educational establishments or not for profit organisations including other businesses
Department for Education,DEPARTMENT FOR EDUCATION,23/09/2019,Grants expenditure,ACADEMIES AND REGIONAL DELIVERY TOTAL,EPPING FOREST SCHOOLS PARTNERSHIP TRUST,1041094877,25000.00,Grants to educational establishments or not for profit organisations including other businesses
Department for Education,DEPARTMENT FOR EDUCATION,27/09/2019,Grants expenditure,ACADEMIES AND REGIONAL DELIVERY TOTAL,ST EDMUNDSBURY & IPSWICH DIOCESAN MULTI ACADEMY TRUST,1041095255,25000.00,Grants to educational establishments or not for profit organisations including other businesses
Department for Education,DEPARTMENT FOR EDUCATION,09/09/2019,Grants expenditure,ACADEMIES AND REGIONAL DELIVERY TOTAL,SENDAT,1041093632,70000.00,Grants to educational establishments or not for profit organisations including other businesses
Department for Education,DEPARTMENT FOR EDUCATION,09/09/2019,Grants expenditure,ACADEMIES AND REGIONAL DELIVERY TOTAL,ST AIDANS CHURCH OF ENGLAND HIGH SCHOOL,1041093550,110000.00,Grants to educational establishments or not for profit organisations including other businesses
Department for Education,DEPARTMENT FOR EDUCATION,23/09/2019,Grants expenditure,ACADEMIES AND REGIONAL DELIVERY TOTAL,VISION ACADEMY LEARNING TRUST,1041094859,80000.00,Grants to educational establishments or not for profit organisations including other businesses
Department for Education,DEPARTMENT FOR EDUCATION,27/09/2019,Grants expenditure,ACADEMIES AND REGIONAL DELIVERY TOTAL,DALES ACADEMIES TRUST,1041095366,70000.00,Grants to educational establishments or not for profit organisations including other businesses
Department for Education,DEPARTMENT FOR EDUCATION,13/09/2019,Grants expenditure,ACADEMIES AND REGIONAL DELIVERY TOTAL,LDBS FRAYS ACADEMY TRUST,1041094069,25000.00,Grants to educational establishments or not for profit organisations including other businesses
Department for Education,DEPARTMENT FOR EDUCATION,13/09/2019,Grants expenditure,ACADEMIES AND REGIONAL DELIVERY TOTAL,INSPIRING FUTURES THROUGH LEARNING TRUST,1041094146,25000.00,Grants to educational establishments or not for profit organisations including other businesses
Department for Education,DEPARTMENT FOR EDUCATION,13/09/2019,Grants expenditure,ACADEMIES AND REGIONAL DELIVERY TOTAL,TENNYSON ROAD PRIMARY SCHOOL,1041094170,25000.00,Grants to educational establishments or not for profit organisations including other businesses
Department for Education,DEPARTMENT FOR EDUCATION,23/09/2019,Grants expenditure,ACADEMIES AND REGIONAL DELIVERY TOTAL,ASHLYNS SCHOOL,1041094871,25000.00,Grants to educational establishments or not for profit organisations including other businesses
Department for Education,DEPARTMENT FOR EDUCATION,23/09/2019,Grants expenditure,ACADEMIES AND REGIONAL DELIVERY TOTAL,ASHLYNS SCHOOL,1041094871,25000.00,Grants to educational establishments or not for profit organisations including other businesses
Department for Education,DEPARTMENT FOR EDUCATION,23/09/2019,Grants expenditure,ACADEMIES AND REGIONAL DELIVERY TOTAL,ASHLYNS SCHOOL,1041094871,25000.00,Grants to educational establishments or not for profit organisations including other businesses
Department for Education,DEPARTMENT FOR EDUCATION,23/09/2019,Grants expenditure,ACADEMIES AND REGIONAL DELIVERY TOTAL,ASHLYNS SCHOOL,1041094871,25000.00,Grants to educational establishments or not for profit organisations including other businesses
Department for Education,DEPARTMENT FOR EDUCATION,23/09/2019,Grants expenditure,ACADEMIES AND REGIONAL DELIVERY TOTAL,ASHLYNS SCHOOL,1041094871,25000.00,Grants to educational establishments or not for profit organisations including other businesses
Department for Education,DEPARTMENT FOR EDUCATION,27/09/2019,Grants expenditure,ACADEMIES AND REGIONAL DELIVERY TOTAL,HARLINGTON AREA SCHOOLS TRUST,1041095343,25000.00,Grants to educational establishments or not for profit organisations including other businesses
Department for Education,DEPARTMENT FOR EDUCATION,27/09/2019,Grants expenditure,ACADEMIES AND REGIONAL DELIVERY TOTAL,HARLINGTON AREA SCHOOLS TRUST,1041095343,25000.00,Grants to educational establishments or not for profit organisations including other businesses
Department for Education,DEPARTMENT FOR EDUCATION,27/09/2019,Grants expenditure,ACADEMIES AND REGIONAL DELIVERY TOTAL,HARLINGTON AREA SCHOOLS TRUST,1041095343,25000.00,Grants to educational establishments or not for profit organisations including other businesses
Department for Education,DEPARTMENT FOR EDUCATION,09/09/2019,Grants expenditure,ACADEMIES AND REGIONAL DELIVERY TOTAL,KNAPHILL LOWER SCHOOL,1041093547,25000.00,Grants to educational establishments or not for profit organisations including other businesses
Department for Education,DEPARTMENT FOR EDUCATION,09/09/2019,Grants expenditure,ACADEMIES AND REGIONAL DELIVERY TOTAL,KNAPHILL SCHOOL,1041093553,25000.00,Grants to educational establishments or not for profit organisations including other businesses
Department for Education,DEPARTMENT FOR EDUCATION,23/09/2019,Grants expenditure,ACADEMIES AND REGIONAL DELIVERY TOTAL,HOMEWOOD SCHOOL & 6TH FORM CENTRE,1041094819,25000.00,Grants to educational establishments or not for profit organisations including other businesses
Department for Education,DEPARTMENT FOR EDUCATION,17/09/2019,Grants expenditure,ACADEMIES AND REGIONAL DELIVERY TOTAL,THE GOOD SHEPHERD TRUST,1041094353,70000.00,Grants to educational establishments or not for profit organisations including other businesses
Department for Education,DEPARTMENT FOR EDUCATION,05/09/2019,IS/IT,FUNDING AND ANALYSIS TOTAL,OLIVE JAR DIGITAL LTD,1041093413,77670.00,Partial payment for IT hardware / consumables
Department for Education,DEPARTMENT FOR EDUCATION,16/09/2019,Consultancy,FUNDING AND ANALYSIS TOTAL,INSTITUTE OF SCHOOL BUSINESS LEADERSHIP (ISBL),1041094307,20896.20,"Advisory services including fees, travel and expenses"
Department for Education,DEPARTMENT FOR EDUCATION,09/09/2019,IS/IT,Academies Regional Delivery Group,FUJITSU SERVICES LTD,1041093599,91592.50,Partial payment for IT hardware / consumables
Department for Education,DEPARTMENT FOR EDUCATION,10/09/2019,IS/IT,TEACHING WORKFORCE TOTAL,THE DEXTROUS WEB T/A DXW,1041093682,75275.00,Partial payment for IT hardware / consumables
Department for Education,DEPARTMENT FOR EDUCATION,24/09/2019,IS/IT,TEACHING WORKFORCE TOTAL,THE DEXTROUS WEB T/A DXW,1041094887,73095.00,Partial payment for IT hardware / consumables
Department for Education,DEPARTMENT FOR EDUCATION,03/09/2019,Other Goods & Services,TEACHING WORKFORCE TOTAL,PSI SERVICES UK LTD,1041093089,465928.07,Programme Expenditure
Department for Education,DEPARTMENT FOR EDUCATION,12/09/2019,Other Goods & Services,TEACHING WORKFORCE TOTAL,PSI SERVICES UK LTD,1041094049,437522.53,Programme Expenditure
Department for Education,DEPARTMENT FOR EDUCATION,03/09/2019,Other Goods & Services,FUNDING AND ANALYSIS TOTAL,2BUY2.COM LTD,1041093129,70000.00,"Fees / expenses of professionals such as auditors, accountants, lawyers, etc. engaged to provide advice or opinion on how to affect something"
Department for Education,DEPARTMENT FOR EDUCATION,04/09/2019,Other Goods & Services,FUNDING AND ANALYSIS TOTAL,PIXEL GROUP LTD,1041093215,98037.24,"Fees / expenses of professionals such as auditors, accountants, lawyers, etc. engaged to provide advice or opinion on how to affect something"
Department for Education,DEPARTMENT FOR EDUCATION,04/09/2019,Other Goods & Services,FUNDING AND ANALYSIS TOTAL,PIXEL GROUP LTD,1041093215,19607.45,"Fees / expenses of professionals such as auditors, accountants, lawyers, etc. engaged to provide advice or opinion on how to affect something"
Department for Education,DEPARTMENT FOR EDUCATION,11/09/2019,Other Goods & Services,FUNDING AND ANALYSIS TOTAL,PIXEL GROUP LTD,1041093750,58624.35,"Fees / expenses of professionals such as auditors, accountants, lawyers, etc. engaged to provide advice or opinion on how to affect something"
Department for Education,DEPARTMENT FOR EDUCATION,11/09/2019,Other Goods & Services,FUNDING AND ANALYSIS TOTAL,PIXEL GROUP LTD,1041093750,11724.87,"Fees / expenses of professionals such as auditors, accountants, lawyers, etc. engaged to provide advice or opinion on how to affect something"
Department for Education,DEPARTMENT FOR EDUCATION,04/09/2019,IS/IT,TEACHING WORKFORCE TOTAL,MADE TECH LTD,1041093217,22172.50,Partial payment for IT hardware / consumables
Department for Education,DEPARTMENT FOR EDUCATION,04/09/2019,IS/IT,TEACHING WORKFORCE TOTAL,FARSIGHT CONSULTING LTD,1041093255,29400.00,Partial payment for IT hardware / consumables
Department for Education,DEPARTMENT FOR EDUCATION,12/09/2019,IS/IT,TEACHING WORKFORCE TOTAL,FARSIGHT CONSULTING LTD,1041093974,20925.00,Partial payment for IT hardware / consumables
Department for Education,DEPARTMENT FOR EDUCATION,11/09/2019,IS/IT,IT DIRECTORATE TOTAL,PROBRAND LTD,1041093963,24075.00,IS/IT Equipment
Department for Education,DEPARTMENT FOR EDUCATION,11/09/2019,IS/IT,IT DIRECTORATE TOTAL,PROBRAND LTD,1041093963,4815.00,IS/IT Equipment
Department for Education,DEPARTMENT FOR EDUCATION,18/09/2019,ICT,IT DIRECTORATE TOTAL,TOTAL COMPUTER NETWORKS LTD,1041094490,427180.00,IT Hardware
Department for Education,DEPARTMENT FOR EDUCATION,24/09/2019,Other Goods & Services,OPERATIONAL AND STRATEGIC FINANCE TOTAL,CABINET OFFICE,1041095000,69437.00,"Fees / expenses of professionals such as auditors, accountants, lawyers, etc. engaged to provide advice or opinion on how to affect something"
Department for Education,DEPARTMENT FOR EDUCATION,24/09/2019,Other Goods & Services,OPERATIONAL AND STRATEGIC FINANCE TOTAL,CABINET OFFICE,1041095000,13887.40,"Fees / expenses of professionals such as auditors, accountants, lawyers, etc. engaged to provide advice or opinion on how to affect something"
Department for Education,DEPARTMENT FOR EDUCATION,12/09/2019,Professional Services Consultancy and Contingent Labour,OPERATIONAL AND STRATEGIC FINANCE TOTAL,PIXEL GROUP LTD,1041094035,24500.00,Costs related to temporary workers
Department for Education,DEPARTMENT FOR EDUCATION,12/09/2019,Professional Services Consultancy and Contingent Labour,OPERATIONAL AND STRATEGIC FINANCE TOTAL,PIXEL GROUP LTD,1041094035,4900.00,Costs related to temporary workers
Department for Education,DEPARTMENT FOR EDUCATION,24/09/2019,Other Goods & Services,OPERATIONAL AND STRATEGIC FINANCE TOTAL,CABINET OFFICE,1041095000,468435.18,"Fees / expenses of professionals such as auditors, accountants, lawyers, etc. engaged to provide advice or opinion on how to affect something"
Department for Education,DEPARTMENT FOR EDUCATION,24/09/2019,Other Goods & Services,OPERATIONAL AND STRATEGIC FINANCE TOTAL,CABINET OFFICE,1041095000,93687.04,"Fees / expenses of professionals such as auditors, accountants, lawyers, etc. engaged to provide advice or opinion on how to affect something"
Department for Education,DEPARTMENT FOR EDUCATION,24/09/2019,Other Goods & Services,OPERATIONAL AND STRATEGIC FINANCE TOTAL,CABINET OFFICE,1041095000,25231.00,"Fees / expenses of professionals such as auditors, accountants, lawyers, etc. engaged to provide advice or opinion on how to affect something"
Department for Education,DEPARTMENT FOR EDUCATION,24/09/2019,Other Goods & Services,OPERATIONAL AND STRATEGIC FINANCE TOTAL,CABINET OFFICE,1041095000,5046.20,"Fees / expenses of professionals such as auditors, accountants, lawyers, etc. engaged to provide advice or opinion on how to affect something"
Department for Education,DEPARTMENT FOR EDUCATION,27/09/2019,Other Goods & Services,OPERATIONAL AND STRATEGIC FINANCE TOTAL,TOPMARK CLAIMS MANAGEMENT LTD,1041095290,21627.64,"Fees / expenses of professionals such as auditors, accountants, lawyers, etc. engaged to provide advice or opinion on how to affect something"
Department for Education,DEPARTMENT FOR EDUCATION,27/09/2019,Other Goods & Services,OPERATIONAL AND STRATEGIC FINANCE TOTAL,TOPMARK CLAIMS MANAGEMENT LTD,1041095290,4325.53,"Fees / expenses of professionals such as auditors, accountants, lawyers, etc. engaged to provide advice or opinion on how to affect something"
Department for Education,DEPARTMENT FOR EDUCATION,10/09/2019,Learning & Development,OPERATIONAL AND STRATEGIC FINANCE TOTAL,OXFORD SAID BUSINESS SCHOOL LTD,1041093725,4166.67,Training & Development costs
Department for Education,DEPARTMENT FOR EDUCATION,10/09/2019,Learning & Development,OPERATIONAL AND STRATEGIC FINANCE TOTAL,OXFORD SAID BUSINESS SCHOOL LTD,1041093725,20833.33,Training & Development costs
Department for Education,DEPARTMENT FOR EDUCATION,17/09/2019,Professional Fees,OPERATIONAL AND STRATEGIC FINANCE TOTAL,PRICE WATERHOUSE COOPERS LLP,1041094382,37760.00,Costs related to finance/accountancy
Department for Education,DEPARTMENT FOR EDUCATION,17/09/2019,Professional Fees,OPERATIONAL AND STRATEGIC FINANCE TOTAL,PRICE WATERHOUSE COOPERS LLP,1041094382,7552.00,Costs related to finance/accountancy
Department for Education,DEPARTMENT FOR EDUCATION,18/09/2019,Other Goods & Services,OPERATIONAL AND STRATEGIC FINANCE TOTAL,SHARED SERVICES CONNECTED LTD,1041094519,87343.35,"Fees / expenses of professionals such as auditors, accountants, lawyers, etc. engaged to provide advice or opinion on how to affect something"
Department for Education,DEPARTMENT FOR EDUCATION,18/09/2019,Other Goods & Services,OPERATIONAL AND STRATEGIC FINANCE TOTAL,SHARED SERVICES CONNECTED LTD,1041094519,193436.03,"Fees / expenses of professionals such as auditors, accountants, lawyers, etc. engaged to provide advice or opinion on how to affect something"
Department for Education,DEPARTMENT FOR EDUCATION,05/09/2019,Professional Services Consultancy and Contingent Labour,OPERATIONAL AND STRATEGIC FINANCE DIRECTORATE,SOPRA STERIA LTD,1041093412,24113.30,Costs related to temporary workers
Department for Education,DEPARTMENT FOR EDUCATION,05/09/2019,Professional Services Consultancy and Contingent Labour,OPERATIONAL AND STRATEGIC FINANCE DIRECTORATE,SOPRA STERIA LTD,1041093412,4822.66,Costs related to temporary workers
Department for Education,DEPARTMENT FOR EDUCATION,30/09/2019,Other Goods & Services,OPERATIONAL AND STRATEGIC FINANCE TOTAL,DELOITTE LLP,1041095549,21522.00,"Fees / expenses of professionals such as auditors, accountants, lawyers, etc. engaged to provide advice or opinion on how to affect something"
Department for Education,DEPARTMENT FOR EDUCATION,30/09/2019,Other Goods & Services,OPERATIONAL AND STRATEGIC FINANCE TOTAL,DELOITTE LLP,1041095549,26271.00,"Fees / expenses of professionals such as auditors, accountants, lawyers, etc. engaged to provide advice or opinion on how to affect something"
Department for Education,DEPARTMENT FOR EDUCATION,30/09/2019,Other Goods & Services,OPERATIONAL AND STRATEGIC FINANCE TOTAL,DELOITTE LLP,1041095549,42093.00,"Fees / expenses of professionals such as auditors, accountants, lawyers, etc. engaged to provide advice or opinion on how to affect something"
Department for Education,DEPARTMENT FOR EDUCATION,30/09/2019,Other Goods & Services,OPERATIONAL AND STRATEGIC FINANCE TOTAL,DELOITTE LLP,1041095549,51086.00,"Fees / expenses of professionals such as auditors, accountants, lawyers, etc. engaged to provide advice or opinion on how to affect something"
Department for Education,DEPARTMENT FOR EDUCATION,30/09/2019,Other Goods & Services,OPERATIONAL AND STRATEGIC FINANCE TOTAL,DELOITTE LLP,1041095549,69234.00,"Fees / expenses of professionals such as auditors, accountants, lawyers, etc. engaged to provide advice or opinion on how to affect something"
Department for Education,DEPARTMENT FOR EDUCATION,30/09/2019,Other Goods & Services,OPERATIONAL AND STRATEGIC FINANCE TOTAL,DELOITTE LLP,1041095549,405320.00,"Fees / expenses of professionals such as auditors, accountants, lawyers, etc. engaged to provide advice or opinion on how to affect something"
Department for Education,DEPARTMENT FOR EDUCATION,30/09/2019,Professional Services,OPERATIONAL AND STRATEGIC FINANCE TOTAL,DELOITTE LLP,1041095549,356513.96,"Advisory services including fees, travel and expenses"
Department for Education,DEPARTMENT FOR EDUCATION,27/09/2019,Professional Services,OPERATIONAL AND STRATEGIC FINANCE TOTAL,DELOITTE LLP,9041000776,-356513.96,"Advisory services including fees, travel and expenses"
Department for Education,DEPARTMENT FOR EDUCATION,27/09/2019,Professional Services,OPERATIONAL AND STRATEGIC FINANCE TOTAL,DELOITTE LLP,9041000776,356513.96,"Advisory services including fees, travel and expenses"
Department for Education,DEPARTMENT FOR EDUCATION,02/09/2019,Staff - Travel & Subsistence,OPERATIONAL AND STRATEGIC FINANCE TOTAL,CORPORATE TRAVEL MANAGEMENT NORTH LTD,1041092837,446832.98,Accommodation Costs
Department for Education,DEPARTMENT FOR EDUCATION,02/09/2019,Staff - Travel & Subsistence,OPERATIONAL AND STRATEGIC FINANCE TOTAL,CORPORATE TRAVEL MANAGEMENT NORTH LTD,1041092837,73.88,Accommodation Costs
Department for Education,DEPARTMENT FOR EDUCATION,02/09/2019,Consultancy,OPERATIONAL AND STRATEGIC FINANCE TOTAL,CABINET OFFICE,1041092802,228600.00,"Advisory services including fees, travel and expenses"
Department for Education,DEPARTMENT FOR EDUCATION,19/09/2019,Professional Services Consultancy and Contingent Labour,OPERATIONAL AND STRATEGIC FINANCE TOTAL,ALLEN LANE LTD,1041094649,28750.00,Costs related to temporary workers
Department for Education,DEPARTMENT FOR EDUCATION,19/09/2019,Professional Services Consultancy and Contingent Labour,OPERATIONAL AND STRATEGIC FINANCE TOTAL,ALLEN LANE LTD,1041094649,5750.00,Costs related to temporary workers
Department for Education,DEPARTMENT FOR EDUCATION,12/09/2019,Consultancy,OPERATIONAL AND STRATEGIC FINANCE DIRECTORATE,AGILE MANAGEMENT SOLUTIONS LTD,1041094032,36495.58,Professional Services - IT Related
Department for Education,DEPARTMENT FOR EDUCATION,18/09/2019,Learning & Development,OPERATIONS GROUP,INFORM LTD TA THE INFORM TEAM,9041000768,-24640.63,Training & Development costs
Department for Education,DEPARTMENT FOR EDUCATION,18/09/2019,Learning & Development,OPERATIONS GROUP,INFORM LTD TA THE INFORM TEAM,9041000768,24640.63,Training & Development costs
Department for Education,DEPARTMENT FOR EDUCATION,18/09/2019,Learning & Development,OPERATIONS GROUP,INFORM LTD TA THE INFORM TEAM,9041000768,-4928.13,Training & Development costs
Department for Education,DEPARTMENT FOR EDUCATION,18/09/2019,Learning & Development,OPERATIONS GROUP,INFORM LTD TA THE INFORM TEAM,9041000768,4928.13,Training & Development costs
Department for Education,DEPARTMENT FOR EDUCATION,13/09/2019,Consultancy,TECHNOLOGY DIRECTORATE TOTAL,LA INTERNATIONAL COMPUTER CONSULTANTS LTD,1041094103,22588.42,Professional Services - IT Related
Department for Education,DEPARTMENT FOR EDUCATION,13/09/2019,Consultancy,TECHNOLOGY DIRECTORATE TOTAL,LA INTERNATIONAL COMPUTER CONSULTANTS LTD,1041094103,24052.40,Professional Services - IT Related
Department for Education,DEPARTMENT FOR EDUCATION,30/09/2019,IS/IT,TECHNOLOGY DIRECTORATE TOTAL,DE LAGE LANDEN LEASING LTD,1041095563,1750844.74,IS/IT Services - Systems Development
Department for Education,DEPARTMENT FOR EDUCATION,13/09/2019,IS/IT,TECHNOLOGY DIRECTORATE TOTAL,BAE SYSTEMS APPLIED INTELLIGENCE LTD,1041094093,44334.96,IS/IT Services - Systems Development
Department for Education,DEPARTMENT FOR EDUCATION,19/09/2019,IS/IT,TECHNOLOGY DIRECTORATE TOTAL,CAPGEMINI UK PLC,1041094566,109570.27,IS/IT Services - hardware maintenance and support
Department for Education,DEPARTMENT FOR EDUCATION,26/09/2019,IS/IT,TECHNOLOGY DIRECTORATE TOTAL,BLUE SHEEP LTD,1041095173,78099.75,IS/IT Systems Operations
Department for Education,DEPARTMENT FOR EDUCATION,05/09/2019,IS/IT,TECHNOLOGY DIRECTORATE TOTAL,BYTES SOFTWARE SERVICE,1041093293,63521.75,IS/IT Services - End user Hardware & Software
Department for Education,DEPARTMENT FOR EDUCATION,05/09/2019,IS/IT,TECHNOLOGY DIRECTORATE TOTAL,BYTES SOFTWARE SERVICE,1041093293,12704.35,IS/IT Services - End user Hardware & Software
Department for Education,DEPARTMENT FOR EDUCATION,05/09/2019,IS/IT,TECHNOLOGY DIRECTORATE TOTAL,PIREAN,1041093307,72000.00,IS/IT Services - hardware maintenance and support
Department for Education,DEPARTMENT FOR EDUCATION,05/09/2019,IS/IT,TECHNOLOGY DIRECTORATE TOTAL,PIREAN,1041093307,244800.00,IS/IT Services - hardware maintenance and support
Department for Education,DEPARTMENT FOR EDUCATION,05/09/2019,IS/IT,TECHNOLOGY DIRECTORATE TOTAL,PIREAN,1041093307,14400.00,IS/IT Services - hardware maintenance and support
Department for Education,DEPARTMENT FOR EDUCATION,05/09/2019,IS/IT,TECHNOLOGY DIRECTORATE TOTAL,PIREAN,1041093307,48960.00,IS/IT Services - hardware maintenance and support
Department for Education,DEPARTMENT FOR EDUCATION,11/09/2019,IS/IT,TECHNOLOGY DIRECTORATE TOTAL,BYTES SOFTWARE SERVICE,1041093793,120157.15,IS/IT Services - End user Hardware & Software
Department for Education,DEPARTMENT FOR EDUCATION,11/09/2019,IS/IT,TECHNOLOGY DIRECTORATE TOTAL,BYTES SOFTWARE SERVICE,1041093793,24031.43,IS/IT Services - End user Hardware & Software
Department for Education,DEPARTMENT FOR EDUCATION,30/09/2019,IS/IT,TECHNOLOGY DIRECTORATE TOTAL,ENTSERV UK LTD,1041095471,21330.00,IS/IT Services - End user Hardware & Software
Department for Education,DEPARTMENT FOR EDUCATION,30/09/2019,IS/IT,TECHNOLOGY DIRECTORATE TOTAL,ENTSERV UK LTD,1041095471,4266.00,IS/IT Services - End user Hardware & Software
Department for Education,DEPARTMENT FOR EDUCATION,30/09/2019,IS/IT,TECHNOLOGY DIRECTORATE TOTAL,ENTSERV UK LTD,1041095471,528085.80,IS/IT Services - End user Hardware & Software
Department for Education,DEPARTMENT FOR EDUCATION,30/09/2019,IS/IT,TECHNOLOGY DIRECTORATE TOTAL,ENTSERV UK LTD,1041095471,105617.16,IS/IT Services - End user Hardware & Software
Department for Education,DEPARTMENT FOR EDUCATION,03/09/2019,IS/IT,TECHNOLOGY DIRECTORATE TOTAL,VODAFONE,1041092915,41889.90,IS/IT Services - Telecoms
Department for Education,DEPARTMENT FOR EDUCATION,05/09/2019,IS/IT,TECHNOLOGY DIRECTORATE TOTAL,BT,1041093323,275584.07,IS/IT Services - Networking
Department for Education,DEPARTMENT FOR EDUCATION,06/09/2019,Professional Services Consultancy and Contingent Labour,TECHNOLOGY DIRECTORATE TOTAL,METHODS BUSINESS AND DIGITAL TECHNOLOGY LTD,1041093503,32045.00,Costs related to temporary workers
Department for Education,DEPARTMENT FOR EDUCATION,06/09/2019,Professional Services Consultancy and Contingent Labour,TECHNOLOGY DIRECTORATE TOTAL,METHODS BUSINESS AND DIGITAL TECHNOLOGY LTD,1041093503,6409.00,Costs related to temporary workers
Department for Education,DEPARTMENT FOR EDUCATION,16/09/2019,IS/IT,TECHNOLOGY DIRECTORATE TOTAL,NIMBUS DIGITAL & TECHNOLOGY INNOVATIONS,1041094293,141835.20,IS/IT Services - Systems Development
Department for Education,DEPARTMENT FOR EDUCATION,26/09/2019,IS/IT,TECHNOLOGY DIRECTORATE TOTAL,NIMBUS DIGITAL & TECHNOLOGY INNOVATIONS,1041095152,33590.40,IS/IT Services - Systems Development
Department for Education,DEPARTMENT FOR EDUCATION,30/09/2019,IS/IT,TECHNOLOGY DIRECTORATE TOTAL,BYTES SOFTWARE SERVICE,1041095507,227756.38,IS/IT Services - hardware maintenance and support
Department for Education,DEPARTMENT FOR EDUCATION,30/09/2019,IS/IT,TECHNOLOGY DIRECTORATE TOTAL,BYTES SOFTWARE SERVICE,1041095507,45551.28,IS/IT Services - hardware maintenance and support
Department for Education,DEPARTMENT FOR EDUCATION,30/09/2019,IS/IT,TECHNOLOGY DIRECTORATE TOTAL,OPEN TEXT UK LTD,1041095543,66873.80,IS/IT Services - hardware maintenance and support
Department for Education,DEPARTMENT FOR EDUCATION,30/09/2019,IS/IT,TECHNOLOGY DIRECTORATE TOTAL,OPEN TEXT UK LTD,1041095543,13374.76,IS/IT Services - hardware maintenance and support
Department for Education,DEPARTMENT FOR EDUCATION,30/09/2019,Professional Services Consultancy and Contingent Labour,TECHNOLOGY DIRECTORATE TOTAL,METHODS BUSINESS AND DIGITAL TECHNOLOGY LTD,1041095568,30620.00,Costs related to temporary workers
Department for Education,DEPARTMENT FOR EDUCATION,30/09/2019,Professional Services Consultancy and Contingent Labour,TECHNOLOGY DIRECTORATE TOTAL,METHODS BUSINESS AND DIGITAL TECHNOLOGY LTD,1041095568,6124.00,Costs related to temporary workers
Department for Education,DEPARTMENT FOR EDUCATION,10/09/2019,IS/IT,TECHNOLOGY DIRECTORATE TOTAL,NIMBUS DIGITAL & TECHNOLOGY INNOVATIONS,1041093660,154542.90,IS/IT Services - Systems Development
Department for Education,DEPARTMENT FOR EDUCATION,11/09/2019,Professional Services Consultancy and Contingent Labour,TECHNOLOGY DIRECTORATE TOTAL,ALEXANDER MANN SOLUTIONS LTD-2WM,1041093763,22065.38,Costs related to temporary workers
Department for Education,DEPARTMENT FOR EDUCATION,11/09/2019,Professional Services Consultancy and Contingent Labour,TECHNOLOGY DIRECTORATE TOTAL,ALEXANDER MANN SOLUTIONS LTD-2WM,1041093763,4413.08,Costs related to temporary workers
Department for Education,DEPARTMENT FOR EDUCATION,02/09/2019,Professional Services Consultancy and Contingent Labour,TECHNOLOGY DIRECTORATE TOTAL,TEN10 SOLUTIONS LTD,1041092748,21114.00,Costs related to temporary workers
Department for Education,DEPARTMENT FOR EDUCATION,02/09/2019,Professional Services Consultancy and Contingent Labour,TECHNOLOGY DIRECTORATE TOTAL,TEN10 SOLUTIONS LTD,1041092748,4222.80,Costs related to temporary workers
Department for Education,DEPARTMENT FOR EDUCATION,02/09/2019,Professional Services Consultancy and Contingent Labour,TECHNOLOGY DIRECTORATE TOTAL,PARITY CONSULTANCY SERVICES LTD,1041092793,27103.20,Costs related to temporary workers
Department for Education,DEPARTMENT FOR EDUCATION,02/09/2019,Professional Services Consultancy and Contingent Labour,TECHNOLOGY DIRECTORATE TOTAL,PARITY CONSULTANCY SERVICES LTD,1041092793,5420.64,Costs related to temporary workers
Department for Education,DEPARTMENT FOR EDUCATION,02/09/2019,IS/IT,TECHNOLOGY DIRECTORATE TOTAL,SOL TEC LTD,1041092831,40284.43,IS/IT Services - Systems Development
Department for Education,DEPARTMENT FOR EDUCATION,02/09/2019,IS/IT,TECHNOLOGY DIRECTORATE TOTAL,SOL TEC LTD,1041092831,36767.60,IS/IT Services - Systems Development
Department for Education,DEPARTMENT FOR EDUCATION,06/09/2019,Professional Services Consultancy and Contingent Labour,TECHNOLOGY DIRECTORATE TOTAL,PARITY CONSULTANCY SERVICES LTD,1041093505,22984.00,Costs related to temporary workers
Department for Education,DEPARTMENT FOR EDUCATION,06/09/2019,Professional Services Consultancy and Contingent Labour,TECHNOLOGY DIRECTORATE TOTAL,PARITY CONSULTANCY SERVICES LTD,1041093505,4596.80,Costs related to temporary workers
Department for Education,DEPARTMENT FOR EDUCATION,10/09/2019,IS/IT,TECHNOLOGY DIRECTORATE TOTAL,SOL TEC LTD,1041093703,41614.81,IS/IT Services - Systems Development
Department for Education,DEPARTMENT FOR EDUCATION,10/09/2019,IS/IT,TECHNOLOGY DIRECTORATE TOTAL,SOL TEC LTD,1041093703,44101.05,IS/IT Services - Systems Development
Department for Education,DEPARTMENT FOR EDUCATION,10/09/2019,IS/IT,TECHNOLOGY DIRECTORATE TOTAL,SOL TEC LTD,1041093703,21982.83,IS/IT Services - Systems Development
Department for Education,DEPARTMENT FOR EDUCATION,10/09/2019,IS/IT,TECHNOLOGY DIRECTORATE TOTAL,SOL TEC LTD,1041093703,32657.08,IS/IT Services - Systems Development
Department for Education,DEPARTMENT FOR EDUCATION,16/09/2019,IS/IT,TECHNOLOGY DIRECTORATE TOTAL,BAE SYSTEMS APPLIED INTELLIGENCE LTD,1041094299,41391.00,IS/IT Services - Systems Development
Department for Education,DEPARTMENT FOR EDUCATION,18/09/2019,IS/IT,TECHNOLOGY DIRECTORATE TOTAL,BAE SYSTEMS APPLIED INTELLIGENCE LTD,1041094451,123272.50,IS/IT Services - Systems Development
Department for Education,DEPARTMENT FOR EDUCATION,19/09/2019,IS/IT,TECHNOLOGY DIRECTORATE TOTAL,SOL TEC LTD,1041094647,-41614.81,IS/IT Services - Systems Development
Department for Education,DEPARTMENT FOR EDUCATION,19/09/2019,IS/IT,TECHNOLOGY DIRECTORATE TOTAL,SOL TEC LTD,1041094647,29058.08,IS/IT Services - Systems Development
Department for Education,DEPARTMENT FOR EDUCATION,26/09/2019,Consultancy,TECHNOLOGY DIRECTORATE TOTAL,METHODS BUSINESS AND DIGITAL TECHNOLOGY LTD,1041095175,56225.00,"Advisory services including fees, travel and expenses"
Department for Education,DEPARTMENT FOR EDUCATION,27/09/2019,Professional Services Consultancy and Contingent Labour,TECHNOLOGY DIRECTORATE TOTAL,METHODS BUSINESS AND DIGITAL TECHNOLOGY LTD,1041095282,54200.00,Costs related to temporary workers
Department for Education,DEPARTMENT FOR EDUCATION,27/09/2019,Professional Services Consultancy and Contingent Labour,TECHNOLOGY DIRECTORATE TOTAL,METHODS BUSINESS AND DIGITAL TECHNOLOGY LTD,1041095282,10840.00,Costs related to temporary workers
Department for Education,DEPARTMENT FOR EDUCATION,30/09/2019,IS/IT,TECHNOLOGY DIRECTORATE TOTAL,SOL TEC LTD,1041095490,67990.36,IS/IT Services - Systems Development
Department for Education,DEPARTMENT FOR EDUCATION,30/09/2019,IS/IT,TECHNOLOGY DIRECTORATE TOTAL,SOL TEC LTD,1041095490,33501.82,IS/IT Services - Systems Development
Department for Education,DEPARTMENT FOR EDUCATION,30/09/2019,IS/IT,TECHNOLOGY DIRECTORATE TOTAL,SOL TEC LTD,1041095490,44137.21,IS/IT Services - Systems Development
Department for Education,DEPARTMENT FOR EDUCATION,06/09/2019,Consultancy,OPERATIONS GROUP,TOTAL ENTERPRISE SOLUTIONS LTD,1041093460,49448.75,Professional Services - IT Related
Department for Education,DEPARTMENT FOR EDUCATION,06/09/2019,Professional Services Consultancy and Contingent Labour,OPERATIONS GROUP,PA CONSULTING SERVICES LTD,1041093513,40000.00,Professional Services
Department for Education,DEPARTMENT FOR EDUCATION,06/09/2019,Professional Services Consultancy and Contingent Labour,OPERATIONS GROUP,PA CONSULTING SERVICES LTD,1041093513,8000.00,Professional Services
Department for Education,DEPARTMENT FOR EDUCATION,12/09/2019,Consultancy,OPERATIONS GROUP,AGILE MANAGEMENT SOLUTIONS LTD,1041094032,31780.00,Professional Services - IT Related
Department for Education,DEPARTMENT FOR EDUCATION,25/09/2019,IS/IT,OPERATIONS GROUP,EGRESS SOFTWARE TECHNOLOGIES LTD,1041095063,31615.00,IS/IT Services - End user Hardware & Software
Department for Education,DEPARTMENT FOR EDUCATION,25/09/2019,IS/IT,OPERATIONS GROUP,EGRESS SOFTWARE TECHNOLOGIES LTD,1041095063,6323.00,IS/IT Services - End user Hardware & Software
Department for Education,DEPARTMENT FOR EDUCATION,30/09/2019,Consultancy,OPERATIONS GROUP,TOTAL ENTERPRISE SOLUTIONS LTD,1041095585,60188.75,Professional Services - IT Related
Department for Education,DEPARTMENT FOR EDUCATION,16/09/2019,Accommodation & Estates - rent & rates,Property Asset Management Group,MINISTRY OF JUSTICE,30000625,235989.09,Business rates
Department for Education,DEPARTMENT FOR EDUCATION,20/09/2019,Facilities,Property Asset Management Group,NU CONSTRUCTION LTD,10001627,9100.45,Refurbishment Works
Department for Education,DEPARTMENT FOR EDUCATION,20/09/2019,Facilities,Property Asset Management Group,NU CONSTRUCTION LTD,10001627,45502.23,Refurbishment Works
Department for Education,DEPARTMENT FOR EDUCATION,27/09/2019,Facilities,Property Asset Management Group,GOVERNMENT PROPERTY AGENCY GPA,1041095389,300000.00,Project Management
Department for Education,DEPARTMENT FOR EDUCATION,03/09/2019,Facilities,Property Asset Management Group,MACE LTD,1041092878,142546.00,Project Management
Department for Education,DEPARTMENT FOR EDUCATION,03/09/2019,Facilities,Property Asset Management Group,MACE LTD,1041092878,28509.20,Project Management
Department for Education,DEPARTMENT FOR EDUCATION,03/09/2019,Facilities,Property Asset Management Group,WILLMOTT DIXON CONSTRUCTION LTD,1041093030,58973.33,Enabling Works
Department for Education,DEPARTMENT FOR EDUCATION,03/09/2019,Facilities,Property Asset Management Group,WILLMOTT DIXON CONSTRUCTION LTD,1041093030,294866.63,Enabling Works
Department for Education,DEPARTMENT FOR EDUCATION,04/09/2019,Facilities,Property Asset Management Group,WILLMOTT DIXON INTERIORS LTD,1041093276,584415.58,Fitout Works
Department for Education,DEPARTMENT FOR EDUCATION,04/09/2019,Facilities,Property Asset Management Group,WILLMOTT DIXON INTERIORS LTD,1041093276,2922077.92,Fitout Works
Department for Education,DEPARTMENT FOR EDUCATION,12/09/2019,Facilities,Property Asset Management Group,ACTIVE FACILITIES MANAGEMENT LTD,1041093990,334924.00,Refurbishment Works
Department for Education,DEPARTMENT FOR EDUCATION,12/09/2019,Facilities,Property Asset Management Group,ACTIVE FACILITIES MANAGEMENT LTD,1041093990,66984.80,Refurbishment Works
Department for Education,DEPARTMENT FOR EDUCATION,19/09/2019,Facilities,Property Asset Management Group,WILLMOTT DIXON INTERIORS LTD,1041094639,825693.81,Fitout Works
Department for Education,DEPARTMENT FOR EDUCATION,19/09/2019,Facilities,Property Asset Management Group,WILLMOTT DIXON INTERIORS LTD,1041094639,4128469.03,Fitout Works
Department for Education,DEPARTMENT FOR EDUCATION,23/09/2019,Personnel Related,HR DIRECTORATE,INLAND REVENUE,1041094885,143091.00,Apprenticeship Levy
Department for Education,DEPARTMENT FOR EDUCATION,16/09/2019,Staff - Other,HR DIRECTORATE,CABINET OFFICE,1041094195,109501.50,Recruitment costs
Department for Education,DEPARTMENT FOR EDUCATION,04/09/2019,Staff - Other,HR DIRECTORATE,FIDELITI LTD,1041093189,95237.61,Childcare Schemes
Department for Education,DEPARTMENT FOR EDUCATION,24/09/2019,Staff - Other,HR DIRECTORATE,FIDELITI LTD,1041094949,73130.38,Childcare Schemes
Department for Education,DEPARTMENT FOR EDUCATION,11/09/2019,Staff - Other,PORTFOLIO MANAGEMENT BOARD,QA CONSULTING SERVICES LTD,1041093745,31825.00,Recruitment costs
Department for Education,DEPARTMENT FOR EDUCATION,11/09/2019,Staff - Other,PORTFOLIO MANAGEMENT BOARD,QA CONSULTING SERVICES LTD,1041093745,6365.00,Recruitment costs
Department for Education,DEPARTMENT FOR EDUCATION,27/09/2019,Other Goods & Services,STRATEGIC ANALYSIS AND RESEARCH,NATIONAL FOUNDATION FOR EDUCATIONAL RESEARCH,1041095266,30000.00,Research and Development
Department for Education,DEPARTMENT FOR EDUCATION,06/09/2019,IS/IT,SYSTEMS AND ACCOUNTABILITY,OLIVE JAR DIGITAL LTD,1041093448,141552.54,IS/IT Services - Systems Development
Department for Education,DEPARTMENT FOR EDUCATION,06/09/2019,IS/IT,SYSTEMS AND ACCOUNTABILITY,OLIVE JAR DIGITAL LTD,1041093448,28310.51,IS/IT Services - Systems Development
Department for Education,DEPARTMENT FOR EDUCATION,06/09/2019,IS/IT,SYSTEMS AND ACCOUNTABILITY,NIMBLE DELIVERY LTD,1041093486,33500.00,IS/IT Systems Operations
Department for Education,DEPARTMENT FOR EDUCATION,06/09/2019,IS/IT,SYSTEMS AND ACCOUNTABILITY,NIMBLE DELIVERY LTD,1041093486,6700.00,IS/IT Systems Operations
Department for Education,DEPARTMENT FOR EDUCATION,09/09/2019,IS/IT,SYSTEMS AND ACCOUNTABILITY,CAPGEMINI UK PLC,1041093566,43002.00,IS/IT Systems Operations
Department for Education,DEPARTMENT FOR EDUCATION,09/09/2019,IS/IT,SYSTEMS AND ACCOUNTABILITY,CAPGEMINI UK PLC,1041093566,8600.40,IS/IT Systems Operations
Department for Education,DEPARTMENT FOR EDUCATION,09/09/2019,IS/IT,SYSTEMS AND ACCOUNTABILITY,HIVE IT LIMITED,1041093592,43309.15,IS/IT Systems Operations
Department for Education,DEPARTMENT FOR EDUCATION,09/09/2019,IS/IT,SYSTEMS AND ACCOUNTABILITY,HIVE IT LIMITED,1041093592,8661.83,IS/IT Systems Operations
Department for Education,DEPARTMENT FOR EDUCATION,09/09/2019,IS/IT,SYSTEMS AND ACCOUNTABILITY,HIVE IT LIMITED,1041093592,56000.41,IS/IT Systems Operations
Department for Education,DEPARTMENT FOR EDUCATION,09/09/2019,IS/IT,SYSTEMS AND ACCOUNTABILITY,HIVE IT LIMITED,1041093592,11200.08,IS/IT Systems Operations
Department for Education,DEPARTMENT FOR EDUCATION,18/09/2019,IS/IT,SYSTEMS AND ACCOUNTABILITY,AGILE SOLUTIONS GB LTD,1041094436,39883.33,IS/IT Systems Operations
Department for Education,DEPARTMENT FOR EDUCATION,18/09/2019,IS/IT,SYSTEMS AND ACCOUNTABILITY,AGILE SOLUTIONS GB LTD,1041094436,7976.67,IS/IT Systems Operations
Department for Education,DEPARTMENT FOR EDUCATION,06/09/2019,IS/IT,SYSTEMS AND ACCOUNTABILITY,TEN10 SOLUTIONS LTD,1041093491,56320.25,IS/IT Services - Systems Development
Department for Education,DEPARTMENT FOR EDUCATION,18/09/2019,IS/IT,SYSTEMS AND ACCOUNTABILITY,CAPGEMINI UK PLC,1041094418,52981.17,IS/IT Services - Systems Development
Department for Education,DEPARTMENT FOR EDUCATION,27/09/2019,IS/IT,SYSTEMS AND ACCOUNTABILITY,RM EDUCATION PLC,1041095287,506449.62,IS/IT Systems Operations
Department for Education,DEPARTMENT FOR EDUCATION,27/09/2019,IS/IT,SYSTEMS AND ACCOUNTABILITY,RM EDUCATION PLC,1041095287,101289.92,IS/IT Systems Operations
Department for Education,DEPARTMENT FOR EDUCATION,17/09/2019,Other Goods & Services,STUDENT FINANCE DELIVERY,ERNST & YOUNG LLP,10001626,29190.00,"Fees / expenses of professionals such as auditors, accountants, lawyers, etc. engaged to provide advice or opinion on how to affect something"
Department for Education,DEPARTMENT FOR EDUCATION,17/09/2019,Other Goods & Services,STUDENT FINANCE DELIVERY,ERNST & YOUNG LLP,10001626,145950.00,"Fees / expenses of professionals such as auditors, accountants, lawyers, etc. engaged to provide advice or opinion on how to affect something"
Department for Education,DEPARTMENT FOR EDUCATION,16/09/2019,Auditors services,STUDENT FINANCE DELIVERY,GOVERNMENT ACTUARYS DEPARTMENT GAD,1041094257,79911.66,Audit Services: Assurance
Department for Education,DEPARTMENT FOR EDUCATION,02/09/2019,Other costs,STUDENT FINANCE DELIVERY,STUDENT LOANS CO LTD INVEST TO SAVE,30000612,4629426.23,Current grants paid to organisations including arms length bodies and educational establishments
Department for Education,DEPARTMENT FOR EDUCATION,02/09/2019,Other costs,STUDENT FINANCE DELIVERY,STUDENT LOANS CO LTD INVEST TO SAVE,30000612,23229933.54,Current grants paid to organisations including arms length bodies and educational establishments
Department for Education,DEPARTMENT FOR EDUCATION,19/09/2019,Other costs,Higher Education Strategy and Policy Group,THE OFFICE FOR STUDENTS,30000626,191055572.00,Current grants paid to organisations including arms length bodies and educational establishments
Department for Education,DEPARTMENT FOR EDUCATION,10/09/2019,Grants expenditure,STUDENT FINANCE DELIVERY,MINISTRY OF DEFENCE,30000616,480913.50,Grants paid to other Government Departments
Department for Education,DEPARTMENT FOR EDUCATION,11/09/2019,Grants expenditure,STUDENT FINANCE DELIVERY,MINISTRY OF DEFENCE,30000617,205030.40,Grants paid to other Government Departments
Department for Education,DEPARTMENT FOR EDUCATION,27/09/2019,Grants expenditure,STUDENT FINANCE DELIVERY,MINISTRY OF DEFENCE,30000629,238565.00,Grants paid to other Government Departments
Department for Education,DEPARTMENT FOR EDUCATION,10/09/2019,Provisions,STUDENT FINANCE DELIVERY,FINANCE FOR HIGHER EDUCATION,10001620,214288.01,Provisions Expense - Other
Department for Education,DEPARTMENT FOR EDUCATION,10/09/2019,Provisions,STUDENT FINANCE DELIVERY,HONOURS TRUSTEES LTD,10001621,519422.13,Provisions Expense - Other
Department for Education,DEPARTMENT FOR EDUCATION,16/09/2019,Grants expenditure,STUDENT FINANCE DELIVERY,STUDENT LOANS COMPANY LTD,30000624,70467094.00,Grants to educational establishments or not for profit organisations including other businesses
Department for Education,DEPARTMENT FOR EDUCATION,27/09/2019,IS/IT,DIGITAL AND TRANSFORMATION TOTAL,FARSIGHT CONSULTING LTD,1041095349,34302.25,IS/IT Services - Systems Development
Department for Education,DEPARTMENT FOR EDUCATION,27/09/2019,IS/IT,DIGITAL AND TRANSFORMATION TOTAL,FARSIGHT CONSULTING LTD,1041095349,48475.50,IS/IT Services - Systems Development
Department for Education,DEPARTMENT FOR EDUCATION,27/09/2019,IS/IT,DIGITAL AND TRANSFORMATION TOTAL,FARSIGHT CONSULTING LTD,1041095349,79462.00,IS/IT Services - Systems Development
Department for Education,DEPARTMENT FOR EDUCATION,27/09/2019,IS/IT,DIGITAL AND TRANSFORMATION TOTAL,FARSIGHT CONSULTING LTD,1041095349,96477.00,IS/IT Services - Systems Development
Department for Education,DEPARTMENT FOR EDUCATION,18/09/2019,Consultancy,DIGITAL AND TRANSFORMATION TOTAL,DIGI2AL LTD,1041094498,29571.00,"Advisory services including fees, travel and expenses"
Department for Education,DEPARTMENT FOR EDUCATION,16/09/2019,Student Payments,STUDENT FINANCE DELIVERY,STUDENT LOANS COMPANY LTD,30000624,1743202978.00,Payments for new student loans
Department for Education,DEPARTMENT FOR EDUCATION,16/09/2019,Student Payments,STUDENT FINANCE DELIVERY,STUDENT LOANS COMPANY LTD,30000624,8384381.00,Payments for new student loans
Department for Education,DEPARTMENT FOR EDUCATION,16/09/2019,Student Payments,STUDENT FINANCE DELIVERY,STUDENT LOANS COMPANY LTD,30000624,153191434.00,Payments for new student loans
Department for Education,DEPARTMENT FOR EDUCATION,16/09/2019,Student Payments,STUDENT FINANCE DELIVERY,STUDENT LOANS COMPANY LTD,30000624,7614918.00,Payments for new student loans
Department for Education,DEPARTMENT FOR EDUCATION,23/09/2019,Grants expenditure,STUDENT FINANCE DELIVERY,DEPARTMENT FOR THE ECONOMY,10001629,7564539.00,Current grant funding to other government departments for DfE's contribution to jointly funded programmes 
Department for Education,DEPARTMENT FOR EDUCATION,23/09/2019,Grants expenditure,STUDENT FINANCE DELIVERY,STUDENT AWARDS AGENCY FOR SCOTLAND SAAS,30000627,12577987.00,Current grant funding to other government departments for DfE's contribution to jointly funded programmes 
Department for Education,DEPARTMENT FOR EDUCATION,23/09/2019,Grants expenditure,STUDENT FINANCE DELIVERY,NATIONAL ASSEMBLY FOR WALES,30000628,9583228.00,Current grant funding to other government departments for DfE's contribution to jointly funded programmes 
Department for Education,DEPARTMENT FOR EDUCATION,25/09/2019,Other Goods & Services,STUDENT FINANCE DELIVERY,HM REVENUE & CUSTOMS,1041095056,91410.96,Other Professional Services
Department for Education,DEPARTMENT FOR EDUCATION,13/09/2019,Grants expenditure,HIGHER AND FURTHER EDUCATION TOTAL,US UK FULBRIGHT EDUCATIONAL COMMISSION,1041094143,83333.33,Grants to educational establishments or not for profit organisations including other businesses
Department for Education,DEPARTMENT FOR EDUCATION,11/09/2019,Grants expenditure,FURTHER EDUCATION TOTAL,CITB,1041093777,3604687.00,Grants to educational establishments or not for profit organisations including other businesses
Department for Education,DEPARTMENT FOR EDUCATION,19/09/2019,Other Goods & Services,FURTHER EDUCATION TOTAL,CFE LTD,1041094683,34300.00,"Fees / expenses of professionals such as auditors, accountants, lawyers, etc. engaged to provide advice or opinion on how to affect something"
Department for Education,DEPARTMENT FOR EDUCATION,19/09/2019,Other Goods & Services,FURTHER EDUCATION TOTAL,CFE LTD,1041094683,6860.00,"Fees / expenses of professionals such as auditors, accountants, lawyers, etc. engaged to provide advice or opinion on how to affect something"
Department for Education,DEPARTMENT FOR EDUCATION,16/09/2019,Grants expenditure,FE DIRECTORS OFFICE,CAMBRIDGESHIRE & PETERBOROUGH COMBINED AUTHORITY,1041094183,40600.00,Grants to local authorities
Department for Education,DEPARTMENT FOR EDUCATION,16/09/2019,Grants expenditure,FE DIRECTORS OFFICE,WEST OF ENGLAND MAYORAL COMBINED AUTHORITY,1041094306,86472.00,Grants to local authorities
Department for Education,DEPARTMENT FOR EDUCATION,02/09/2019,Other Goods & Services,FE REFORMING PROVISION DIRECTORATE,GOOD THINGS FOUNDATION,1041092827,358746.67,Professional Services IT related
Department for Education,DEPARTMENT FOR EDUCATION,16/09/2019,Other Goods & Services,FE REFORMING PROVISION DIRECTORATE,GOOD THINGS FOUNDATION,1041094229,172474.59,Professional Services IT related
Department for Education,DEPARTMENT FOR EDUCATION,20/09/2019,Grants expenditure,FE REFORMING PROVISION DIRECTORATE,JISC LTD,1041094737,1165917.00,Grants to educational establishments or not for profit organisations including other businesses
Department for Education,DEPARTMENT FOR EDUCATION,23/09/2019,Grants expenditure,FE SKILLS FUNDING DELIVERY DIRECTORATE,TUC,1041094857,890333.00,Grants to educational establishments or not for profit organisations including other businesses
Department for Education,DEPARTMENT FOR EDUCATION,16/09/2019,Grants expenditure,FE SKILLS FUNDING DELIVERY DIRECTORATE,NATIONAL COLLEGE CREATIVE INDUSTRIES,1041094275,50000.00,Grants to educational establishments or not for profit organisations including other businesses
Department for Education,DEPARTMENT FOR EDUCATION,16/09/2019,Student Payments,FE STRATERGY AND TECHNICAL DIRECTORATE,STUDENT LOANS COMPANY LTD,30000623,6401304.00,Payments for new student loans
Department for Education,DEPARTMENT FOR EDUCATION,03/09/2019,Other costs,FE SKILLS POLICY ANALYSIS,INSTITUTE FOR APPRENTICESHIPS,1041093085,20941.34,Research and Development
Department for Education,DEPARTMENT FOR EDUCATION,06/09/2019,Other Goods & Services,FE SKILLS POLICY ANALYSIS,LONDON SCHOOL OF ECONOMICS & POLITICAL SCIENCE LSE,1041093522,500000.00,Research and Development
Department for Education,DEPARTMENT FOR EDUCATION,09/09/2019,Other costs,FE SKILLS POLICY ANALYSIS,KANTAR UK LTD,1041093602,61000.00,Research and Development
Department for Education,DEPARTMENT FOR EDUCATION,12/09/2019,Other costs,FE SKILLS POLICY ANALYSIS,IPSOS MORI,1041093995,51694.00,Research and Development
Department for Education,DEPARTMENT FOR EDUCATION,03/09/2019,IS/IT,FE SKILLS FUNDING DELIVERY DIRECTORATE,ENGINE PARTNERS UK LLP TRANSFORM,1041092963,225625.00,Partial payment for IT hardware / consumables
Department for Education,DEPARTMENT FOR EDUCATION,24/09/2019,IS/IT,FE SKILLS FUNDING DELIVERY DIRECTORATE,ENGINE PARTNERS UK LLP TRANSFORM,1041094915,188360.00,Partial payment for IT hardware / consumables
Department for Education,STANDARDS AND TESTING AGENCY,27/09/2019,Other Goods & Services,TEST DEVELOPMENT DIVISION,SCOTTISH QUALIFICATIONS AUTHORITY,1041095320,432578.00,Programme Expenditure
Department for Education,STANDARDS AND TESTING AGENCY,27/09/2019,Other Goods & Services,TEST DEVELOPMENT DIVISION,NFER TRADING LIMITED INV T,1041095352,449301.76,Programme Expenditure
Department for Education,STANDARDS AND TESTING AGENCY,10/09/2019,Other Goods & Services,TEST OPERATIONS DIVISION,CAPITA BUSINESS SERVICES,1041093724,78314.22,Programme Expenditure
Department for Education,STANDARDS AND TESTING AGENCY,10/09/2019,Other Goods & Services,TEST OPERATIONS DIVISION,CAPITA BUSINESS SERVICES,1041093724,81188.24,Programme Expenditure
Department for Education,STANDARDS AND TESTING AGENCY,20/09/2019,Other Goods & Services,TEST OPERATIONS DIVISION,CAPITA BUSINESS SERVICES,1041094772,1500000.00,Programme Expenditure
Department for Education,STANDARDS AND TESTING AGENCY,05/09/2019,IS/IT,TEST OPERATIONS DIVISION,OLIVE JAR DIGITAL LTD,1041093413,59937.54,IS/IT Services - hardware maintenance and support
Department for Education,STANDARDS AND TESTING AGENCY,05/09/2019,IS/IT,TEST OPERATIONS DIVISION,CADENCE INNOVA,1041093417,46464.17,IS/IT Services - hardware maintenance and support
Department for Education,STANDARDS AND TESTING AGENCY,09/09/2019,Office Costs,TEST OPERATIONS DIVISION,PARCELFORCE WORLDWIDE,1041093538,55625.22,Post and courier services
Department for Education,STANDARDS AND TESTING AGENCY,26/09/2019,Other Goods & Services,TEST DEVELOPMENT DIVISION,HIPPO DIGITAL LTD,1041095146,189425.00,Programme Expenditure
Department for Education,DEPARTMENT FOR EDUCATION,04/09/2019,Miscellaneous Expenditure,Finance and Commercial Group,ROYAL BANK OF SCOTLAND GROUP,10001613,246.21,Payment of electronic procurement card(ePCS) invoice from August 2019.  Details of ePCS spend over 500 can be found at https://www.gov.uk/government/collections/dfe-government-procurement-card-gpc-over-500
Department for Education,DEPARTMENT FOR EDUCATION,04/09/2019,Miscellaneous Expenditure,Finance and Commercial Group,ROYAL BANK OF SCOTLAND GROUP,10001613,759.32,Payment of electronic procurement card(ePCS) invoice from August 2019.  Details of ePCS spend over 500 can be found at https://www.gov.uk/government/collections/dfe-government-procurement-card-gpc-over-500
Department for Education,DEPARTMENT FOR EDUCATION,04/09/2019,Miscellaneous Expenditure,Finance and Commercial Group,ROYAL BANK OF SCOTLAND GROUP,10001613,126.00,Payment of electronic procurement card(ePCS) invoice from August 2019.  Details of ePCS spend over 500 can be found at https://www.gov.uk/government/collections/dfe-government-procurement-card-gpc-over-500
Department for Education,DEPARTMENT FOR EDUCATION,04/09/2019,Miscellaneous Expenditure,Finance and Commercial Group,ROYAL BANK OF SCOTLAND GROUP,10001613,1021.53,Payment of electronic procurement card(ePCS) invoice from August 2019.  Details of ePCS spend over 500 can be found at https://www.gov.uk/government/collections/dfe-government-procurement-card-gpc-over-500
Department for Education,DEPARTMENT FOR EDUCATION,04/09/2019,Miscellaneous Expenditure,Finance and Commercial Group,ROYAL BANK OF SCOTLAND GROUP,10001613,43.99,Payment of electronic procurement card(ePCS) invoice from August 2019.  Details of ePCS spend over 500 can be found at https://www.gov.uk/government/collections/dfe-government-procurement-card-gpc-over-500
Department for Education,DEPARTMENT FOR EDUCATION,04/09/2019,Miscellaneous Expenditure,Finance and Commercial Group,ROYAL BANK OF SCOTLAND GROUP,10001613,212.98,Payment of electronic procurement card(ePCS) invoice from August 2019.  Details of ePCS spend over 500 can be found at https://www.gov.uk/government/collections/dfe-government-procurement-card-gpc-over-500
Department for Education,DEPARTMENT FOR EDUCATION,04/09/2019,Miscellaneous Expenditure,Finance and Commercial Group,ROYAL BANK OF SCOTLAND GROUP,10001613,450.00,Payment of electronic procurement card(ePCS) invoice from August 2019.  Details of ePCS spend over 500 can be found at https://www.gov.uk/government/collections/dfe-government-procurement-card-gpc-over-500
Department for Education,DEPARTMENT FOR EDUCATION,04/09/2019,Miscellaneous Expenditure,Finance and Commercial Group,ROYAL BANK OF SCOTLAND GROUP,10001613,158.59,Payment of electronic procurement card(ePCS) invoice from August 2019.  Details of ePCS spend over 500 can be found at https://www.gov.uk/government/collections/dfe-government-procurement-card-gpc-over-500
Department for Education,DEPARTMENT FOR EDUCATION,04/09/2019,Miscellaneous Expenditure,Finance and Commercial Group,ROYAL BANK OF SCOTLAND GROUP,10001613,2193.25,Payment of electronic procurement card(ePCS) invoice from August 2019.  Details of ePCS spend over 500 can be found at https://www.gov.uk/government/collections/dfe-government-procurement-card-gpc-over-500
Department for Education,DEPARTMENT FOR EDUCATION,04/09/2019,Miscellaneous Expenditure,Finance and Commercial Group,ROYAL BANK OF SCOTLAND GROUP,10001613,48.08,Payment of electronic procurement card(ePCS) invoice from August 2019.  Details of ePCS spend over 500 can be found at https://www.gov.uk/government/collections/dfe-government-procurement-card-gpc-over-500
Department for Education,DEPARTMENT FOR EDUCATION,04/09/2019,Miscellaneous Expenditure,Finance and Commercial Group,ROYAL BANK OF SCOTLAND GROUP,10001613,384.00,Payment of electronic procurement card(ePCS) invoice from August 2019.  Details of ePCS spend over 500 can be found at https://www.gov.uk/government/collections/dfe-government-procurement-card-gpc-over-500
Department for Education,DEPARTMENT FOR EDUCATION,04/09/2019,Miscellaneous Expenditure,Finance and Commercial Group,ROYAL BANK OF SCOTLAND GROUP,10001613,1337.50,Payment of electronic procurement card(ePCS) invoice from August 2019.  Details of ePCS spend over 500 can be found at https://www.gov.uk/government/collections/dfe-government-procurement-card-gpc-over-500
Department for Education,DEPARTMENT FOR EDUCATION,04/09/2019,Miscellaneous Expenditure,Finance and Commercial Group,ROYAL BANK OF SCOTLAND GROUP,10001613,1789.72,Payment of electronic procurement card(ePCS) invoice from August 2019.  Details of ePCS spend over 500 can be found at https://www.gov.uk/government/collections/dfe-government-procurement-card-gpc-over-500
Department for Education,DEPARTMENT FOR EDUCATION,04/09/2019,Miscellaneous Expenditure,Finance and Commercial Group,ROYAL BANK OF SCOTLAND GROUP,10001613,50.38,Payment of electronic procurement card(ePCS) invoice from August 2019.  Details of ePCS spend over 500 can be found at https://www.gov.uk/government/collections/dfe-government-procurement-card-gpc-over-500
Department for Education,DEPARTMENT FOR EDUCATION,04/09/2019,Miscellaneous Expenditure,Finance and Commercial Group,ROYAL BANK OF SCOTLAND GROUP,10001613,189.50,Payment of electronic procurement card(ePCS) invoice from August 2019.  Details of ePCS spend over 500 can be found at https://www.gov.uk/government/collections/dfe-government-procurement-card-gpc-over-500
Department for Education,DEPARTMENT FOR EDUCATION,04/09/2019,Miscellaneous Expenditure,Finance and Commercial Group,ROYAL BANK OF SCOTLAND GROUP,10001613,2915.00,Payment of electronic procurement card(ePCS) invoice from August 2019.  Details of ePCS spend over 500 can be found at https://www.gov.uk/government/collections/dfe-government-procurement-card-gpc-over-500
Department for Education,DEPARTMENT FOR EDUCATION,04/09/2019,Miscellaneous Expenditure,Finance and Commercial Group,ROYAL BANK OF SCOTLAND GROUP,10001613,3575.10,Payment of electronic procurement card(ePCS) invoice from August 2019.  Details of ePCS spend over 500 can be found at https://www.gov.uk/government/collections/dfe-government-procurement-card-gpc-over-500
Department for Education,DEPARTMENT FOR EDUCATION,04/09/2019,Miscellaneous Expenditure,Finance and Commercial Group,ROYAL BANK OF SCOTLAND GROUP,10001613,131.35,Payment of electronic procurement card(ePCS) invoice from August 2019.  Details of ePCS spend over 500 can be found at https://www.gov.uk/government/collections/dfe-government-procurement-card-gpc-over-500
Department for Education,DEPARTMENT FOR EDUCATION,04/09/2019,Miscellaneous Expenditure,Finance and Commercial Group,ROYAL BANK OF SCOTLAND GROUP,10001613,2181.31,Payment of electronic procurement card(ePCS) invoice from August 2019.  Details of ePCS spend over 500 can be found at https://www.gov.uk/government/collections/dfe-government-procurement-card-gpc-over-500
Department for Education,DEPARTMENT FOR EDUCATION,04/09/2019,Miscellaneous Expenditure,Finance and Commercial Group,ROYAL BANK OF SCOTLAND GROUP,10001613,326.51,Payment of electronic procurement card(ePCS) invoice from August 2019.  Details of ePCS spend over 500 can be found at https://www.gov.uk/government/collections/dfe-government-procurement-card-gpc-over-500
Department for Education,DEPARTMENT FOR EDUCATION,04/09/2019,Miscellaneous Expenditure,Finance and Commercial Group,ROYAL BANK OF SCOTLAND GROUP,10001613,2442.42,Payment of electronic procurement card(ePCS) invoice from August 2019.  Details of ePCS spend over 500 can be found at https://www.gov.uk/government/collections/dfe-government-procurement-card-gpc-over-500
Department for Education,DEPARTMENT FOR EDUCATION,04/09/2019,Miscellaneous Expenditure,Finance and Commercial Group,ROYAL BANK OF SCOTLAND GROUP,10001613,322.00,Payment of electronic procurement card(ePCS) invoice from August 2019.  Details of ePCS spend over 500 can be found at https://www.gov.uk/government/collections/dfe-government-procurement-card-gpc-over-500
Department for Education,DEPARTMENT FOR EDUCATION,04/09/2019,Miscellaneous Expenditure,Finance and Commercial Group,ROYAL BANK OF SCOTLAND GROUP,10001613,200.72,Payment of electronic procurement card(ePCS) invoice from August 2019.  Details of ePCS spend over 500 can be found at https://www.gov.uk/government/collections/dfe-government-procurement-card-gpc-over-500
Department for Education,DEPARTMENT FOR EDUCATION,04/09/2019,Miscellaneous Expenditure,Finance and Commercial Group,ROYAL BANK OF SCOTLAND GROUP,10001613,127.89,Payment of electronic procurement card(ePCS) invoice from August 2019.  Details of ePCS spend over 500 can be found at https://www.gov.uk/government/collections/dfe-government-procurement-card-gpc-over-500
Department for Education,DEPARTMENT FOR EDUCATION,04/09/2019,Miscellaneous Expenditure,Finance and Commercial Group,ROYAL BANK OF SCOTLAND GROUP,10001613,283.99,Payment of electronic procurement card(ePCS) invoice from August 2019.  Details of ePCS spend over 500 can be found at https://www.gov.uk/government/collections/dfe-government-procurement-card-gpc-over-500
Department for Education,DEPARTMENT FOR EDUCATION,04/09/2019,Miscellaneous Expenditure,Finance and Commercial Group,ROYAL BANK OF SCOTLAND GROUP,10001613,223.92,Payment of electronic procurement card(ePCS) invoice from August 2019.  Details of ePCS spend over 500 can be found at https://www.gov.uk/government/collections/dfe-government-procurement-card-gpc-over-500
Department for Education,DEPARTMENT FOR EDUCATION,04/09/2019,Miscellaneous Expenditure,Finance and Commercial Group,ROYAL BANK OF SCOTLAND GROUP,10001613,1425.20,Payment of electronic procurement card(ePCS) invoice from August 2019.  Details of ePCS spend over 500 can be found at https://www.gov.uk/government/collections/dfe-government-procurement-card-gpc-over-500
Department for Education,DEPARTMENT FOR EDUCATION,04/09/2019,Miscellaneous Expenditure,Finance and Commercial Group,ROYAL BANK OF SCOTLAND GROUP,10001613,779.52,Payment of electronic procurement card(ePCS) invoice from August 2019.  Details of ePCS spend over 500 can be found at https://www.gov.uk/government/collections/dfe-government-procurement-card-gpc-over-500
Department for Education,DEPARTMENT FOR EDUCATION,04/09/2019,Miscellaneous Expenditure,Finance and Commercial Group,ROYAL BANK OF SCOTLAND GROUP,10001613,31.21,Payment of electronic procurement card(ePCS) invoice from August 2019.  Details of ePCS spend over 500 can be found at https://www.gov.uk/government/collections/dfe-government-procurement-card-gpc-over-500
Department for Education,DEPARTMENT FOR EDUCATION,04/09/2019,Miscellaneous Expenditure,Finance and Commercial Group,ROYAL BANK OF SCOTLAND GROUP,10001613,671.09,Payment of electronic procurement card(ePCS) invoice from August 2019.  Details of ePCS spend over 500 can be found at https://www.gov.uk/government/collections/dfe-government-procurement-card-gpc-over-500
Department for Education,DEPARTMENT FOR EDUCATION,04/09/2019,Miscellaneous Expenditure,Finance and Commercial Group,ROYAL BANK OF SCOTLAND GROUP,10001613,252.76,Payment of electronic procurement card(ePCS) invoice from August 2019.  Details of ePCS spend over 500 can be found at https://www.gov.uk/government/collections/dfe-government-procurement-card-gpc-over-500
Department for Education,DEPARTMENT FOR EDUCATION,04/09/2019,Miscellaneous Expenditure,Finance and Commercial Group,ROYAL BANK OF SCOTLAND GROUP,10001613,100.00,Payment of electronic procurement card(ePCS) invoice from August 2019.  Details of ePCS spend over 500 can be found at https://www.gov.uk/government/collections/dfe-government-procurement-card-gpc-over-500
Department for Education,DEPARTMENT FOR EDUCATION,04/09/2019,Miscellaneous Expenditure,Finance and Commercial Group,ROYAL BANK OF SCOTLAND GROUP,10001613,14.39,Payment of electronic procurement card(ePCS) invoice from August 2019.  Details of ePCS spend over 500 can be found at https://www.gov.uk/government/collections/dfe-government-procurement-card-gpc-over-500
Department for Education,DEPARTMENT FOR EDUCATION,04/09/2019,Miscellaneous Expenditure,Finance and Commercial Group,ROYAL BANK OF SCOTLAND GROUP,10001613,3778.27,Payment of electronic procurement card(ePCS) invoice from August 2019.  Details of ePCS spend over 500 can be found at https://www.gov.uk/government/collections/dfe-government-procurement-card-gpc-over-500
Department for Education,DEPARTMENT FOR EDUCATION,04/09/2019,Miscellaneous Expenditure,Finance and Commercial Group,ROYAL BANK OF SCOTLAND GROUP,10001613,103.88,Payment of electronic procurement card(ePCS) invoice from August 2019.  Details of ePCS spend over 500 can be found at https://www.gov.uk/government/collections/dfe-government-procurement-card-gpc-over-500
Department for Education,DEPARTMENT FOR EDUCATION,04/09/2019,Miscellaneous Expenditure,Finance and Commercial Group,ROYAL BANK OF SCOTLAND GROUP,10001613,708.99,Payment of electronic procurement card(ePCS) invoice from August 2019.  Details of ePCS spend over 500 can be found at https://www.gov.uk/government/collections/dfe-government-procurement-card-gpc-over-500
Department for Education,DEPARTMENT FOR EDUCATION,04/09/2019,Miscellaneous Expenditure,Finance and Commercial Group,ROYAL BANK OF SCOTLAND GROUP,10001613,5145.94,Payment of electronic procurement card(ePCS) invoice from August 2019.  Details of ePCS spend over 500 can be found at https://www.gov.uk/government/collections/dfe-government-procurement-card-gpc-over-500
Department for Education,DEPARTMENT FOR EDUCATION,04/09/2019,Miscellaneous Expenditure,Finance and Commercial Group,ROYAL BANK OF SCOTLAND GROUP,10001613,652.63,Payment of electronic procurement card(ePCS) invoice from August 2019.  Details of ePCS spend over 500 can be found at https://www.gov.uk/government/collections/dfe-government-procurement-card-gpc-over-500
Department for Education,DEPARTMENT FOR EDUCATION,23/09/2019,Staff Costs,Finance and Commercial Group,INLAND REVENUE,1041094885,5615164.17,Taxation and social security
Department for Education,DEPARTMENT FOR EDUCATION,10/09/2019,Miscellaneous Expenditure,Finance and Commercial Group,N/A - Risk Protection Arrangement (RPA) member,DFE/RPA/2974,25000.00,Property claim paid out to an academy trust by Top Mark on behalf of the Department as part of the Department's Risk Protection Arrangement (RPA).
Department for Education,DEPARTMENT FOR EDUCATION,10/09/2019,Miscellaneous Expenditure,Finance and Commercial Group,N/A - Risk Protection Arrangement (RPA) member,DFE/RPA/1110,31653.29,Property claim paid out to an academy trust by Top Mark on behalf of the Department as part of the Department's Risk Protection Arrangement (RPA).
Department for Education,DEPARTMENT FOR EDUCATION,10/09/2019,Miscellaneous Expenditure,Finance and Commercial Group,N/A - Risk Protection Arrangement (RPA) member,DFE/RPA/3296,53707.00,Property claim paid out to an academy trust by Top Mark on behalf of the Department as part of the Department's Risk Protection Arrangement (RPA).
Department for Education,DEPARTMENT FOR EDUCATION,12/09/2019,Miscellaneous Expenditure,Finance and Commercial Group,N/A - Risk Protection Arrangement (RPA) member,DFE/RPA/0202,49822.73,Property claim paid out to an academy trust by Top Mark on behalf of the Department as part of the Department's Risk Protection Arrangement (RPA).
Department for Education,DEPARTMENT FOR EDUCATION,12/09/2019,Miscellaneous Expenditure,Finance and Commercial Group,N/A - Risk Protection Arrangement (RPA) member,DFE/RPA/2788,26056.00,Property claim paid out to an academy trust by Top Mark on behalf of the Department as part of the Department's Risk Protection Arrangement (RPA).
Department for Education,DEPARTMENT FOR EDUCATION,23/09/2019,Miscellaneous Expenditure,Finance and Commercial Group,N/A - Risk Protection Arrangement (RPA) member,DFE/RPA/0992,26255.00,Property claim paid out to an academy trust by Top Mark on behalf of the Department as part of the Department's Risk Protection Arrangement (RPA).
Department for Education,DEPARTMENT FOR EDUCATION,24/09/2019,Miscellaneous Expenditure,Finance and Commercial Group,N/A - Risk Protection Arrangement (RPA) member,DFE/RPA/2634,50000.00,Employer Liability claim paid out to an academy trust by Top Mark on behalf of the Department as part of the Department's Risk Protection Arrangement (RPA).
Department for Education,DEPARTMENT FOR EDUCATION,25/09/2019,Miscellaneous Expenditure,Finance and Commercial Group,N/A - Risk Protection Arrangement (RPA) member,005921-001648-RB-01,154208.75,Property claim paid out to an academy trust by Gallagher Bassett on behalf of the Department as part of the Department's Risk Protection Arrangement (RPA).
Department for Education,DEPARTMENT FOR EDUCATION,26/09/2019,Miscellaneous Expenditure,Finance and Commercial Group,N/A - Risk Protection Arrangement (RPA) member,005921-003257-RB-01,30949.25,Property claim paid out to an academy trust by Gallagher Bassett on behalf of the Department as part of the Department's Risk Protection Arrangement (RPA).
Department for Education,DEPARTMENT FOR EDUCATION,27/09/2019,Miscellaneous Expenditure,Finance and Commercial Group,N/A - Risk Protection Arrangement (RPA) member,005921-004625-RB-01,85545.39,Property claim paid out to an academy trust by Gallagher Bassett on behalf of the Department as part of the Department's Risk Protection Arrangement (RPA).
Department for Education,Education and Skills Funding Agency,09/09/2019,Grants expenditure,Apprenticeships Group,Learning Curve JAA Limited,5564942,-36306.40,Grants to educational establishments or not for profit organisations including other businesses
Department for Education,Education and Skills Funding Agency,10/09/2019,Grants expenditure,Funding and Programme Team,ASSET TRAINING & CONSULTANCY LTD,6121697,57040.11,Grants to educational establishments or not for profit organisations including other businesses
Department for Education,Education and Skills Funding Agency,10/09/2019,Grants expenditure,Funding and Programme Team,BABINGTON BUSINESS COLLEGE LTD,6121706,67671.76,Grants to educational establishments or not for profit organisations including other businesses
Department for Education,Education and Skills Funding Agency,10/09/2019,Grants expenditure,Funding and Programme Team,QUBE QUALIFICATIONS AND DEVELOPMENT LTD,6121715,59306.00,Grants to educational establishments or not for profit organisations including other businesses
Department for Education,Education and Skills Funding Agency,10/09/2019,Grants expenditure,Funding and Programme Team,LONDON LEARNING CONSORTIUM C.I.C.,6121718,67289.82,Grants to educational establishments or not for profit organisations including other businesses
Department for Education,Education and Skills Funding Agency,10/09/2019,Grants expenditure,Funding and Programme Team,JGA LTD,6121724,43850.05,Grants to educational establishments or not for profit organisations including other businesses
Department for Education,Education and Skills Funding Agency,10/09/2019,Grants expenditure,Funding and Programme Team,YORKSHIRE COLLEGE OF BEAUTY LTD,6121742,39344.29,Grants to educational establishments or not for profit organisations including other businesses
Department for Education,Education and Skills Funding Agency,10/09/2019,Grants expenditure,Funding and Programme Team,PREVISTA LTD,6121787,61410.40,Grants to educational establishments or not for profit organisations including other businesses
Department for Education,Education and Skills Funding Agency,10/09/2019,Grants expenditure,Funding and Programme Team,Astute Minds Ltd,6121799,380172.70,Grants to educational establishments or not for profit organisations including other businesses
Department for Education,Education and Skills Funding Agency,10/09/2019,Grants expenditure,Funding and Programme Team,AVANT PARTNERSHIP LTD,6121805,34510.06,Grants to educational establishments or not for profit organisations including other businesses
Department for Education,Education and Skills Funding Agency,10/09/2019,Grants expenditure,Funding and Programme Team,Summerhouse Equestrian & Training Centre LPP,6121808,36208.76,Grants to educational establishments or not for profit organisations including other businesses
Department for Education,Education and Skills Funding Agency,10/09/2019,Grants expenditure,Funding and Programme Team,Momentum Training & Consultancy Ltd,6121814,62505.31,Grants to educational establishments or not for profit organisations including other businesses
Department for Education,Education and Skills Funding Agency,10/09/2019,Grants expenditure,Funding and Programme Team,BL Training Ltd,6121844,38112.83,Grants to educational establishments or not for profit organisations including other businesses
Department for Education,Education and Skills Funding Agency,10/09/2019,Grants expenditure,Funding and Programme Team,HUMBERSIDE ENGINEERING TRAINING ASSOC LTD,6121850,63480.77,Grants to educational establishments or not for profit organisations including other businesses
Department for Education,Education and Skills Funding Agency,10/09/2019,Grants expenditure,Funding and Programme Team,London Vesta College Limited,6121862,26365.69,Grants to educational establishments or not for profit organisations including other businesses
Department for Education,Education and Skills Funding Agency,10/09/2019,Grants expenditure,Funding and Programme Team,MANTRA LEARNING LTD,6121865,40071.24,Grants to educational establishments or not for profit organisations including other businesses
Department for Education,Education and Skills Funding Agency,04/09/2019,Grants expenditure,Funding and Programme Team,CENTRAL YOUNG MEN'S CHRISTIAN ASSOCIATION,6103670,-195809.00,Grants to educational establishments or not for profit organisations including other businesses
Department for Education,Education and Skills Funding Agency,04/09/2019,Grants expenditure,Funding and Programme Team,The Growth Company Limited,6103672,-170319.00,Grants to educational establishments or not for profit organisations including other businesses
Department for Education,Education and Skills Funding Agency,04/09/2019,Grants expenditure,Funding and Programme Team,ASPIRE-I LTD,6103674,-109418.00,Grants to educational establishments or not for profit organisations including other businesses
Department for Education,Education and Skills Funding Agency,04/09/2019,Grants expenditure,Funding and Programme Team,TOTAL PEOPLE LTD,6103676,-99615.00,Grants to educational establishments or not for profit organisations including other businesses
Department for Education,Education and Skills Funding Agency,04/09/2019,Grants expenditure,Funding and Programme Team,STAFF SELECT LTD,6103678,-94750.00,Grants to educational establishments or not for profit organisations including other businesses
Department for Education,Education and Skills Funding Agency,04/09/2019,Grants expenditure,Funding and Programme Team,TRAINING 2000 LTD,6103680,-30960.00,Grants to educational establishments or not for profit organisations including other businesses
Department for Education,Education and Skills Funding Agency,04/09/2019,Grants expenditure,Funding and Programme Team,YH TRAINING SERVICES LTD,6103682,-79563.00,Grants to educational establishments or not for profit organisations including other businesses
Department for Education,Education and Skills Funding Agency,04/09/2019,Grants expenditure,Funding and Programme Team,COMMUNITY TRAINING SERVICES LTD,6103684,-75269.00,Grants to educational establishments or not for profit organisations including other businesses
Department for Education,Education and Skills Funding Agency,04/09/2019,Grants expenditure,Funding and Programme Team,BRIDGE TRAINING RESOURCES,6103686,-74506.00,Grants to educational establishments or not for profit organisations including other businesses
Department for Education,Education and Skills Funding Agency,04/09/2019,Grants expenditure,Funding and Programme Team,GP Strategies Training Ltd,6103688,-72667.00,Grants to educational establishments or not for profit organisations including other businesses
Department for Education,Education and Skills Funding Agency,04/09/2019,Grants expenditure,Funding and Programme Team,HTP Apprenticeship College Ltd,6103690,-53549.00,Grants to educational establishments or not for profit organisations including other businesses
Department for Education,Education and Skills Funding Agency,04/09/2019,Grants expenditure,Funding and Programme Team,REYNOLDS GROUP LTD,6103692,-49788.00,Grants to educational establishments or not for profit organisations including other businesses
Department for Education,Education and Skills Funding Agency,04/09/2019,Grants expenditure,Funding and Programme Team,PROSPECT TRAINING SERVICES,6103694,-48786.00,Grants to educational establishments or not for profit organisations including other businesses
Department for Education,Education and Skills Funding Agency,04/09/2019,Grants expenditure,Funding and Programme Team,MORTHYNG GROUP LTD,6103696,-39787.00,Grants to educational establishments or not for profit organisations including other businesses
Department for Education,Education and Skills Funding Agency,04/09/2019,Grants expenditure,Funding and Programme Team,SPRINGBOARD SUNDERLAND TRUST,6103698,-31814.00,Grants to educational establishments or not for profit organisations including other businesses
Department for Education,Education and Skills Funding Agency,04/09/2019,Grants expenditure,Funding and Programme Team,BARNARDOS,6103700,-30019.00,Grants to educational establishments or not for profit organisations including other businesses
Department for Education,Education and Skills Funding Agency,04/09/2019,Grants expenditure,Funding and Programme Team,Skills to Group Ltd,6103704,-28579.00,Grants to educational establishments or not for profit organisations including other businesses
Department for Education,Education and Skills Funding Agency,04/09/2019,Grants expenditure,Funding and Programme Team,KEY TRAINING LTD,6103706,-26999.00,Grants to educational establishments or not for profit organisations including other businesses
Department for Education,Education and Skills Funding Agency,06/09/2019,Grants expenditure,"Life Skills, Disadvantage and SEND Group",NACRO,5945650,-104451.89,Grants to educational establishments or not for profit organisations including other businesses
Department for Education,Education and Skills Funding Agency,06/09/2019,Grants expenditure,"Life Skills, Disadvantage and SEND Group",NEW CITY COLLEGE,5945682,-88806.44,Grants to educational establishments or not for profit organisations including other businesses
Department for Education,Education and Skills Funding Agency,06/09/2019,Grants expenditure,"Life Skills, Disadvantage and SEND Group",ASPIRE-I LTD,5945774,-96254.15,Grants to educational establishments or not for profit organisations including other businesses
Department for Education,Education and Skills Funding Agency,06/09/2019,Grants expenditure,"Life Skills, Disadvantage and SEND Group",HAVERING COLLEGE OF FURTHER & HE,6113604,-55763.45,Grants to educational establishments or not for profit organisations including other businesses
Department for Education,Education and Skills Funding Agency,06/09/2019,Grants expenditure,"Life Skills, Disadvantage and SEND Group",HAVERING SIXTH FORM COLLEGE,6113628,-33042.99,Grants to educational establishments or not for profit organisations including other businesses
